{"text_format":"3","workbook":"xlsx","n_sheets":5,"sheets":["Sheet1","Sheet2","Instructions","Sheet4","Sheet3"],"not_rendered":{"images":1,"macros":1,"defined_names":1},"read":"whole","date_system":"1900"}

{"sheet":"Sheet1","index":0,"n_rows":44,"n_cols":11,"rows_kept":44,"merged":[[0,9,1,10],[2,0,2,10],[3,0,3,10],[4,0,4,10],[10,8,10,10],[11,8,11,10],[13,9,13,10],[15,1,16,1],[15,2,16,2],[15,3,16,3],[15,4,16,4],[15,5,15,9],[15,10,16,10],[27,0,27,10],[30,1,30,10],[31,1,31,10],[32,1,32,10],[38,1,38,3],[39,1,39,3],[40,1,40,3],[41,1,41,3],[51,0,51,10]]}
["CS Form No. 9",{"$nulls":8},"Electronic copy to be submitted to the CSC FO  must be in MS Excel format"]
["Revised 2018"]
["Republic of the Philippines"]
["NATIONAL COUNCIL ON DISABILITY AFFAIRS"]
["Request for Publication of Vacant Positions"]
[]
["To: CIVIL SERVICE COMMISSION (CSC)"]
[]
[null,{"$f":"CONCATENATE(\"We hereby request the publication of the following vacant positions, which are authorized to be filled, at the \",A4,\" in the CSC website:\")","v":"We hereby request the publication of the following vacant positions, which are authorized to be filled, at the NATIONAL COUNCIL ON DISABILITY AFFAIRS in the CSC website:"}]
[]
[{"$nulls":8},"FATIMA A. GARON"]
[{"$nulls":8},"Administrative Officer V - HRMO III"]
[]
[{"$nulls":8},"Date:","2023-06-20"]
[]
["No.","Position Title (Parenthetical Title, if applicable)","Plantilla Item No.","Salary/ Job/ Pay Grade","Monthly Salary","Qualification Standards",{"$nulls":4},"Place of Assignment"]
[{"$nulls":5},"Education","Training","Experience","Eligibility","Competency         (if applicable)"]
[1,"Planning Officer IV","PLO4-38",22,{"v":71511,"d":"71,511"},"Bachelor's Degree relevant to the job","16 hours of relevant training","3 years of relevant experience","Career Service Professional/Second Level eligibility","N/A","Programs Management Division, NCDA Office, Quezon City"]
[{"$f":"A18+1","v":2},"Project Development Officer IV","PDO4-6",22,{"v":71511,"d":"71,511"},"Bachelor's Degree relevant to the job","16 hours of relevant training","3 years of relevant experience","Career Service Professional/Second Level eligibility","N/A","Technical Cooperation Division, NCDA Office, Quezon City"]
[{"$f":"A19+1","v":3},"Project Development Officer II","PDO2-7",15,{"v":36619,"d":"36,619"},"Bachelor's Degree relevant to the job","4 hours of relevant  training","1 year of relevant experience","Career Service Professional/Second Level eligibility","N/A","Technical Cooperation Division, NCDA Office, Quezon City"]
[4,"Project Evaluation Officer I","PEO1-42",11,{"v":27000,"d":"27,000"},"Bachelor's Degree relevant to the job","None required","None required","Career Service Professional/Second Level eligibility","N/A","Technical Cooperation Division, NCDA Office, Quezon City"]
[5,"Planning Officer I","PLO1-44",11,{"v":27000,"d":"27,000"},"Bachelor's Degree relevant to the job","None required","None required","Career Service Professional/Second Level eligibility","N/A","Programs Management Division, NCDA Office, Quezon City"]
[6,"Planning Officer I","PLO1-45",11,{"v":27000,"d":"27,000"},"Bachelor's Degree relevant to the job","None required","None required","Career Service Professional/Second Level eligibility","N/A","Programs Management Division, NCDA Office, Quezon City"]
[{"$f":"A23+1","v":7},"Administrative Aide VI (Clerk III)","ADA6-37",6,{"v":17553,"d":"17,553"},"Completion of 2 years studies in college","None required","None required","Career Service Sub-Professional/First Level eligibility","N/A","Finance and Administrative Division, NCDA Office, Quezon City"]
[{"$f":"A24+1","v":8},"Administrative Aide VI (Clerk III)","ADA6-42",6,{"v":17553,"d":"17,553"},"Completion of 2 years studies in college","None required","None required","Career Service Sub-Professional/First Level eligibility","N/A","Technical Cooperation Division, NCDA Office, Quezon City"]
[{"$f":"A25+1","v":9},"Administrative Aide IV (Clerk II)","ADA4-1",4,{"v":15586,"d":"15,586"},"Completion of 2 years studies in college or High School Graduate with relevant vocational/trade course","None required","None required","Career Service Sub-Professional/First Level eligibility","N/A","Information, Education, Communications Division, NCDA Office, Quezon City"]
[]
["Interested and qualified applicants should signify their interest in writing. Attach the following documents to the application letter and send to the address below not later than JULY 5, 2023."]
[]
[null,"1. Application letter (specifying the position applied for, with item number and its date of publication);"]
[null,"2. Fully accomplished Personal Data Sheet (PDS) with recent passport-sized picture  and signature (CS Form No. 212, Revised 2017) with Work Experience Sheet which can be downloaded at www.csc.gov.ph;"]
[null,"3. Scanned copy or photocopy of Performance Rating in the last rating period for government employees or its equivalent for external applicants (if applicable);"]
[null,"4. Scanned or photocopy of Authenticated Civil Service Certificate of Eligibility or Professional License/PRC Rating"]
[null,"5. Scanned or photocopy of Certified Copy of Transcript of Records and Diploma"]
[null,"6. Scanned or photocopy of training certificates"]
[]
["QUALIFIED APPLICANTS are advised to hand in or send through courier/email their application to:"]
[]
[null,"FATIMA A. GARON"]
[null,"Administrative Officer V - HRMO III"]
[null,"Isidora St. Barangay Holy Spirit, Quezon City"]
[null,"ncda.hrmo.hiring@gmail.com"]
[]
["APPLICATIONS WITH INCOMPLETE DOCUMENTS SHALL NOT BE ENTERTAINED."]

{"sheet":"Sheet2","index":1,"n_rows":11,"n_cols":14,"rows_kept":11}
["agency_name","place_of_assignment","position_title","plantilla_item_no","salary_grade","annual_salary","eligibility","education","training","experience","competency","instructions","posting_date","closing_date"]
["NATIONAL COUNCIL ON DISABILITY AFFAIRS","Programs Management Division, NCDA Office, Quezon City","Planning Officer IV","PLO4-38",22,{"v":71511,"d":"71,511"},"Career Service Professional/Second Level eligibility","Bachelor's Degree relevant to the job","16 hours of relevant training","3 years of relevant experience","N/A","<p>Interested and qualified applicants should signify their interest in writing. Attach the following documents to the application letter and send to the address below not later than JULY 5, 2023.</p><p><strong>Documents:</strong></p><p>1. Fully accomplished Personal Data Sheet (PDS) with recent passport-sized picture (CS Form No. 212, Revised 2017) which can be downloaded at www.csc.gov.ph;<br/>2. Performance rating  in the present position for one (1) year (if applicable);<br/>3. Photocopy of certificate of eligibility/rating/license; and<br/>4. Photocopy of Transcript of Records.</p><p><strong>QUALIFIED APPLICANTS</strong> are advised to hand in or send through courier/email their application to:</p><p><strong>FATIMA A. GARON</strong><br/>Administrative Officer V - HRMO III<br/>NATIONAL COUNCIL ON DISABILITY AFFAIRS<br/>Isidora St. Barangay Holy Spirit, Quezon City<br/>ncda.hrmo.hiring@gmail.com</p><p><strong>APPLICATIONS WITH INCOMPLETE DOCUMENTS SHALL NOT BE ENTERTAINED.</strong></p>","20-Jun-23","5-JUL-23"]
["NATIONAL COUNCIL ON DISABILITY AFFAIRS","Technical Cooperation Division, NCDA Office, Quezon City","Project Development Officer IV","PDO4-6",22,{"v":71511,"d":"71,511"},"Career Service Professional/Second Level eligibility","Bachelor's Degree relevant to the job","16 hours of relevant training","3 years of relevant experience","N/A","<p>Interested and qualified applicants should signify their interest in writing. Attach the following documents to the application letter and send to the address below not later than JULY 5, 2023.</p><p><strong>Documents:</strong></p><p>1. Fully accomplished Personal Data Sheet (PDS) with recent passport-sized picture (CS Form No. 212, Revised 2017) which can be downloaded at www.csc.gov.ph;<br/>2. Performance rating  in the present position for one (1) year (if applicable);<br/>3. Photocopy of certificate of eligibility/rating/license; and<br/>4. Photocopy of Transcript of Records.</p><p><strong>QUALIFIED APPLICANTS</strong> are advised to hand in or send through courier/email their application to:</p><p><strong>FATIMA A. GARON</strong><br/>Administrative Officer V - HRMO III<br/>NATIONAL COUNCIL ON DISABILITY AFFAIRS<br/>Isidora St. Barangay Holy Spirit, Quezon City<br/>ncda.hrmo.hiring@gmail.com</p><p><strong>APPLICATIONS WITH INCOMPLETE DOCUMENTS SHALL NOT BE ENTERTAINED.</strong></p>","20-Jun-23","5-JUL-23"]
["NATIONAL COUNCIL ON DISABILITY AFFAIRS","Technical Cooperation Division, NCDA Office, Quezon City","Project Development Officer II","PDO2-7",15,{"v":36619,"d":"36,619"},"Career Service Professional/Second Level eligibility","Bachelor's Degree relevant to the job","4 hours of relevant  training","1 year of relevant experience","N/A","<p>Interested and qualified applicants should signify their interest in writing. Attach the following documents to the application letter and send to the address below not later than JULY 5, 2023.</p><p><strong>Documents:</strong></p><p>1. Fully accomplished Personal Data Sheet (PDS) with recent passport-sized picture (CS Form No. 212, Revised 2017) which can be downloaded at www.csc.gov.ph;<br/>2. Performance rating  in the present position for one (1) year (if applicable);<br/>3. Photocopy of certificate of eligibility/rating/license; and<br/>4. Photocopy of Transcript of Records.</p><p><strong>QUALIFIED APPLICANTS</strong> are advised to hand in or send through courier/email their application to:</p><p><strong>FATIMA A. GARON</strong><br/>Administrative Officer V - HRMO III<br/>NATIONAL COUNCIL ON DISABILITY AFFAIRS<br/>Isidora St. Barangay Holy Spirit, Quezon City<br/>ncda.hrmo.hiring@gmail.com</p><p><strong>APPLICATIONS WITH INCOMPLETE DOCUMENTS SHALL NOT BE ENTERTAINED.</strong></p>","20-Jun-23","5-JUL-23"]
["NATIONAL COUNCIL ON DISABILITY AFFAIRS","Technical Cooperation Division, NCDA Office, Quezon City","Project Evaluation Officer I","PEO1-42",11,{"v":27000,"d":"27,000"},"Career Service Professional/Second Level eligibility","Bachelor's Degree relevant to the job","None required","None required","N/A","<p>Interested and qualified applicants should signify their interest in writing. Attach the following documents to the application letter and send to the address below not later than JULY 5, 2023.</p><p><strong>Documents:</strong></p><p>1. Fully accomplished Personal Data Sheet (PDS) with recent passport-sized picture (CS Form No. 212, Revised 2017) which can be downloaded at www.csc.gov.ph;<br/>2. Performance rating  in the present position for one (1) year (if applicable);<br/>3. Photocopy of certificate of eligibility/rating/license; and<br/>4. Photocopy of Transcript of Records.</p><p><strong>QUALIFIED APPLICANTS</strong> are advised to hand in or send through courier/email their application to:</p><p><strong>FATIMA A. GARON</strong><br/>Administrative Officer V - HRMO III<br/>NATIONAL COUNCIL ON DISABILITY AFFAIRS<br/>Isidora St. Barangay Holy Spirit, Quezon City<br/>ncda.hrmo.hiring@gmail.com</p><p><strong>APPLICATIONS WITH INCOMPLETE DOCUMENTS SHALL NOT BE ENTERTAINED.</strong></p>","20-Jun-23","5-JUL-23"]
["NATIONAL COUNCIL ON DISABILITY AFFAIRS","Programs Management Division, NCDA Office, Quezon City","Planning Officer I","PLO1-44",11,{"v":27000,"d":"27,000"},"Career Service Professional/Second Level eligibility","Bachelor's Degree relevant to the job","None required","None required","N/A","<p>Interested and qualified applicants should signify their interest in writing. Attach the following documents to the application letter and send to the address below not later than JULY 5, 2023.</p><p><strong>Documents:</strong></p><p>1. Fully accomplished Personal Data Sheet (PDS) with recent passport-sized picture (CS Form No. 212, Revised 2017) which can be downloaded at www.csc.gov.ph;<br/>2. Performance rating  in the present position for one (1) year (if applicable);<br/>3. Photocopy of certificate of eligibility/rating/license; and<br/>4. Photocopy of Transcript of Records.</p><p><strong>QUALIFIED APPLICANTS</strong> are advised to hand in or send through courier/email their application to:</p><p><strong>FATIMA A. GARON</strong><br/>Administrative Officer V - HRMO III<br/>NATIONAL COUNCIL ON DISABILITY AFFAIRS<br/>Isidora St. Barangay Holy Spirit, Quezon City<br/>ncda.hrmo.hiring@gmail.com</p><p><strong>APPLICATIONS WITH INCOMPLETE DOCUMENTS SHALL NOT BE ENTERTAINED.</strong></p>","20-Jun-23","5-JUL-23"]
["NATIONAL COUNCIL ON DISABILITY AFFAIRS","Programs Management Division, NCDA Office, Quezon City","Planning Officer I","PLO1-45",11,{"v":27000,"d":"27,000"},"Career Service Professional/Second Level eligibility","Bachelor's Degree relevant to the job","None required","None required","N/A","<p>Interested and qualified applicants should signify their interest in writing. Attach the following documents to the application letter and send to the address below not later than JULY 5, 2023.</p><p><strong>Documents:</strong></p><p>1. Fully accomplished Personal Data Sheet (PDS) with recent passport-sized picture (CS Form No. 212, Revised 2017) which can be downloaded at www.csc.gov.ph;<br/>2. Performance rating  in the present position for one (1) year (if applicable);<br/>3. Photocopy of certificate of eligibility/rating/license; and<br/>4. Photocopy of Transcript of Records.</p><p><strong>QUALIFIED APPLICANTS</strong> are advised to hand in or send through courier/email their application to:</p><p><strong>FATIMA A. GARON</strong><br/>Administrative Officer V - HRMO III<br/>NATIONAL COUNCIL ON DISABILITY AFFAIRS<br/>Isidora St. Barangay Holy Spirit, Quezon City<br/>ncda.hrmo.hiring@gmail.com</p><p><strong>APPLICATIONS WITH INCOMPLETE DOCUMENTS SHALL NOT BE ENTERTAINED.</strong></p>","20-Jun-23","5-JUL-23"]
["NATIONAL COUNCIL ON DISABILITY AFFAIRS","Finance and Administrative Division, NCDA Office, Quezon City","Administrative Aide VI (Clerk III)","ADA6-37",6,{"v":17553,"d":"17,553"},"Career Service Sub-Professional/First Level eligibility","Completion of 2 years studies in college","None required","None required","N/A","<p>Interested and qualified applicants should signify their interest in writing. Attach the following documents to the application letter and send to the address below not later than JULY 5, 2023.</p><p><strong>Documents:</strong></p><p>1. Fully accomplished Personal Data Sheet (PDS) with recent passport-sized picture (CS Form No. 212, Revised 2017) which can be downloaded at www.csc.gov.ph;<br/>2. Performance rating  in the present position for one (1) year (if applicable);<br/>3. Photocopy of certificate of eligibility/rating/license; and<br/>4. Photocopy of Transcript of Records.</p><p><strong>QUALIFIED APPLICANTS</strong> are advised to hand in or send through courier/email their application to:</p><p><strong>FATIMA A. GARON</strong><br/>Administrative Officer V - HRMO III<br/>NATIONAL COUNCIL ON DISABILITY AFFAIRS<br/>Isidora St. Barangay Holy Spirit, Quezon City<br/>ncda.hrmo.hiring@gmail.com</p><p><strong>APPLICATIONS WITH INCOMPLETE DOCUMENTS SHALL NOT BE ENTERTAINED.</strong></p>","20-Jun-23","5-JUL-23"]
["NATIONAL COUNCIL ON DISABILITY AFFAIRS","Technical Cooperation Division, NCDA Office, Quezon City","Administrative Aide VI (Clerk III)","ADA6-42",6,{"v":17553,"d":"17,553"},"Career Service Sub-Professional/First Level eligibility","Completion of 2 years studies in college","None required","None required","N/A","<p>Interested and qualified applicants should signify their interest in writing. Attach the following documents to the application letter and send to the address below not later than JULY 5, 2023.</p><p><strong>Documents:</strong></p><p>1. Fully accomplished Personal Data Sheet (PDS) with recent passport-sized picture (CS Form No. 212, Revised 2017) which can be downloaded at www.csc.gov.ph;<br/>2. Performance rating  in the present position for one (1) year (if applicable);<br/>3. Photocopy of certificate of eligibility/rating/license; and<br/>4. Photocopy of Transcript of Records.</p><p><strong>QUALIFIED APPLICANTS</strong> are advised to hand in or send through courier/email their application to:</p><p><strong>FATIMA A. GARON</strong><br/>Administrative Officer V - HRMO III<br/>NATIONAL COUNCIL ON DISABILITY AFFAIRS<br/>Isidora St. Barangay Holy Spirit, Quezon City<br/>ncda.hrmo.hiring@gmail.com</p><p><strong>APPLICATIONS WITH INCOMPLETE DOCUMENTS SHALL NOT BE ENTERTAINED.</strong></p>","20-Jun-23","5-JUL-23"]
["NATIONAL COUNCIL ON DISABILITY AFFAIRS","Information, Education, Communications Division, NCDA Office, Quezon City","Administrative Aide IV (Clerk II)","ADA4-1",4,{"v":15586,"d":"15,586"},"Career Service Sub-Professional/First Level eligibility","Completion of 2 years studies in college or High School Graduate with relevant vocational/trade course","None required","None required","N/A","<p>Interested and qualified applicants should signify their interest in writing. Attach the following documents to the application letter and send to the address below not later than JULY 5, 2023.</p><p><strong>Documents:</strong></p><p>1. Fully accomplished Personal Data Sheet (PDS) with recent passport-sized picture (CS Form No. 212, Revised 2017) which can be downloaded at www.csc.gov.ph;<br/>2. Performance rating  in the present position for one (1) year (if applicable);<br/>3. Photocopy of certificate of eligibility/rating/license; and<br/>4. Photocopy of Transcript of Records.</p><p><strong>QUALIFIED APPLICANTS</strong> are advised to hand in or send through courier/email their application to:</p><p><strong>FATIMA A. GARON</strong><br/>Administrative Officer V - HRMO III<br/>NATIONAL COUNCIL ON DISABILITY AFFAIRS<br/>Isidora St. Barangay Holy Spirit, Quezon City<br/>ncda.hrmo.hiring@gmail.com</p><p><strong>APPLICATIONS WITH INCOMPLETE DOCUMENTS SHALL NOT BE ENTERTAINED.</strong></p>","20-Jun-23","5-JUL-23"]
["NATIONAL COUNCIL ON DISABILITY AFFAIRS","Information, Education, Communications Division, NCDA Office, Quezon City","Administrative Aide IV (Clerk II)","ADA4-1",4,{"v":15586,"d":"15,586"},"Career Service Sub-Professional/First Level eligibility","Completion of 2 years studies in college or High School Graduate with relevant vocational/trade course","None required","None required","N/A","<p>Interested and qualified applicants should signify their interest in writing. Attach the following documents to the application letter and send to the address below not later than JULY 3, 2023.</p><p><strong>Documents:</strong></p><p>1. Fully accomplished Personal Data Sheet (PDS) with recent passport-sized picture (CS Form No. 212, Revised 2017) which can be downloaded at www.csc.gov.ph;<br/>2. Performance rating  in the present position for one (1) year (if applicable);<br/>3. Photocopy of certificate of eligibility/rating/license; and<br/>4. Photocopy of Transcript of Records.</p><p><strong>QUALIFIED APPLICANTS</strong> are advised to hand in or send through courier/email their application to:</p><p><strong>FATIMA A. GARON</strong><br/>Administrative Officer V - HRMO III<br/>NATIONAL COUNCIL ON DISABILITY AFFAIRS<br/>Isidora St. Barangay Holy Spirit, Quezon City<br/>ncda.hrmo.hiring@gmail.com</p><p><strong>APPLICATIONS WITH INCOMPLETE DOCUMENTS SHALL NOT BE ENTERTAINED.</strong></p>","2023-06-20","2023-07-05"]

{"sheet":"Instructions","index":2,"n_rows":29,"n_cols":1,"rows_kept":29}
["Important things to remember before accomplishing the form:"]
[]
["1.  Rows 1 to 17 of the Sheet1 must remain intact and NO row insertions are allowed."]
["2.  Do not rename the label of the sheet tabs (\"Sheet1\", \"Sheet2\", and \"Instructions\")."]
["3.  Do not delete any of the sheets."]
["4.  Do not delete the first row of Sheet2.  This will serve as the column headers of the data."]
["5.  Do not make changes in the column headers of Sheet2."]
["6.  Do not remove the \"Generate Sheet2\" command button in Sheet1.   This will be used in capturing \n     the data from Sheet1 to Sheet2.  The command button is not printable."]
["7.  You may insert as many rows as required from row 18 to list down all the job vacancies.  But, make\n     sure that an empty row is in-between the last item of the list and the row containing the \"Interested…\" \n     statement."]
["8.  The statement following the list of the job vacancies, which contains the words \"not later than…\"\n     must strictly follow this format:  \"Interested… not later than <space> <closing date> (e.g. December \n     29, 2018)\".  Space in-between the words \"not later than\" and the closing date is very much critical.\n    Closing date must be in this pattern:  Month DD, YYYY"]
["9.  Merged cells should NOT be unmerged.  "]
["10.Do not enter multiple positions in one (1) row.  Each row correscponds to ONLY one position."]
["11.For the Salary Grade, please do not include the acronym \"SG\", enter the SG number ONLY."]
["12.For the Monthly Salary, do not put any characters other than numbers (e.g. peso sign and comma)."]
[]
["How to accomplish the form:"]
[]
["1.  In row 4, select the name of the agency from the dropdown list.  The name of the agency that you\n     selected is automatically inserted in row 9.  Thus, NO need to make changes in row 9."]
["2.  Fill in the \"Head of the Agency\" in row 11 and the \"Date\" of request in row 14."]
["3.  From row 18, enter the list of job vacancies following the column headers.  One position per row."]
["4.  Make necessary changes in the closing date.  It is found in the statement containing the \"Interested…\""]
["     and \"not later than\" words.  Please take note of the No. 8 reminder above."]
["5.  Accomplish the four (4) rows below the statement \"QUALIFIED APPLICANTS…\" accordingly:\n     - 1st row: name of the designated person to whom the documents must be sent;\n     - 2nd row:  Position of the designated person;\n     - 3rd row:  Address of the Agency; and\n     - 4th row:  Agency's email address."]
["6.  Insert rows for the list of job vacancies, if needed.  Delete unused rows in the list."]
[]
["After accomplishing the form:"]
[]
["When all entries are done and no revisions are needed, that is the only time to click the \"Generate Sheet2\" command button.  This will execute the VBA code that will generate the data to be uploaded in the CSC Job Portal database."]
["After the command button has been clicked, select Sheet2 and check if the correct data has been captured.  Having Sheet2 as the active sheet, save the file as a CSV file (Comma Delimited).  This CSC file will then be uploaded to the Job Portal database."]

{"sheet":"Sheet4","index":3,"n_rows":2964,"n_cols":5,"rows_kept":2964,"hidden":true}
["deptid","agency_name","acronym","sector","type_acronym"]
[null,"(Select Agency Name)"]
[2198,"ABRA STATE INSTITUTE OF SCIENCE AND TECHNOLOGY","ASIST","State Universities and Colleges","Proper"]
[3019,"ABUYOG WATER DISTRICT","AWD","Executive Branch","LWD"]
[2291,"ADIONG MEMORIAL POLYTECHNIC STATE COLLEGE","AMPSC","State Universities and Colleges","Proper"]
[106,"ADVANCED SCIENCE AND TECHNOLOGY INSTITUTE","ASTI","Executive Branch","Attached"]
[3177,"AFP MEDICAL CENTER","AFP-MC","Executive Branch","Attached"]
[2689,"AGLIPAY-SAGUDAY WATER DISTRICT","ASWD","Executive Branch","LWD"]
[2801,"AGONCILLO WATER DISTRICT","AWD","Executive Branch","LWD"]
[2470,"AGOO WATER DISTRICT","AWD","Executive Branch","LWD"]
[8,"AGRARIAN REFORM ADJUDICATION BOARD","ARAB","Executive Branch","Attached"]
[9,"AGRICULTURAL CREDIT AND POLICY COUNCIL","ACPC","Executive Branch","Attached"]
[290,"AGRICULTURAL TRAINING INSTITUTE","ATI","Executive Branch","Attached"]
[2296,"AGUSAN DEL SUR STATE COLLEGE OF AGRICULTURE AND TECHNOLOGY","ADSSCAT","State Universities and Colleges","Proper"]
[2940,"AJUY WATER DISTRICT","AWD","Executive Branch","LWD"]
[2245,"AKLAN STATE UNIVERSITY","ASU","State Universities and Colleges","Proper"]
[2825,"ALABANG STO. TOMAS DEVELOPMENT INCORPORATED","ASDI","Executive Branch","GFI/GOCC"]
[3064,"ALAMADA WATER DISTRICT","AWD","Executive Branch","LWD"]
[2720,"AL-AMANAH ISLAMIC INVESTMENT BANK OF THE PHILIPPINES","AAIIBP","Executive Branch","GFI/GOCC"]
[2474,"ALAMINOS WATER DISTRICT","ACWD","Executive Branch","LWD"]
[2488,"ALCALA WATER DISTRICT","AWD","Executive Branch","LWD"]
[2642,"ALEGRIA WATER DISTRICT","AWD","Executive Branch","LWD"]
[2672,"ALICIA WATER DISTRICT","AWD","Executive Branch","LWD"]
[2941,"ALIMODIAN WATER DISTRICT","ALIMODIAN","Executive Branch","LWD"]
[2802,"ALITAGTAG WATER DISTRICT","ALITAGTAG","Executive Branch","LWD"]
[2660,"ALLACAPAN WATER DISTRICT","AWD","Executive Branch","LWD"]
[2588,"ALLEN DISTRICT HOSPITAL","ADH","Executive Branch","NGA"]
[2609,"ALLEN NATIONAL HIGH SCHOOL","ANHS","Executive Branch","NGA"]
[2849,"AMADEO WATER DISTRICT","AMADEO","Executive Branch","LWD"]
[3267,"AMAI PAKPAK MEDICAL CENTER","APMC","Executive Branch","NGA"]
[53,"AMANG RODRIGUEZ MEDICAL CENTER","ARMC","Executive Branch","NGA"]
[2673,"ANGADANAN WATER DISTRICT","AWD","Executive Branch","LWD"]
[2701,"ANGAT WATER DISTRICT","ANGAT","Executive Branch","LWD"]
[2747,"ANGELES CITY WATER DISTRICT","ACWD","Executive Branch","LWD"]
[3226,"ANGELES WATER DISTRICT","AWD","Executive Branch","LWD"]
[2942,"ANILAO WATER DISTRICT","ANILAO","Executive Branch","LWD"]
[3138,"ANTI-MONEY LAUNDERING COUNCIL","AMLC","Executive Branch","Attached"]
[2384,"ANTIPAS WATER DISTRICT","AWD","Executive Branch","LWD"]
[2659,"APARRI WATER DISTRICT","AWD","Executive Branch","LWD"]
[2199,"APAYAO STATE COLLEGE","ASC","State Universities and Colleges","Proper"]
[2826,"APO PRODUCTION UNIT, INCORPORATED","APO","Executive Branch","GFI/GOCC"]
[389,"ARMED FORCES OF THE PHILIPPINES","AFP","Executive Branch","Attached"]
[null,"ARMM DEVELOPMENT ACADEMY","ADA"]
[3210,"ARMM-OFFICE OF THE REGIONAL GOVERNOR","ORG","Executive Branch","NGA"]
[3255,"ARMM-OFFICE OF THE REGIONAL VICE GOVERNOR","ORVG","Executive Branch","NGA"]
[2354,"AROROY WATER DISTRICT","AWD","Executive Branch","LWD"]
[2489,"ASINGAN WATER DISTRICT","AWD","Executive Branch","LWD"]
[3043,"ASUNCION WATER DISTRICT","ASUNCION","Executive Branch","LWD"]
[2882,"ATIMONAN WATER DISTRICT","ATIMONAN","Executive Branch","LWD"]
[2975,"AURORA PACIFIC ECONOMIC AND FREEPORT ZONE AUTHORITY","APEFZA","Executive Branch","GFI/GOCC"]
[2215,"AURORA STATE COLLEGE OF TECHNOLOGY","ASCOT","State Universities and Colleges","Proper"]
[3250,"AURORA WATER DISTRICT","AWD","Executive Branch","LWD"]
[2976,"AUTHORITY OF FREEPORT AREA OF BATAAN","AFAB","Executive Branch","GFI/GOCC"]
[3006,"AYUNGON WATER DISTRICT","AYUNGON","Executive Branch","LWD"]
[2309,"BAAO WATER DISTRICT","BAAOWD","Executive Branch","LWD"]
[3020,"BABATNGON WATER DISTRICT","BWD","Executive Branch","LWD"]
[2901,"BACACAY WATER DISTRICT","BACACAY","Executive Branch","LWD"]
[2443,"BACARRA NATIONAL COMPREHENSIVE HIGH SCHOOL","BNCHS","Executive Branch","NGA"]
[2457,"BACNOTAN DISTRICT HOSPITAL","BDH","Executive Branch","NGA"]
[2461,"BACNOTAN NATIONAL HIGH SCHOOL","BNHS","Executive Branch","NGA"]
[2374,"BACOLOD WATER DISTRICT","BWD","Executive Branch","LWD"]
[2748,"BACOLOR WATER DISTRICT","BACOLOR","Executive Branch","LWD"]
[2643,"BACUAG WATER DISTRICT","BWD","Executive Branch","LWD"]
[2692,"BAGAC WATER DISTRICT","BAGAC","Executive Branch","LWD"]
[3058,"BAGANGA WATER DISTRICT","BAGANGA","Executive Branch","LWD"]
[2962,"BAGO WATER DISTRICT","BWD","Executive Branch","LWD"]
[559,"BAGUIO CITY WATER DISTRICT","BAGUIO","Executive Branch","LWD"]
[3241,"BAGUIO GENERAL HOSPITAL AND MEDICAL CENTER","BGHMC","Executive Branch","NGA"]
[3007,"BAIS WATER DISTRICT","BAIS","Executive Branch","LWD"]
[2702,"BALAGTAS WATER DISTRICT","BALAGTAS","Executive Branch","LWD"]
[2995,"BALAMBAN WATER DISTRICT","BWD","Executive Branch","LWD"]
[2693,"BALANGA WATER DISTRICT","BALANGA","Executive Branch","LWD"]
[2458,"BALAOAN DISTRICT HOSPITAL","BDH","Executive Branch","NGA"]
[2466,"BALAOAN WATER DISTRICT","BWD","Executive Branch","LWD"]
[2906,"BALATAN WATER DISTRICT","BALATAN","Executive Branch","LWD"]
[2803,"BALAYAN WATER DISTRICT","BALAYAN","Executive Branch","LWD"]
[2797,"BALER WATER DISTRICT","BALER","Executive Branch","LWD"]
[2917,"BALETE WATER DISTRICT","BALETE","Executive Branch","LWD"]
[2610,"BALICUATRO COLLEGE OF ARTS","BCA","State Universities and Colleges","Proper"]
[3038,"BALINGASAG WATER DISTRICT","BALINGASAG","Executive Branch","LWD"]
[2703,"BALIWAG WATER DISTRICT","BALIWAG","Executive Branch","LWD"]
[2490,"BALUNGAO WATER DISTRICT","BWD","Executive Branch","LWD"]
[2943,"BANATE WATER DISTRICT","BANATE","Executive Branch","LWD"]
[2401,"BANGA WATER DISTRICT","BWD","Executive Branch","LWD"]
[183,"BANGKO SENTRAL NG PILIPINAS","BSP","Executive Branch","GFI/GOCC"]
[2437,"BANGUI INSTITUTE OF TECHNOLOGY","BIT","State Universities and Colleges","Proper"]
[2444,"BANGUI NATIONAL HIGH SCHOOL","BNHS","Executive Branch","NGA"]
[2475,"BANI WATER DISTRICT","BWD","Executive Branch","LWD"]
[3052,"BANSALAN WATER DISTRICT","BANSALAN","Executive Branch","LWD"]
[2519,"BARACAY WATER DISTRICT","BWD","Executive Branch","LWD"]
[2910,"BARAS WATER DISTRICT","BARAS","Executive Branch","LWD"]
[2924,"BARBAZA WATER DISTRICT","BARBAZA","Executive Branch","LWD"]
[2944,"BAROTAC WATER DISTRICT","BAROTAC","Executive Branch","LWD"]
[185,"BASES CONVERSION DEVELOPMENT AUTHORITY","BCDA","Executive Branch","GFI/GOCC"]
[3030,"BASEY WATER DISTRICT","BASEY","Executive Branch","LWD"]
[2273,"BASILAN STATE COLLEGE","BASSC","State Universities and Colleges","Proper"]
[2611,"BASILIO B. CHAN MEM. AGRO- INDUSTRIAL SCHOOL","BBCMAIS","State Universities and Colleges","Proper"]
[2476,"BASISTA WATER DISTRICT","BWD","Executive Branch","LWD"]
[2216,"BATAAN PENINSULA STATE UNIVERSITY","BPSU","State Universities and Colleges","Proper"]
[2818,"BATAAN TECHNOLOGICAL PARK, INCORPORATED","BTPI","Executive Branch","GFI/GOCC"]
[2434,"BATAC WATER DISTRICT","BWD","Executive Branch","LWD"]
[2210,"BATANES STATE COLLEGE","BSC","State Universities and Colleges","Proper"]
[2806,"BATANGAS CITY WATER DISTRICT","BCWD","Executive Branch","LWD"]
[2792,"BATANGAS LAND COMPANY, INCORPORATED","BLC","Executive Branch","GFI/GOCC"]
[2226,"BATANGAS STATE UNIVERSITY","BATSTATE-U","State Universities and Colleges","Proper"]
[2310,"BATO WATER DISTRICT","CAMARINES SUR","Executive Branch","LWD"]
[2477,"BAYAMBANG WATER DISTRICT","BWD","Executive Branch","LWD"]
[3008,"BAYAWAN WATER DISTRICT","BAYAWAN","Executive Branch","LWD"]
[2625,"BAYBAY WATER DISTRICT","BWD","Executive Branch","LWD"]
[2636,"BAYUGAN WATER DISTRICT","BWD","Executive Branch","LWD"]
[2827,"BCDA MANAGEMENT AND HOLDINGS, INCORPORATED","BMHI","Executive Branch","GFI/GOCC"]
[2925,"BELISON WATER DISTRICT","BELISON","Executive Branch","LWD"]
[279,"BENGUET STATE UNIVERSITY","BSU","State Universities and Colleges","Proper"]
[2501,"BENIGNO V. ALDANA NATIONAL HIGH SCHOOL","BVANHS","Executive Branch","NGA"]
[2674,"BENITO SOLIVEN WATER DISTRICT","BSWD","Executive Branch","LWD"]
[3036,"BGY. CEBOLE WATER DISTRICT","BCWD","Executive Branch","LWD"]
[2342,"BICOL MEDICAL CENTER","DOH RO-V","Executive Branch","NGA"]
[3248,"BICOL REGIONAL TRAINING AND TEACHING HOSPITAL","BRTTH","Executive Branch","NGA"]
[3249,"BICOL SANITARIUM","BC","Executive Branch","NGA"]
[2321,"BICOL STATE COLLEGE OF APPLIED SCIENCES AND TECHNOLOGY","BISCAST","State Universities and Colleges","Proper"]
[420,"BICOL UNIVERSITY","BU","State Universities and Colleges","Proper"]
[2963,"BINALBAGAN WATER DISTRICT","BINALBAGAN","Executive Branch","LWD"]
[2491,"BINALONAN WATER DISTRICT","BWD","Executive Branch","LWD"]
[2478,"BINMALEY WATER DISTRICT","BWD","Executive Branch","LWD"]
[2589,"BIRI DISTRICT HOSPITAL","BDH","Executive Branch","NGA"]
[2594,"BISLIG WATER DISTRICT","BWD","Executive Branch","LWD"]
[126,"BOARD OF INVESTMENTS","BOI","Executive Branch","Attached"]
[2565,"BOARD OF LIQUIDATORS","BL","Executive Branch","GFI/GOCC"]
[81,"BOARD OF PARDONS AND PAROLE","BPP","Executive Branch","Attached"]
[2612,"BOBON SCHOOL FOR PHILIPPINES CRAFTSMEN","BSPC","State Universities and Colleges","Proper"]
[2704,"BOCAUE WATER DISTRICT","BOCAUE","Executive Branch","LWD"]
[2996,"BOGO WATER DISTRICT","BOGO","Executive Branch","LWD"]
[2258,"BOHOL ISLAND STATE UNIVERSITY","BISU","State Universities and Colleges","Proper"]
[266,"BONDED EXPORT MARKETING BOARD","BEMB","Executive Branch","Attached"]
[2722,"BONGABON WATER DISTRICT","BONGABON","Executive Branch","LWD"]
[2561,"BONGAO WATER DISTRICT","BWD","Executive Branch","LWD"]
[2998,"BORBON WATER DISTRICT","BORBON","Executive Branch","LWD"]
[2650,"BOROBO WATER DISTRICT","BWD","Executive Branch","LWD"]
[2585,"BORONGAN WATER DISTRICT","BWD","Executive Branch","LWD"]
[2778,"BOY SCOUTS OF THE PHILIPPINES","BSP","Executive Branch","GFI/GOCC"]
[3044,"BRAULIO DUJALI WATER DISTRICT","BDWD","Executive Branch","LWD"]
[3243,"BUCAY WATER DISTRICT","BWD","Executive Branch","LWD"]
[2590,"BUENAVISTA WATER DISTRICT","BWD","Executive Branch","LWD"]
[2479,"BUGALLON WATER DISTRICT","BWD","Executive Branch","LWD"]
[2926,"BUGASONG WATER DISTRICT","BUGASONG","Executive Branch","LWD"]
[2661,"BUGUEY-STA. TERESITA WATER DISTRICT","BSTWD","Executive Branch","LWD"]
[2793,"BUKIDNON FOREST, INCORPORATED","BFI","Executive Branch","GFI/GOCC"]
[401,"BUKIDNON STATE COLLEGE","BSC","State Universities and Colleges","Proper"]
[2217,"BULACAN AGRICULTURAL STATE COLLEGE","BASC","State Universities and Colleges","Proper"]
[2218,"BULACAN STATE UNIVERSITY","BULSU","State Universities and Colleges","Proper"]
[2705,"BULACAN WATER DISTRICT","BULACAN","Executive Branch","LWD"]
[2912,"BULAN WATER DISTRICT","BWD","Executive Branch","LWD"]
[2637,"BUNAWAN WATER DISTRICT","BUNAWAN","Executive Branch","LWD"]
[null,"BURDEOS WATER DISTRICT","BWD","Executive Branch","LWD"]
[411,"BUREAU OF AGRICULTURAL AND FISHERIES PRODUCT STANDARD","BAFPS","Executive Branch","Attached"]
[291,"BUREAU OF AGRICULTURAL RESEARCH","BAR","Executive Branch","Attached"]
[292,"BUREAU OF AGRICULTURAL STATISTICS","BAS","Executive Branch","Attached"]
[286,"BUREAU OF ALTERNATIVE LEARNING SERVICE","BALS","Executive Branch","Attached"]
[293,"BUREAU OF ANIMAL INDUSTRY","BAI","Executive Branch","Attached"]
[179,"BUREAU OF BROADCAST SERVICES","BBS","Executive Branch","Attached"]
[283,"BUREAU OF COMMUNICATIONS SERVICES","BCS","Executive Branch","Attached"]
[75,"BUREAU OF CORRECTIONS","BCOR","Executive Branch","Attached"]
[null,"BUREAU OF CULTURAL HERITAGE","BCH"]
[33,"BUREAU OF CUSTOMS","BOC","Executive Branch","Attached"]
[285,"BUREAU OF ELEMENTARY EDUCATION","BEE","Executive Branch","Attached"]
[2435,"BUREAU OF EQUIPMENT","BE","Executive Branch","NGA"]
[69,"BUREAU OF FIRE PROTECTION","BFP","Executive Branch","Attached"]
[19,"BUREAU OF FISHERIES AND AQUATIC RESOURCES","BFAR","Executive Branch","Attached"]
[61,"BUREAU OF HEALTH DEVICES AND TECHNOLOGY","BHDT","Executive Branch","Attached"]
[60,"BUREAU OF HEALTH FACILITIES AND SERVICES","BHFS","Executive Branch","Attached"]
[80,"BUREAU OF IMMIGRATION","BI","Executive Branch","Attached"]
[34,"BUREAU OF INTERNAL REVENUE","BIR","Executive Branch","Attached"]
[62,"BUREAU OF INTERNATIONAL HEALTH COOPERATION","BIHC","Executive Branch","Attached"]
[70,"BUREAU OF JAIL MANAGEMENT AND PENOLOGY","BJMP","Executive Branch","Attached"]
[35,"BUREAU OF LOCAL GOVERNMENT FINANCE","BLGF","Executive Branch","Attached"]
[63,"BUREAU OF LOCAL HEALTH DEVELOPMENT","BLHD","Executive Branch","Attached"]
[294,"BUREAU OF PLANT INDUSTRY","BPI","Executive Branch","Attached"]
[55,"BUREAU OF QUARANTINE AND INTERNATIONAL HEALTH SURVEILLANCE","BQIHS","Executive Branch","Attached"]
[287,"BUREAU OF SECONDARY EDUCATION","BSE","Executive Branch","Attached"]
[295,"BUREAU OF SOILS AND WATER MANAGEMENT","BSWM","Executive Branch","Attached"]
[36,"BUREAU OF THE TREASURY","BTR","Executive Branch","Attached"]
[2445,"BURGOS AGRO-INDUSTRIAL SCHOOL","BAIS","State Universities and Colleges","Proper"]
[2706,"BUSTOS WATER DISTRICT","BUSTOS","Executive Branch","LWD"]
[2591,"BUTUAN CITY WATER DISTRICT","BCWD","Executive Branch","LWD"]
[2455,"CABA MEDICARE COMMUNITY HOSPITAL","CMCH","Executive Branch","NGA"]
[2630,"CABADBARAN WATER DISTRICT","CWD","Executive Branch","LWD"]
[2675,"CABAGAN WATER DISTRICT","CWD","Executive Branch","LWD"]
[2723,"CABANATUAN CITY WATER DISTRICT","CCWD","Executive Branch","LWD"]
[2777,"CABANGAN WATER DISTRICT","CABANGAN","Executive Branch","LWD"]
[2690,"CABARROGUIS WATER DISTRICT","CABARROGUIS","Executive Branch","LWD"]
[2676,"CABATUAN WATER DISTRICT","CWD","Executive Branch","LWD"]
[2724,"CABIAO WATER DISTRICT","CABIAO","Executive Branch","LWD"]
[2861,"CABUYAO WATER DISTRICT","CWD","Executive Branch","LWD"]
[2964,"CADIZ WATER DISTRICT","CWD","Executive Branch","LWD"]
[2572,"CAGAYAN DE ORO CITY WATER DISTRICT","CDOCWD","Executive Branch","LWD"]
[415,"CAGAYAN ECONOMIC ZONE AUTHORITY","CEZA","Executive Branch","Proper"]
[3204,"CAGAYAN HERBAL PROCESSING PLANT - PHILIPPINE INSTITUTE OF TRADITIONAL HEALTH CARE","PITAHC","Executive Branch","NGA"]
[2211,"CAGAYAN STATE UNIVERSITY","CSU","State Universities and Colleges","Proper"]
[3197,"CAGAYAN VALLEY MEDICAL CENTER","CVMC","Executive Branch","NGA"]
[2651,"CAGWAIT WATER DISTRICT","CWD","Executive Branch","LWD"]
[2311,"CALABANGA WATER DISTRICT","CAMARINES SUR","Executive Branch","LWD"]
[2862,"CALAMBA WATER DISTRICT","CALAMBA","Executive Branch","LWD"]
[2883,"CALAUAG WATER DISTRICT","CALAUAG","Executive Branch","LWD"]
[2581,"CALBAYOG WATER DISTRICT","CWD","Executive Branch","LWD"]
[2583,"CALBIGA WATER DISTRICT","CWD","Executive Branch","LWD"]
[2945,"CALINOG WATER DISTRICT","CALINOG","Executive Branch","LWD"]
[3021,"CALUBIAN WATER DISTRICT","CALUBIAN","Executive Branch","LWD"]
[2707,"CALUMPIT WATER DISTRICT","CALUMPIT","Executive Branch","LWD"]
[2521,"CAMALIG WATER DISTRICT","CWD","Executive Branch","LWD"]
[2238,"CAMARINES NORTE STATE COLLEGE","CNSC","State Universities and Colleges","Proper"]
[2515,"CAMARINES NORTE WATER DISTRICT","CNWD","Executive Branch","LWD"]
[2239,"CAMARINES SUR POLYTECHNIC COLLEGES","CSPC","State Universities and Colleges","Proper"]
[2648,"CAMARINES SUR STATE AGRICULTURAL COLLEGE","CBSUA","State Universities and Colleges","Proper"]
[2282,"CAMIGUIN POLYTECHNIC STATE COLLEGE","CPSC","State Universities and Colleges","Proper"]
[2762,"CAMILING WATER DISTRICT","CAMILING","Executive Branch","LWD"]
[2749,"CANDABA WATER DISTRICT","CWD","Executive Branch","LWD"]
[2779,"CANDELARIA WATER DISTRICT","CANDELARIA","Executive Branch","LWD"]
[2426,"CANDON CITY WATER DISTRICT","CCWD","Executive Branch","LWD"]
[2423,"CANDON NATIONAL HIGH SCHOOL","CNHS","Executive Branch","NGA"]
[2655,"CANTILAN WATER DISTRICT","CWD","Executive Branch","LWD"]
[2597,"CANTILLAN WATER DISTRICT","CWD","Executive Branch","LWD"]
[2246,"CAPIZ STATE UNIVERSITY","CAPSU","State Universities and Colleges","Proper"]
[2613,"CAPUL AGRO-INDUSTRIAL SCHOOL","CAIS","State Universities and Colleges","Proper"]
[2601,"CAPUL DISTRICT HOSPITAL","CDH","Executive Branch","NGA"]
[2297,"CARAGA STATE UNIVERSITY","CARSU","State Universities and Colleges","Proper"]
[2999,"CARCAR WATER DISTRICT","CWD","Executive Branch","LWD"]
[3,"CAREER EXECUTIVE SERVICE BOARD","CESB","Constitutional Offices","Attached"]
[2247,"CARLOS HILADO MEMORIAL STATE COLLEGE","CHMSC","State Universities and Colleges","Proper"]
[3045,"CARMEN WATER DISTRICT","CWD","Executive Branch","LWD"]
[2850,"CARMONA WATER DISTRICT","CARMONA","Executive Branch","LWD"]
[2652,"CARRASCAL WATER DISTRICT","CWD","Executive Branch","LWD"]
[2359,"CASIGURAN WATER DISTRICT","CWD","Executive Branch","LWD"]
[2780,"CASTILLEJOS WATER DISTRICT","CASTILLEJOS","Executive Branch","LWD"]
[2884,"CATANAUAN WATER DISTRICT","CWD","Executive Branch","LWD"]
[2241,"CATANDUANES STATE COLLEGES","CSC","State Universities and Colleges","Proper"]
[2614,"CATARMAN NATIONAL HIGH SCHOOL","CNHS","Executive Branch","NGA"]
[2573,"CATARMAN WATER DISTRICT","CWD","Executive Branch","LWD"]
[2584,"CATBALOGAN WATER DISTRICT","CWD","Executive Branch","LWD"]
[2602,"CATUBIG DISTRICT HOSPITAL","CDH","Executive Branch","NGA"]
[2677,"CAUAYAN WATER DISTRICT","CWD","Executive Branch","LWD"]
[2227,"CAVITE STATE UNIVERSITY","CVSU","State Universities and Colleges","Proper"]
[407,"CEBU NORMAL UNIVERSITY","CNU","State Universities and Colleges","Proper"]
[184,"CEBU PORT AUTHORITY","CPA","Executive Branch","GFI/GOCC"]
[2257,"CEBU TECHNOLOGICAL UNIVERSITY","CTU","State Universities and Colleges","Proper"]
[186,"CENTER FOR INTERNATIONAL TRADE EXPOSITION AND MISSIONS","CITEM","Executive Branch","Attached"]
[2240,"CENTRAL BICOL STATE UNIVERSITY OF AGRICULTURE","CBSUA","State Universities and Colleges","Proper"]
[3166,"CENTRAL BOARD OF ASSESSMENT APPEAL","CBAA","Executive Branch","Attached"]
[3022,"CENTRAL LEYTE WATER DISTRICT","CLWD","Executive Branch","LWD"]
[2219,"CENTRAL LUZON STATE UNIVERSITY","CLSU","State Universities and Colleges","Proper"]
[2283,"CENTRAL MINDANAO UNIVERSITY","CMU","State Universities and Colleges","Proper"]
[459,"CGO  CANDON, ILOCOS SUR","CANDON","Local Government Unit","City"]
[546,"CGO  KORONADAL , SOUTH COTABATO","KORONADAL","Local Government Unit","City"]
[547,"CGO  SAN FERNANDO , PAMPANGA","SAN FERNANDO","Local Government Unit","City"]
[3116,"CGO  SAN JOSE DEL MONTE, BULACAN","CSJDM","Local Government Unit","City"]
[3129,"CGO  TALISAY, NEGROS OCCIDENTAL","CITY OF TALISAY","Local Government Unit","City"]
[465,"CGO ALAMINOS, PANGASINAN","ALAMINOS","Local Government Unit","City"]
[494,"CGO ANGELES","ANGELES","Local Government Unit","City"]
[527,"CGO ANTIPOLO","ANTIPOLO","Local Government Unit","City"]
[435,"CGO BACOLOD","BACOLOD","Local Government Unit","City"]
[507,"CGO BACOOR, CAVITE","BACOOR","Local Government Unit","City"]
[437,"CGO BAGO, NEGROS OCCIDENTAL","BAGO","Local Government Unit","City"]
[3101,"CGO BAGUIO, BENGUET","BAGUIO","Local Government Unit","City"]
[478,"CGO BAIS, NEGROS ORIENTAL","BAIS","Local Government Unit","City"]
[479,"CGO BALANGA , BATAAN","BALANGA","Local Government Unit","City"]
[3211,"CGO BALANGA CITY","BALANGA","Local Government Unit","Province"]
[456,"CGO BATAC CITY","BATAC","Local Government Unit","City"]
[502,"CGO BATANGAS CITY (CAPITAL)","BATANGAS","Local Government Unit","City"]
[483,"CGO BAYAWAN CITY","BAYAWAN","Local Government Unit","City"]
[1536,"CGO BAYBAY, LEYTE","BAYBAY","Local Government Unit","City"]
[1914,"CGO BAYUGAN, AGUSAN DEL SUR","BAYUGAN","Local Government Unit","City"]
[517,"CGO BIÑAN, LAGUNA","BIÑAN","Local Government Unit","City"]
[556,"CGO BISLIG","BISLIG","Local Government Unit","City"]
[1430,"CGO BOGO, CEBU","BOGO ","Local Government Unit","City"]
[1509,"CGO BORONGAN, EASTERN SAMAR","BORONGAN","Local Government Unit","City"]
[554,"CGO BUTUAN , AGUSAN DEL NORTE","BUTUAN","Local Government Unit","City"]
[485,"CGO CABANATUAN","CABANATUAN","Local Government Unit","City"]
[438,"CGO CADIZ","CADIZ","Local Government Unit","City"]
[525,"CGO CAGAYAN DE ORO , MISAMIS ORIENTAL","CAGAYAN DE ORO","Local Government Unit","City"]
[519,"CGO CALAMBA, LAGUNA","CALAMBA","Local Government Unit","City"]
[529,"CGO CALAPAN","CALAPAN","Local Government Unit","City"]
[496,"CGO CALBAYOG","CALBAYOG","Local Government Unit","City"]
[430,"CGO CALOOCAN, NCR","CALOOCAN","Local Government Unit","City"]
[481,"CGO CANLAON, NEGROS ORIENTAL","CANLAON","Local Government Unit","City"]
[1433,"CGO CARCAR, CEBU","CARCAR ","Local Government Unit","City"]
[1600,"CGO CATBALOGAN, SAMAR (WESTERN) ","CATBALOGAN","Local Government Unit","City"]
[475,"CGO CAUAYAN, ISABELA","CAUAYAN","Local Government Unit","City"]
[508,"CGO CAVITE CITY LGU","CAVITE","Local Government Unit","City"]
[464,"CGO CEBU","CEBU","Local Government Unit","City"]
[552,"CGO COTABATO, SULTAN KUDARAT","COTABATO","Local Government Unit","City"]
[1390,"CGO DANAO, CEBU","DANAO","Local Government Unit","City"]
[500,"CGO DAPITAN, ZAMBOANGA DEL NORTE","DAPITAN","Local Government Unit","City"]
[510,"CGO DASMARINAS, CAVITE","DASMARINAS","Local Government Unit","City"]
[542,"CGO DAVAO","DAVAO","Local Government Unit","City"]
[540,"CGO DIGOS","DIGOS","Local Government Unit","City"]
[501,"CGO DIPOLOG","DIPOLOG","Local Government Unit","City"]
[489,"CGO DUMAGUETE,  NEGROS ORIENTAL","DUMAGUETE ","Local Government Unit","City"]
[528,"CGO EL SALVADOR, MISAMIS ORIENTAL","EL SALVADOR","Local Government Unit","City"]
[440,"CGO ESCALANTE","ESCALANTE","Local Government Unit","City"]
[486,"CGO GAPAN, NUEVA ECIJA","GAPAN","Local Government Unit","City"]
[548,"CGO GENERAL SANTOS CITY ","GENERAL SANTOS","Local Government Unit","City"]
[530,"CGO GINGOOG","GINGOOG","Local Government Unit","City"]
[1473,"CGO GUIHULNGAN, NEGROS ORIENTAL","GUIHULNGAN","Local Government Unit","City"]
[442,"CGO HIMAMAYLAN","HIMAMAYLAN","Local Government Unit","City"]
[3112,"CGO ILAGAN (CAPITAL), ISABELA","ILAGAN","Local Government Unit","City"]
[516,"CGO ILIGAN","ILIGAN","Local Government Unit","City"]
[432,"CGO ILOILO CITY (CAPITAL)","ILOILO","Local Government Unit","City"]
[511,"CGO IMUS CITY LGU","IMUS","Local Government Unit","City"]
[538,"CGO IRIGA, CAMARINES SUR","IRIGA","Local Government Unit","City"]
[509,"CGO ISABELA, ZAMBOANGA SIBUGAY","ISABELA","Local Government Unit","City"]
[532,"CGO ISLAND GARDEN CITY OF SAMAL","SAMAL","Local Government Unit","City"]
[445,"CGO KABANKALAN, NEGROS OCCIDENTAL","KABANKALAN","Local Government Unit","City"]
[544,"CGO KIDAPAWAN , NORTH COTABATO","KIDAPAWAN","Local Government Unit","City"]
[452,"CGO LA CARLOTA, NEGROS OCCIDENTAL","LA CARLOTA","Local Government Unit","City"]
[2065,"CGO LAMITAN, BASILAN","LAMITAN","Local Government Unit","City"]
[457,"CGO LAOAG CITY (CAPITAL)","LAOAG","Local Government Unit","City"]
[471,"CGO LAPU-LAPU, CEBU","LAPU-LAPU","Local Government Unit","City"]
[434,"CGO LAS PIÑAS, NCR","LAS PIÑAS","Local Government Unit","City"]
[537,"CGO LEGAZPI, ALBAY","LEGAZPI","Local Government Unit","City"]
[533,"CGO LIGAO, ALBAY","LIGAO","Local Government Unit","City"]
[505,"CGO LIPA, BATANGAS","LIPA","Local Government Unit","City"]
[524,"CGO LUCENA , QUEZON","LUCENA","Local Government Unit","City"]
[498,"CGO MAASIN , SOUTHERN LEYTE","MAASIN","Local Government Unit","City"]
[436,"CGO MAKATI, NCR","MAKATI","Local Government Unit","City"]
[439,"CGO MALABON, NCR","MALABON","Local Government Unit","City"]
[512,"CGO MALAYBALAY","MALAYBALAY","Local Government Unit","City"]
[480,"CGO MALOLOS","MALOLOS","Local Government Unit","City"]
[441,"CGO MANDALUYONG, NCR","MANDALUYONG","Local Government Unit","City"]
[473,"CGO MANDAUE, CEBU","MANDAUE","Local Government Unit","City"]
[561,"CGO MARAWI, LANAO DEL SUR","MARAWI","Local Government Unit","City"]
[444,"CGO MARIKINA CITY","MARIKINA","Local Government Unit","City"]
[541,"CGO MASBATE CITY (CAPITAL)","MASBATE","Local Government Unit","City"]
[1846,"CGO MATI , DAVAO ORIENTAL","MATI","Local Government Unit","City"]
[482,"CGO MEYCAUAYAN, BULACAN","MEYCAUAYAN","Local Government Unit","City"]
[545,"CGO MUNTINLUPA, NCR","MUNTINLUPA","Local Government Unit","City"]
[539,"CGO NAGA, CAMARINES SUR","NAGA","Local Government Unit","City"]
[474,"CGO NAGA, CEBU","NAGA","Local Government Unit","City"]
[550,"CGO NAVOTAS, CITY","NAVOTAS","Local Government Unit","City"]
[499,"CGO OLONGAPO, ZAMBALES","OLONGAPO","Local Government Unit","City"]
[491,"CGO ORMOC","ORMOC","Local Government Unit","City"]
[518,"CGO OROQUIETA , MISAMIS OCCIDENTAL","OROQUIETA","Local Government Unit","City"]
[521,"CGO OZAMIS","OZAMIZ","Local Government Unit","City"]
[504,"CGO PAGADIAN , ZAMBOANGA DEL SUR","PAGADIAN","Local Government Unit","City"]
[488,"CGO PALAYAN , NUEVA ECIJA","PALAYAN","Local Government Unit","City"]
[536,"CGO PANABO, DAVAO DEL NORTE","PANABO","Local Government Unit","City"]
[426,"CGO PARAÑAQUE, NCR","PARAÑAQUE","Local Government Unit","City"]
[453,"CGO PASAY, NCR","PASAY","Local Government Unit","City"]
[427,"CGO PASIG","PASIG","Local Government Unit","City"]
[431,"CGO PASSI, ILOILO","PASSI","Local Government Unit","City"]
[3128,"CGO PUERTO PRINCESA","PUERTO PRINCESA","Local Government Unit","City"]
[531,"CGO PUERTO PRINCESA CITY LGU","PUERTO PRINCESA","Local Government Unit","City"]
[424,"CGO QUEZON","QUEZON CITY","Local Government Unit","City"]
[429,"CGO ROXAS , CAPIZ","ROXAS","Local Government Unit","City"]
[455,"CGO SAGAY, NEGROS OCCIDENTAL","SAGAY","Local Government Unit","City"]
[458,"CGO SAN CARLOS, NEGROS OCCIDENTAL","SAN CARLOS","Local Government Unit","City"]
[470,"CGO SAN CARLOS, PANGASINAN","SAN CARLOS","Local Government Unit","City"]
[484,"CGO SAN DEL MONTE CITY LGU","SAN DEL MONTE","Local Government Unit","City"]
[495,"CGO SAN FERNANDO","SAN FERNANDO","Local Government Unit","City"]
[490,"CGO SAN JOSE, NUEVA ECIJA","SAN JOSE","Local Government Unit","City"]
[428,"CGO SAN JUAN, NCR","SAN JUAN","Local Government Unit","City"]
[520,"CGO SAN PABLO, LAGUNA","SAN PABLO","Local Government Unit","City"]
[3122,"CGO SANTA ROSA, LAGUNA","SANTA ROSA CITY","Local Government Unit","City"]
[522,"CGO SANTA ROSA, NUEVA ECIJA","SANTA ROSA","Local Government Unit","City"]
[477,"CGO SANTIAGO","SANTIAGO","Local Government Unit","City"]
[492,"CGO SCIENCE  MUÑOZ, NUEVA ECIJA","SCIENCE CITY","Local Government Unit","City"]
[460,"CGO SILAY","SILAY","Local Government Unit","City"]
[447,"CGO SIPALAY, NEGROS OCCIDENTAL","SIPALAY","Local Government Unit","City"]
[543,"CGO SORSOGON CITY (CAPITAL)","SORSOGON","Local Government Unit","City"]
[555,"CGO SURIGAO , SURIGAO DEL NORTE","SURIGAO","Local Government Unit","City"]
[535,"CGO TABACO, ALBAY","TABACO","Local Government Unit","City"]
[560,"CGO TABUK","TABUK","Local Government Unit","City"]
[493,"CGO TACLOBAN","TACLOBAN","Local Government Unit","City"]
[551,"CGO TACURONG, SULTAN KUDARAT","TACURONG","Local Government Unit","City"]
[513,"CGO TAGAYTAY, CAVITE","TAGAYTAY","Local Government Unit","City"]
[462,"CGO TAGBILARAN, BOHOL","TAGBILARAN","Local Government Unit","City"]
[553,"CGO TAGUIG, NCR","TAGUIG","Local Government Unit","City"]
[534,"CGO TAGUM , DAVAO DEL NORTE","TAGUM","Local Government Unit","City"]
[449,"CGO TALISAY","TALISAY","Local Government Unit","City"]
[503,"CGO TANAUAN CITY LGU","TANAUAN","Local Government Unit","City"]
[557,"CGO TANDAG , SURIGAO DEL SUR","TANDAG","Local Government Unit","City"]
[523,"CGO TANGUB, MISAMIS OCCIDENTAL","TANGUB","Local Government Unit","City"]
[487,"CGO TANJAY, NEGROS ORIENTAL","TANJAY","Local Government Unit","City"]
[497,"CGO TARLAC CITY (CAPITAL)","TARLAC","Local Government Unit","City"]
[526,"CGO TAYABAS, QUEZON","TAYABAS","Local Government Unit","City"]
[476,"CGO TOLEDO, CEBU","TOLEDO","Local Government Unit","City"]
[515,"CGO TRECE MARTIRES , CAVITE","TRECE MARTIRES","Local Government Unit","City"]
[472,"CGO TUGUEGARAO , CAGAYAN","TUGUEGARAO","Local Government Unit","City"]
[467,"CGO URDANETA, PANGASINAN","URDANETA","Local Government Unit","City"]
[514,"CGO VALENCIA, BUKIDNON","VALENCIA","Local Government Unit","City"]
[451,"CGO VALENZUELA, NCR","VALENZUELA","Local Government Unit","City"]
[450,"CGO VICTORIAS, NEGROS OCCIDENTAL","VICTORIAS","Local Government Unit","City"]
[461,"CGO VIGAN","VIGAN","Local Government Unit","City"]
[506,"CGO ZAMBOANGA","ZAMBOANGA","Local Government Unit","City"]
[2402,"CITY OF KORONADAL WATER DISTRICT","CKWD","Executive Branch","LWD"]
[3227,"CITY OF SAN FERNANDO WATER DISTRICT","CSFWD","Executive Branch","LWD"]
[3214,"CITY OF SAN JOSE DELMONTE WATER DISTRICT","SJDM","Local Government Unit","City"]
[2567,"CITY PROSECUTORS OFFICE","CPO-RO12","Judiciary","MTC"]
[144,"CIVIL AERONAUTICS BOARD","CAB","Executive Branch","Attached"]
[139,"CIVIL AVIATION AUTHORITY OF THE PHILIPPINES","CAAP","Executive Branch","Attached"]
[1,"CIVIL SERVICE COMMISSION","CSCOM","Constitutional Offices","Proper"]
[2993,"CLARIN WATER DISTRICT","CLARIN","Executive Branch","LWD"]
[2819,"CLARK DEVELOPMENT CORPORATION","CDC","Executive Branch","GFI/GOCC"]
[2828,"CLARK INTERNATIONAL AIRPORT CORPORATION","CIAC","Executive Branch","GFI/GOCC"]
[2644,"CLAVER WATER DISTRICT","CWD","Executive Branch","LWD"]
[2662,"CLAVERIA WATER DISTRICT","CWD","Executive Branch","LWD"]
[3039,"CLAVERIA WATER DISTRICT","CLAVERIA","Executive Branch","LWD"]
[2978,"CLIMATE CHANGE COMMISSION","CCC","Executive Branch","Attached"]
[248,"COMMISSION ON APPOINTMENTS","CA","Constitutional Offices","Proper"]
[249,"COMMISSION ON AUDIT","COA","Constitutional Offices","Proper"]
[2,"COMMISSION ON ELECTIONS","COMELEC","Constitutional Offices","Proper"]
[169,"COMMISSION ON FILIPINO LANGUAGES","CFL","Executive Branch","Attached"]
[40,"COMMISSION ON FILIPINOS OVERSEAS","CFO","Executive Branch","Attached"]
[168,"COMMISSION ON HIGHER EDUCATION","CHED","Executive Branch","Attached"]
[4,"COMMISSION ON HUMAN RIGHTS OF THE PHILIPPINES","CHR","Constitutional Offices","Proper"]
[148,"COMMISSION ON POPULATION","POPCOM","Executive Branch","Attached"]
[78,"COMMISSION ON THE SETTLEMENT OF LAND PROBLEMS","COSLAP","Executive Branch","Attached"]
[2763,"CONCEPCION WATER DISTRICT","CWD","Executive Branch","LWD"]
[3244,"CONNER DISTRICT HOSPITAL","CDH","Executive Branch","NGA"]
[267,"CONSTRUCTION INDUSTRY ARBITRATION COMMISSION","CIAC","Executive Branch","Attached"]
[131,"CONSTRUCTION INDUSTRY AUTHORITY OF THE PHILIPPINES","CIAP","Executive Branch","Attached"]
[127,"CONSTRUCTION MANPOWER DEVELOPMENT FOUNDATION","CMDF","Executive Branch","Attached"]
[159,"COOPERATIVE DEVELOPMENT AUTHORITY","CDA","Executive Branch","Attached"]
[null,"COORDINATING AND DEVELOPMENT OFFICE - BANGSAMORO YOUTH AFFAIRS","CDOFBYA"]
[3269,"CORAZON LOCSIN MONTELIBANO MEMORIAL REGIONAL HOSPITAL","CLMMRH","Executive Branch","NGA"]
[2678,"CORDON WATER DISTRICT","CWD","Executive Branch","LWD"]
[2820,"CORREGIDOR FOUNDATION INCORPORATED","CFI","Executive Branch","GFI/GOCC"]
[2292,"COTABATO CITY STATE POLYTECHNIC COLLEGE","CCSPC","State Universities and Colleges","Proper"]
[3063,"COTABATO CITY WATER DISTRICT","CCWD","Executive Branch","LWD"]
[2293,"COTABATO FOUNDATION COLLEGE OF SCIENCE AND TECHNOLOGY","CFCST","State Universities and Colleges","Proper"]
[187,"COTTAGE INDUSTRY TECHNOLOGY CENTER","CITC","Executive Branch","Attached"]
[188,"COTTON DEVELOPMENT ADMINISTRATION","CODA","Executive Branch","Attached"]
[118,"COUNCIL FOR THE WELFARE OF CHILDREN","CWC","Executive Branch","Attached"]
[263,"COURT OF APPEALS","CA","Judiciary","CA"]
[3193,"COURT OF TAX APPEALS","CTA","Judiciary","SC"]
[2721,"CREDIT INFORMATION CORPORATION","CIC","Executive Branch","GFI/GOCC"]
[2927,"CULASI WATER DISTRICT","CULASI","Executive Branch","LWD"]
[2878,"CULION WATER DISTRICT","CULION","Executive Branch","LWD"]
[189,"CULTURAL CENTER OF THE PHILIPPINES","CCP","Executive Branch","GFI/GOCC"]
[2440,"CURRIMAO NATIONAL HIGH SCHOOL","CNHS","Executive Branch","NGA"]
[2725,"CUYAPO WATER DISTRICT","CUYAPO","Executive Branch","LWD"]
[549,"DAGUPAN CITY, PANGASINAN","DAGUPAN","Local Government Unit","City"]
[2480,"DAGUPAN WATER DISTRICT","DCWD","Executive Branch","LWD"]
[3000,"DALAGUETE WATER DISTRICT","DWD","Executive Branch","LWD"]
[72,"DANGEROUS DRUGS BOARD","DDB","Executive Branch","Attached"]
[2932,"DAO WATER DISTRICT","DAO","Executive Branch","LWD"]
[2535,"DAPITAN CITY WATER DISTRICT","DCWD","Executive Branch","LWD"]
[2520,"DARAGA WATER DISTRICT","DWD","Executive Branch","LWD"]
[2851,"DASMARIÑAS WATER DISTRICT","DASMARIÑAS","Executive Branch","LWD"]
[3053,"DAVAO CITY WATER DISTRICT","DCWD","Executive Branch","LWD"]
[2287,"DAVAO DEL NORTE STATE COLLEGE","DNSC","State Universities and Colleges","Proper"]
[2288,"DAVAO ORIENTAL STATE COLLEGE OF SCIENCE AND TECHNOLOGY","DOSCST","State Universities and Colleges","Proper"]
[2734,"DBP DATA CENTER, INCORPORATED","DCI","Executive Branch","GFI/GOCC"]
[2733,"DBP LEASING CORPORATION","DLC","Executive Branch","GFI/GOCC"]
[2737,"DBP MANAGEMENT CORPORATION","DBPMC","Executive Branch","GFI/GOCC"]
[2645,"DEL CARMEN WATER DISTRICT","DCWD","Executive Branch","LWD"]
[2312,"DEL GALLEGO WATER DISTRICT","CAMARINES SUR","Executive Branch","LWD"]
[2679,"DELFIN ALBANO WATER DISTRICT","DAWD","Executive Branch","LWD"]
[3156,"DEPARTMENT LEGISLATIVE LIAISON OFFICE","DLLO","Executive Branch","Attached"]
[2366,"DEPARTMENT OF AGRARIAN REFORM","DAR","Executive Branch","NGA"]
[7,"DEPARTMENT OF AGRICULTURE","DA","Executive Branch","NGA"]
[null,"DEPARTMENT OF AGRICULTURE AND FISHERIES","DAF"]
[20,"DEPARTMENT OF BUDGET AND MANAGEMENT","DBM","Executive Branch","NGA"]
[21,"DEPARTMENT OF EDUCATION","DEPED","Executive Branch","NGA"]
[22,"DEPARTMENT OF ENERGY","DOE","Executive Branch","NGA"]
[28,"DEPARTMENT OF ENVIRONMENT AND NATURAL RESOURCES","DENR","Executive Branch","NGA"]
[29,"DEPARTMENT OF FINANCE","DOF","Executive Branch","NGA"]
[39,"DEPARTMENT OF FOREIGN AFFAIRS","DFA","Executive Branch","NGA"]
[41,"DEPARTMENT OF HEALTH","DOH","Executive Branch","NGA"]
[417,"DEPARTMENT OF INFORMATION AND COMMUNICATION TECHNOLOGY ","DICT","Executive Branch","Attached"]
[71,"DEPARTMENT OF JUSTICE","DOJ","Executive Branch","NGA"]
[83,"DEPARTMENT OF LABOR AND EMPLOYMENT","DOLE","Executive Branch","NGA"]
[90,"DEPARTMENT OF NATIONAL DEFENSE","DND","Executive Branch","NGA"]
[95,"DEPARTMENT OF PUBLIC WORKS AND HIGHWAYS","DPWH","Executive Branch","NGA"]
[98,"DEPARTMENT OF SCIENCE AND TECHNOLOGY","DOST","Executive Branch","NGA"]
[117,"DEPARTMENT OF SOCIAL WELFARE AND DEVELOPMENT","DSWD","Executive Branch","NGA"]
[66,"DEPARTMENT OF THE INTERIOR AND LOCAL GOVERNMENT","DILG","Executive Branch","NGA"]
[121,"DEPARTMENT OF TOURISM","DOT","Executive Branch","NGA"]
[125,"DEPARTMENT OF TRADE AND INDUSTRY","DTI","Executive Branch","NGA"]
[137,"DEPARTMENT OF TRANSPORTATION","DOTR","Executive Branch","NGA"]
[129,"DESIGN CENTER OF THE PHILIPPINES","DCP","Executive Branch","Attached"]
[190,"DEVELOPMENT ACADEMY OF THE PHILIPPINES","DAP","Executive Branch","GFI/GOCC"]
[191,"DEVELOPMENT BANK OF THE PHILIPPINES","DBP","Executive Branch","GFI/GOCC"]
[2688,"DIADI WATER DISTRICT","DIADI","Executive Branch","LWD"]
[3054,"DIGOS WATER DISTRICT","DIGOS","Executive Branch","LWD"]
[2694,"DINALUPIHAN WATER DISTRICT","DINALUPIHAN","Executive Branch","LWD"]
[2947,"DINGLE-POTOTAN WATER DISTRICT","DPWD","Executive Branch","LWD"]
[2452,"DINGRAS WATER DISTRICT","DWD","Executive Branch","LWD"]
[2798,"DIPACULAO WATER DISTRICT","DIPACULAO","Executive Branch","LWD"]
[2536,"DIPOLOG CITY WATER DISTRICT","DCWD","Executive Branch","LWD"]
[2629,"DOLORES WATER DISTRICT","DWD","Executive Branch","LWD"]
[2367,"DON CARLOS WATER DISTRICT","DCWD","Executive Branch","LWD"]
[2463,"DON FRANCISCA LACSAMANA DE ORTEGA NATIONAL HIGH SCHOOL","DFLDONHS","Executive Branch","NGA"]
[2220,"DON HONORIO VENTURA TECHNOLOGICAL STATE UNIVERSITY","DHVTSU","State Universities and Colleges","Proper"]
[2204,"DON MARIANO MARCOS MEMORIAL STATE UNIVERSITY","DMMMSU","State Universities and Colleges","Proper"]
[2502,"DON RAMON E. COSTALES MEMORIAL NATIONAL HIGH SCHOOL","DRECMNHS","Executive Branch","NGA"]
[2913,"DONSOL WATER DISTRICT","DONSOL","Executive Branch","LWD"]
[2242,"DR. EMILIO B. ESPINOSA SR. MEMORIAL STATE COLLEGE OF AGRICULTURE AND TECHNOLOGY","DEBESMSCAT","State Universities and Colleges","Proper"]
[2543,"DR. JOSE RIZAL MEMORIAL HOSPITAL-DAPITAN CITY","DJRMH","Executive Branch","NGA"]
[3251,"DR. PAULINO J. GARCIA MEMORIAL RESEARCH AND MEDICAL CENTER","PGMRMC","Executive Branch","NGA"]
[2948,"DUEÑAS WATER DISTRICT","DWD","Executive Branch","LWD"]
[3009,"DUMAGUETE CITY WATER DISTRICT","DCWD","Executive Branch","LWD"]
[3253,"DUMANGAS-BAROTAC NUEVO WATER DISTRICT","DBNWD","Executive Branch","LWD"]
[2933,"DUMARAO WATER DISTRICT","DUMARAO","Executive Branch","LWD"]
[2821,"DUTY FREE PHILIPPINES CORPORATION","DFP","Executive Branch","GFI/GOCC"]
[2450,"DWFB-RADYO NG BAYAN","DWFB","Executive Branch","GFI/GOCC"]
[2527,"DXMR - RADYO NG BAYAN","DXMR-RB","Executive Branch","NGA"]
[3136,"EARLY CHILDHOOD CARE AND DEVELOPMENT COUNCIL","ECCDC","Executive Branch","Attached"]
[46,"EAST AVENUE MEDICAL CENTER","EAMC","Executive Branch","NGA"]
[2503,"EASTERN PANGASINAN AGRICULTURAL COLLEGE","EPAC","State Universities and Colleges","Proper"]
[2262,"EASTERN SAMAR STATE COLLEGE","ESSU","State Universities and Colleges","Proper"]
[3262,"EASTERN VISAYAS REGIONAL MEDICAL CENTER","EVRMC","Executive Branch","NGA"]
[2263,"EASTERN VISAYAS STATE UNIVERSITY","EVSU","State Universities and Colleges","Proper"]
[2615,"ELADIO T. BALITE MEM. SCHOOL OF FISHERIES","ETBMSF","State Universities and Colleges","Proper"]
[192,"EMPLOYEES  COMPENSATION COMMISSION","ECC","Executive Branch","Attached"]
[160,"ENERGY REGULATORY COMMISSION","ERC","Executive Branch","Attached"]
[406,"ENVIRONMENTAL MANAGEMENT BUREAU","EMB","Executive Branch","Attached"]
[2965,"ESCALANTE WATER DISTRICT","EWD","Executive Branch","LWD"]
[2949,"ESTANCIA WATER DISTRICT","EWD","Executive Branch","LWD"]
[2181,"EULOGIO “AMANG” RODRIGUEZ INSTITUTE OF TECHNOLOGY","EARIST","State Universities and Colleges","Proper"]
[3245,"FAR NORTH LUZON GENERAL HOSPITAL","FNLGH","Executive Branch","NGA"]
[11,"FERTILIZER AND PESTICIDE AUTHORITY","FPA","Executive Branch","Attached"]
[2980,"FILM DEVELOPMENT COUNCIL OF THE PHILIPPINES","FDCP","Executive Branch","Attached"]
[2829,"FIRST CAVITE INDUSTRIAL ESTATE, INCORPORATED ","FCIE","Executive Branch","GFI/GOCC"]
[2750,"FLORIDABLANCA WATER DISTRICT","FWD","Executive Branch","LWD"]
[54,"FOOD AND DRUG ADMINISTRATION","FDA","Executive Branch","Attached"]
[114,"FOOD AND NUTRITION RESEARCH INSTITUTE","FNRI","Executive Branch","Attached"]
[2794,"FOOD TERMINAL, INCORPORATED","FTI","Executive Branch","GFI/GOCC"]
[3167,"FOREIGN SERVICE INSTITUTE","FSI","Executive Branch","Attached"]
[107,"FOREST PRODUCTS RESEARCH AND DEVELOPMENT INSTITUTE","FPRDI","Executive Branch","Attached"]
[2835,"G.Y. REAL ESTATE, INCORPORATED","GYREI","Executive Branch","GFI/GOCC"]
[2727,"GABALDON WATER DISTRICT","GABALDON","Executive Branch","LWD"]
[2425,"GABRIELA SILANG GENERAL HOSPITAL","GSGH","Executive Branch","NGA"]
[2616,"GALA VOCATIONAL SCHOOL","GVS","State Universities and Colleges","Proper"]
[2603,"GAMAY DISTRICT HOSPITAL","GDH","Executive Branch","NGA"]
[2981,"GAMES AND AMUSEMENTS BOARD","GAB","Executive Branch","Attached"]
[3200,"GAMU WATER DISTRICT","GWD","Executive Branch","LWD"]
[2726,"GAPAN WATER DISTRICT","GWD","Executive Branch","LWD"]
[130,"GARMENTS AND TEXTILE EXPORT BOARD","GTEB","Executive Branch","Attached"]
[2663,"GATTARAN WATER DISTRICT","GWD","Executive Branch","LWD"]
[2604,"GB TAN DISTRICT HOSPITAL","GBTDH","Executive Branch","NGA"]
[3061,"GEN SANTOS CITY WATER DISTRICT","GSCWD","Executive Branch","LWD"]
[2852,"GEN. E. AGUINALDO WATER DISTRICT","GEAWD","Executive Branch","LWD"]
[2853,"GEN. M ALVAREZ WATER DISTRICT","GMAWD","Executive Branch","LWD"]
[2728,"GEN. M. NATIVIDAD WATER DISTRICT","GMNWD","Executive Branch","LWD"]
[3013,"GEN. MCARTHUR WATER DISTRICT","GMWD","Executive Branch","LWD"]
[2729,"GEN. TINIO WATER DISTRICT","GTWD","Executive Branch","LWD"]
[3221,"GEN.NATIVIDAD WATER DISTRICT","GNWD","Executive Branch","LWD"]
[3222,"GEN.TINIO WATER DISTRICT","GTWD","Executive Branch","LWD"]
[2393,"GENERAL SANTOS CITY WATER DISTRICT","GSCWD","Executive Branch","LWD"]
[2764,"GERONA WATER DISTRICT","GERONA","Executive Branch","LWD"]
[3040,"GINGOOG CITY WATER DISTRICT","GCWD","Executive Branch","LWD"]
[2776,"GIRL SCOUTS OF THE PHILIPPINES","GSP","Executive Branch","GFI/GOCC"]
[2394,"GLAN WATER DISTRICT","GWD","Executive Branch","LWD"]
[2664,"GONZAGA WATER DISTRICT","GWD","Executive Branch","LWD"]
[2982,"GOVERNANCE COMMISSION FOR GOCCS","GCG","Executive Branch","Attached"]
[91,"GOVERNMENT ARSENAL","GA","Executive Branch","Attached"]
[3196,"GOVERNMENT PROCUREMENT POLICY BOARD","GPPB","Executive Branch","Attached"]
[193,"GOVERNMENT SERVICE INSURANCE SYSTEM","GSIS","Executive Branch","GFI/GOCC"]
[2745,"GSIS FAMILY BANK","GSIS-FB","Executive Branch","GFI/GOCC"]
[2751,"GUAGUA WATER DISTRICT","GWD","Executive Branch","LWD"]
[2358,"GUBAT WATER DISTRICT","GWD","Executive Branch","LWD"]
[2708,"GUIGUINTO WATER DISTRICT","GUIGUINTO","Executive Branch","LWD"]
[2248,"GUIMARAS STATE COLLEGE","GSC","State Universities and Colleges","Proper"]
[2730,"GUIMBA WATER DISTRICT","GUIMBA","Executive Branch","LWD"]
[2885,"GUINAYANGAN WATER DISTRICT","GWD","Executive Branch","LWD"]
[3014,"GUIUAN WATER DISTRICT","GWD","Executive Branch","LWD"]
[2886,"GUMACA WATER DISTRICT","GUMACA","Executive Branch","LWD"]
[2560,"HADJI BUTU SCHOOL OF ARTS AND TRADES","HBSAT","State Universities and Colleges","Proper"]
[3055,"HAGONOY WATER DISTRICT","HWD","Executive Branch","LWD"]
[2928,"HAMTIC WATER DISTRICT","HWD","Executive Branch","LWD"]
[23,"HEALTH AND NUTRITION CENTER","HNC","Executive Branch","Attached"]
[65,"HEALTH HUMAN RESOURCE DEVELOPMENT BUREAU","HHRDB","Executive Branch","Attached"]
[64,"HEALTH POLICY DEVELOPMENT AND PLANNING BUREAU","HPDPB","Executive Branch","Attached"]
[2695,"HERMOSA WATER DISTRICT","HERMOSA","Executive Branch","LWD"]
[2966,"HIMAMAYLAN WATER DISTRICT","HWD","Executive Branch","LWD"]
[2596,"HINATUAN WATER DISTRICT","HWD","Executive Branch","LWD"]
[194,"HOME DEVELOPMENT MUTUAL FUND","HDMF","Executive Branch","GFI/GOCC"]
[195,"HOME GUARANTY CORPORATION","HGC","Executive Branch","GFI/GOCC"]
[152,"HOUSE OF REPRESENTATIVES","HOR","Legislative Branch","House"]
[3259,"HOUSE OF REPRESENTATIVES ELECTORAL TRIBUNAL","HRET","Legislative Branch","House"]
[167,"HOUSING AND LAND USE REGULATORY BOARD","HLURB","Executive Branch","Attached"]
[161,"HOUSING AND URBAN DEVELOPMENT COORDINATING COUNCIL","HUDCC","Executive Branch","Attached"]
[2795,"HUMAN SETTLEMENTS DEVELOPMENT CORPORATION","HSDC","Executive Branch","GFI/GOCC"]
[2781,"IBA WATER DISTRICT","IWD","Executive Branch","LWD"]
[2916,"IBAJAY WATER DISTRICT","IWD","Executive Branch","LWD"]
[2201,"IFUGAO STATE UNIVERSITY","IFSU","State Universities and Colleges","Proper"]
[2029,"IFUGAO WATER DISTRICT","IFUGAO","Executive Branch","LWD"]
[3050,"IGACOS WATER DISTRICT","IWD","Executive Branch","LWD"]
[2950,"IGBARAS WATER DISTRICT","IWD","Executive Branch","LWD"]
[2681,"ILAGAN WATER DISTRICT","IWD","Executive Branch","LWD"]
[2441,"ILOCOS NORTE AGRICULTURAL COLLEGE","INAC","State Universities and Colleges","Proper"]
[2438,"ILOCOS NORTE COLLEGE OF ARTS AND TRADES","INCAT","State Universities and Colleges","Proper"]
[2439,"ILOCOS NORTE NATIONAL HIGH SCHOOL","INNHS","Executive Branch","NGA"]
[2442,"ILOCOS NORTE REGIONAL SCHOOL OF FISHERIES","INRSF","State Universities and Colleges","Proper"]
[2451,"ILOCOS NORTE WATER DISTRICT","INWD","Executive Branch","LWD"]
[2422,"ILOCOS SUR NATIONAL HIGH SCHOOL","ISNHS","Executive Branch","NGA"]
[2205,"ILOCOS SUR POLYTECHNIC STATE COLLEGE","ISPSC","State Universities and Colleges","Proper"]
[2967,"ILOG WATER DISTRICT","IWD","Executive Branch","LWD"]
[3268,"ILOILO SCIENCE AND TECHNOLOGY UNIVERSITY","ISATU","State Universities and Colleges","Proper"]
[2249,"ILOILO STATE COLLEGE OF FISHERIES","ISCOF","State Universities and Colleges","Proper"]
[2854,"INDANG WATER DISTRICT","IWD","Executive Branch","LWD"]
[104,"INDUSTRIAL TECHNOLOGY DEVELOPMENT INSTITUTE","ITDI","Executive Branch","Attached"]
[2887,"INFANTA-GEN. NAKAR WATER DISTRICT","IGNWD","Executive Branch","LWD"]
[84,"INSTITUTE FOR LABOR STUDIES","ILS","Executive Branch","Attached"]
[288,"INSTRUCTIONAL MATERIALS COUNCIL SECRETARIAT","IMCS","Executive Branch","Attached"]
[31,"INSURANCE COMMISSION","IC","Executive Branch","Attached"]
[136,"INTELLECTUAL PROPERTY OFFICE","IPO","Executive Branch","Attached"]
[2834,"INTERCONTINENTAL BROADCASTING CORPORATION","IBC","Executive Branch","GFI/GOCC"]
[120,"INTER-COUNTRY ADOPTION BOARD","ICAB","Executive Branch","Attached"]
[122,"INTRAMUROS ADMINISTRATION","IA","Executive Branch","Attached"]
[2534,"IPIL-TITAY WATER DISTRICT","ITWD","Executive Branch","LWD"]
[2313,"IRIGA CITY WATER DISTRICT","CAMARINES SUR","Executive Branch","LWD"]
[2357,"IROSIN WATER DISTRICT","IWD","Executive Branch","LWD"]
[2626,"ISABEL WATER DISTRICT","IWD","Executive Branch","LWD"]
[2529,"ISABELA CITY WATER DISTRICT","ICWD","Executive Branch","LWD"]
[2212,"ISABELA STATE UNIVERSITY","ISU","State Universities and Colleges","Proper"]
[2020,"ITOGON WATER DISTRICT","ITOGON","Executive Branch","LWD"]
[2904,"J. PANGANIBAN WATER DISTRICT","JPWD","Executive Branch","LWD"]
[2731,"JAEN WATER DISTRICT","JWD","Executive Branch","LWD"]
[2938,"JAMINDAN WATER DISTRICT","JWD","Executive Branch","LWD"]
[2951,"JANIUAY WATER DISTRICT","JWD","Executive Branch","LWD"]
[3023,"JARO WATER DISTRICT","JWD","Executive Branch","LWD"]
[2822,"JOHN HAY MANAGEMENT CORPORATION","JHMC","Executive Branch","GFI/GOCC"]
[2559,"JOLO MAINLAND WATER DISTRICT","JMWD","Executive Branch","LWD"]
[3240,"JOSE B. LINGAD MEMORIAL REGIONAL HOSPITAL","JBLMRH","Executive Branch","NGA"]
[51,"JOSE FABELLA MEMORIAL MEDICAL CENTER","JFMMC","Executive Branch","NGA"]
[2516,"JOSE PANGANIBAN WATER DISTRICT","JPWD","Executive Branch","LWD"]
[52,"JOSE REYES MEMORIAL MEDICAL CENTER","JRMMC","Executive Branch","NGA"]
[2275,"JOSE RIZAL MEMORIAL STATE COLLEGE","JRMSU","State Universities and Colleges","Proper"]
[2544,"JOSE RIZAL MEMORIAL STATE UNIVERSITY-DAPITAN CITY","JRMSC","State Universities and Colleges","Proper"]
[397,"JOSE RODRIGUEZ MEMORIAL HOSPITAL","JRMH","Executive Branch","Attached"]
[2274,"JOSEFINA H. CERILLES STATE COLLEGE","JHCSC","State Universities and Colleges","Proper"]
[2504,"JUAN G. MACARAEG NATIONAL HIGH SCHOOL","JGMNHS","Executive Branch","NGA"]
[2385,"KABACAN WATER DISTRICT","KWD","Executive Branch","LWD"]
[2968,"KABANKALAN WATER DISTRICT","KWD","Executive Branch","LWD"]
[2397,"KALAMANSIG WATER DISTRICT","KWD","Executive Branch","LWD"]
[2918,"KALIBO WATER DISTRICT","KWD","Executive Branch","LWD"]
[2202,"KALINGA-APAYAO STATE COLLEGE","KASC","State Universities and Colleges","Proper"]
[2796,"KAMAYAN REALTY CORPORATION","KRC","Executive Branch","GFI/GOCC"]
[3046,"KAPALONG WATER DISTRICT","KAPALONG","Executive Branch","LWD"]
[2375,"KAPATAGAN WATER DISTRICT","KWD","Executive Branch","LWD"]
[2376,"KAUSWAGAN WATER DISTRICT","KWD","Executive Branch","LWD"]
[2368,"KIBAWE WATER DISTRICT","KWD","Executive Branch","LWD"]
[3056,"KIBLAWAN WATER DISTRICT","KIBLAWAN","Executive Branch","LWD"]
[2377,"KOLAMBUGAN WATER DISTRICT","KWD","Executive Branch","LWD"]
[2979,"KOMISYON NG WIKANG FILIPINO","KWF","Executive Branch","Attached"]
[2531,"KUMALARANG WATER DISTRICT","KWD","Executive Branch","LWD"]
[2969,"LA CARLOTA CITY WATER DISTRICT","LCCWD","Executive Branch","LWD"]
[2970,"LA CASTELLANA WATER DISTRICT","LCWD","Executive Branch","LWD"]
[2024,"LA TRINIDAD WATER DISTRICT","LA TRINIDAD","Executive Branch","LWD"]
[2465,"LA UNION MEDICAL CENTER","LUMC","Executive Branch","GFI/GOCC"]
[2462,"LA UNION NATIONAL HIGH SCHOOL","LUNHS","Executive Branch","NGA"]
[3034,"LABANGAN WATER DISTRICT","LWD","Executive Branch","LWD"]
[2542,"LABASON WATER DISTRICT","LWD","Executive Branch","LWD"]
[2628,"LAGANGILANG WATER DISTRICT","LAGANGILANG","Executive Branch","LWD"]
[196,"LAGUNA LAKE DEVELOPMENT AUTHORITY","LLDA","Executive Branch","GFI/GOCC"]
[2228,"LAGUNA STATE POLYTECHNIC UNIVERSITY","LSPU","State Universities and Colleges","Proper"]
[2863,"LAGUNA WATER DISTRICT","LWD","Executive Branch","LWD"]
[2665,"LAL-LO WATER DISTRICT","LWD","Executive Branch","LWD"]
[2952,"LAMBUNAO WATER DISTRICT","LWD","Executive Branch","LWD"]
[2562,"LAMITAN CITY WATER DISTRICT","LCWD","Executive Branch","LWD"]
[2752,"LAND BANK COUNTRYSIDE DEVELOPMENT FOUNDATION, INCORPORATED","LCDFI","Executive Branch","GFI/GOCC"]
[197,"LAND BANK OF THE PHILIPPINES","LBP","Executive Branch","GFI/GOCC"]
[3215,"LAND MANAGEMENT BUREAU","LMB","Executive Branch","Attached"]
[76,"LAND REGISTRATION AUTHORITY","LRA","Executive Branch","Attached"]
[143,"LAND TRANSPORTATION FRANCHISING AND REGULATORY BOARD","LTFRB","Executive Branch","Attached"]
[138,"LAND TRANSPORTATION OFFICE","LTO","Executive Branch","Attached"]
[2574,"LAOANG WATER DISTRICT","LWD","Executive Branch","LWD"]
[2617,"LAPINIG AGRO-INDUSTRIAL SCHOOL","LAIS","State Universities and Colleges","Proper"]
[3035,"LAPUYAN WATER DISTRICT","LAPUYAN","Executive Branch","LWD"]
[2618,"LAS NAVAS AGRO-INDUSTRIAL SCHOOL","LNAIS","State Universities and Colleges","Proper"]
[3202,"LAS PIÑAS GENERAL HOSPITAL AND SATELLITE TRAUMA CENTER","LPGH & STC","Executive Branch","NGA"]
[2666,"LASAM WATER DISTRICT","LWD","Executive Branch","LWD"]
[2757,"LBP INSURANCE BROKERAGE, INCORPORATED","LIBI","Executive Branch","GFI/GOCC"]
[2765,"LBP LEASING CORPORATION","LLC","Executive Branch","GFI/GOCC"]
[2754,"LBP RESOURCES AND DEVELOPMENT CORPORATION","LBRDC","Executive Branch","GFI/GOCC"]
[2398,"LEBAK WATER DISTRICT","LWD","Executive Branch","LWD"]
[2522,"LEGAZPI CITY WATER DISTRICT","LCWD","Executive Branch","LWD"]
[2902,"LEGAZPI WATER DISTRICT","LEGAZPI","Executive Branch","LWD"]
[2838,"LEMERY WATER DISTRICT","LEMERY","Executive Branch","LWD"]
[2953,"LEMERY WATER DISTRICT","LWD","Executive Branch","LWD"]
[2954,"LEON WATER DISTRICT","LEON","Executive Branch","LWD"]
[3024,"LEYTE METRO WATER DISTRICT","LMWD","Executive Branch","LWD"]
[2264,"LEYTE NORMAL UNIVERSITY","LNU","State Universities and Colleges","Proper"]
[null,"LGU SIASI, SULU","SIASI","Local Government Unit","Province"]
[3247,"LIAN WATER DISTRICT","LWD","Executive Branch","LWD"]
[2595,"LIANGA WATER DISTRICT","LWD","Executive Branch","LWD"]
[2919,"LIBACAO WATER DISTRICT","LIBACAO","Executive Branch","LWD"]
[2314,"LIBMANAN WATER DISTRICT","CAMARINES SUR","Executive Branch","LWD"]
[2732,"LICAB WATER DISTRICT","LICAB","Executive Branch","LWD"]
[2505,"LICIANO M. MILLAN NATIONAL HIGH SCHOOL","LMMNHS","Executive Branch","NGA"]
[2523,"LIGAO CITY WATER DISTRICT","LCWD","Executive Branch","LWD"]
[2903,"LIGAO-OAS WATER DISTRICT","LOWD","Executive Branch","LWD"]
[198,"LIGHT RAIL TRANSIT AUTHORITY","LRTA","Executive Branch","GFI/GOCC"]
[2537,"LILOY WATER DISTRICT","LWD","Executive Branch","LWD"]
[2696,"LIMAY WATER DISTRICT","LIMAY","Executive Branch","LWD"]
[2378,"LINAMON WATER DISTRICT","LWD","Executive Branch","LWD"]
[2481,"LINGAYEN WATER DISTRICT","LWD","Executive Branch","LWD"]
[2653,"LINGIG WATER DISTRICT","LWD","Executive Branch","LWD"]
[13,"LIVESTOCK DEVELOPMENT COUNCIL (Already dissolved and change to PCAF)","LDC","Executive Branch","Attached"]
[3015,"LLORENTE WATER DISTRICT","LWD","Executive Branch","LWD"]
[2840,"LOBO WATER DISTRICT","LOBO","Executive Branch","LWD"]
[67,"LOCAL GOVERNMENT ACADEMY","LGA","Executive Branch","Attached"]
[199,"LOCAL WATER UTILITIES ADMINISTRATION","LWUA","Executive Branch","GFI/GOCC"]
[2888,"LOPEZ WATER DISTRICT","LOPEZ","Executive Branch","LWD"]
[2870,"LUBANG WATER DISTRICT","LUBANG","Executive Branch","LWD"]
[2753,"LUBAO WATER DISTRICT","LWD","Executive Branch","LWD"]
[3246,"LUIS HORA MEMORIAL HOSPITAL","LHMH","Executive Branch","NGA"]
[2680,"LUNA WATER DISTRICT","LWD","Executive Branch","LWD"]
[200,"LUNG CENTER OF THE PHILIPPINES","LCP","Executive Branch","GFI/GOCC"]
[3205,"LUPAO WATER DISTRICT","LWD","Executive Branch","LWD"]
[3057,"LUPON WATER DISTRICT","LUPON","Executive Branch","LWD"]
[2415,"LUSSOC NATIONAL HIGHSCHOOL","LNHS","Executive Branch","NGA"]
[3239,"MAASIM WATER DISTRICT","MWD","Executive Branch","LWD"]
[2579,"MAASIN WATER DISTRICT","MWD","Executive Branch","LWD"]
[2755,"MABALACAT WATER DISTRICT","MABALACAT","Executive Branch","LWD"]
[2841,"MABINI WATER DISTRICT","MABINI","Executive Branch","LWD"]
[2864,"MABITAC WATER DISTRICT","MWD","Executive Branch","LWD"]
[2756,"MACABEBE WATER DISTRICT","MACABEBE","Executive Branch","LWD"]
[2889,"MACALELON WATER DISTRICT","MACALELON","Executive Branch","LWD"]
[201,"MACTAN-CEBU INTERNATIONAL AIRPORT AUTHORITY","MCIAA","Executive Branch","GFI/GOCC"]
[2691,"MADDELA WATER DISTRICT","MADDELA","Executive Branch","LWD"]
[2599,"MADRID WATER DISTRICT","MWD","Executive Branch","LWD"]
[2635,"MAGALLANES WATER DISTRICT","MWD","Executive Branch","LWD"]
[2920,"MALAY WATER DISTRICT","MALAY","Executive Branch","LWD"]
[2369,"MALAYBALAY CITY WATER DISTRICT","MCWD","Executive Branch","LWD"]
[2921,"MALINAO WATER DISTRICT","MALINAO","Executive Branch","LWD"]
[2710,"MALOLOS WATER DISTRICT","MALOLOS","Executive Branch","LWD"]
[2396,"MALUNGON WATER DISTRICT","MWD","Executive Branch","LWD"]
[2563,"MALUSO WATER DISTRICT","MWD","Executive Branch","LWD"]
[3037,"MAMBAJAO WATER DISTRICT","MAMBAJAO","Executive Branch","LWD"]
[2934,"MAMBUSAO WATER DISTRICT","MAMBUSAO","Executive Branch","LWD"]
[2506,"MANAOAG NATIONAL HIGH SCHOOL","MNHS","Executive Branch","NGA"]
[2482,"MANAOAG WATER DISTRICT","MWD","Executive Branch","LWD"]
[2971,"MANAPLA WATER DISTRICT","MWD","Executive Branch","LWD"]
[2507,"MANGALDAN NATIONAL HIGH SCHOOL","MNHS","Executive Branch","NGA"]
[2483,"MANGALDAN WATER DISTRICT","MWD","Executive Branch","LWD"]
[3155,"MANILA ECONOMIC AND CULTURAL OFFICE","MECO","Executive Branch","Attached"]
[202,"MANILA INTERNATIONAL AIRPORT AUTHORITY","MIAA","Executive Branch","GFI/GOCC"]
[443,"MANILA, NCR","MANILA","Local Government Unit","City"]
[2370,"MANOLO FORTICH WATER DISTRICT","MFWD","Executive Branch","LWD"]
[2619,"MAPANAS AGRO-INDUSTRIAL SCHOOL","MAIS","State Universities and Colleges","Proper"]
[2484,"MAPANDAN WATER DISTRICT","MWD","Executive Branch","LWD"]
[2855,"MARAGONDON WATER DISTRICT","MWD","Executive Branch","LWD"]
[2371,"MARAMAG WATER DISTRICT","MWD","Executive Branch","LWD"]
[2547,"MARAWI CITY WATER DISTRICT","MCWD","Executive Branch","LWD"]
[2823,"MARAWI RESORT HOTEL INCORPORATED","MRH","Executive Branch","GFI/GOCC"]
[2446,"MARCOS NATIONAL HIGH SCHOOL","MNHS","Executive Branch","NGA"]
[2800,"MARIA AURORA WATER DISTRICT","MAWD","Executive Branch","LWD"]
[2436,"MARIANO MARCOS MEMORIAL HOSPITAL","MMMH","Executive Branch","NGA"]
[2633,"MARIANO MARCOS STATE UNIVERSITY","MMSU","State Universities and Colleges","Proper"]
[255,"MARIKINA INSTITUTE OF SCIENCE AND TECHNOLOGY","MIST","State Universities and Colleges","Proper"]
[2182,"MARIKINA POLYTECHNIC COLLEGE","MAPC","State Universities and Colleges","Proper"]
[2711,"MARILAO WATER DISTRICT","MARILAO","Executive Branch","LWD"]
[2231,"MARINDUQUE STATE COLLEGE","MSC","State Universities and Colleges","Proper"]
[141,"MARITIME INDUSTRY AUTHORITY","MARINA","Executive Branch","Attached"]
[2697,"MARIVELES WATER DISTRICT","MARIVELES","Executive Branch","LWD"]
[2768,"MASAGANANG SAKAHAN, INCORPORATED","MSI","Executive Branch","GFI/GOCC"]
[2758,"MASANTOL WATER DISTRICT","MASANTOL","Executive Branch","LWD"]
[2355,"MASBATE MOBO WATER DISTRICT","MMWD","Executive Branch","LWD"]
[2782,"MASINLOC WATER DISTRICT","MASINLOC","Executive Branch","LWD"]
[2508,"MATAAS NA PAARALANG JUAN C. LAYA","MPJCL","Executive Branch","NGA"]
[3025,"MATALOM WATER DISTRICT","MATALOM","Executive Branch","LWD"]
[3059,"MATI WATER DISTRICT","MATI","Executive Branch","LWD"]
[2914,"MATNOG WATER DISTRICT","MATNOG","Executive Branch","LWD"]
[2890,"MAUBAN WATER DISTRICT","MAUBAN","Executive Branch","LWD"]
[2766,"MAYANTOC WATER DISTRICT","MAYANTOC","Executive Branch","LWD"]
[2570,"MAYOR HILARION A. RAMIRO, SR. TRAINING AND TEACHING HOSPITAL","MHARSTTH","Executive Branch","NGA"]
[2464,"MEMORIAL NATIONAL HIGH SCHOOL","MNHS","Executive Branch","NGA"]
[2856,"MENDEZ WATER DISTRICT","MENDEZ","Executive Branch","LWD"]
[3016,"MERCEDES WATER DISTRICT","MWD","Executive Branch","LWD"]
[2627,"MERIDA WATER DISTRICT","MWD","Executive Branch","LWD"]
[115,"METALS INDUSTRY RESEARCH AND DEVELOPMENT CENTER","MIRDC","Executive Branch","Attached"]
[3242,"METRO BANGUED WATER DISTRICT","MBWD","Executive Branch","LWD"]
[3026,"METRO CARIGARA WATER DISTRICT","MCWD","Executive Branch","LWD"]
[3002,"METRO CEBU WATER DISTRICT","MCWD","Executive Branch","LWD"]
[2381,"METRO COTABATO WATER DISTRICT","MCWD","Executive Branch","LWD"]
[2578,"METRO HILONGOS WATER DISTRICT","MHWD","Executive Branch","LWD"]
[2955,"METRO ILOILO WATER DISTRICT","MIWD","Executive Branch","LWD"]
[2386,"METRO KIDAPAWAN WATER DISTRICT","MKWD","Executive Branch","LWD"]
[2469,"METRO LA UNION WATER DISTRICT","MLUWD","Executive Branch","LWD"]
[2842,"METRO LIPA WATER DISTRICT","MLWD","Executive Branch","LWD"]
[2382,"METRO MIDSAYAP WATER DISTRICT","MMWD","Executive Branch","LWD"]
[2907,"METRO NAGA WATER DISTRICT","MNWD","Executive Branch","LWD"]
[2892,"METRO QUEZON WATER DISTRICT","MQWD","Executive Branch","LWD"]
[2935,"METRO ROXAS WATER DISTRICT","MRWD","Executive Branch","LWD"]
[2647,"METRO SIARGAO WATER DISTRICT","MSWD","Executive Branch","LWD"]
[3012,"METRO SIQUIJOR WATER DISTRICT","MQWD","Executive Branch","LWD"]
[2492,"METRO TAYUG WATER DISTRICT","MTWD","Executive Branch","LWD"]
[2428,"METRO VIGAN WATER DISTRICT","MVWD","Executive Branch","LWD"]
[258,"METROPOLITAN MANILA DEVELOPMENT AUTHORITY","MMDA","Executive Branch","Attached"]
[2315,"METROPOLITAN NAGA WATER DISTRICT","CAMARINES SUR","Executive Branch","LWD"]
[203,"METROPOLITAN WATERWORKS AND SEWERAGE SYSTEM","MWSS","Executive Branch","GFI/GOCC"]
[2712,"MEYCAUAYAN WATER DISTRICT","MEYCAUAYAN","Executive Branch","LWD"]
[1085,"MGO ABORLAN, PALAWAN","ABORLAN","Local Government Unit","Municipality"]
[1057,"MGO ABRA DE ILOG, OCCIDENTAL MINDORO","ABRA DE ILOG","Local Government Unit","Municipality"]
[796,"MGO ABUCAY, BATAAN","ABUCAY","Local Government Unit","Municipality"]
[695,"MGO ABULUG, CAGAYAN","ABULUG","Local Government Unit","Municipality"]
[1530,"MGO ABUYOG, LEYTE","ABUYOG","Local Government Unit","Municipality"]
[564,"MGO ADAMS","ADAMS","Local Government Unit","Municipality"]
[994,"MGO AGDANGAN, QUEZON","AGDANGAN","Local Government Unit","Municipality"]
[780,"MGO AGLIPAY, QUIRINO","AGLIPAY","Local Government Unit","Municipality"]
[640,"MGO AGNO, PANGASINAN","AGNO","Local Government Unit","Municipality"]
[915,"MGO AGONCILLO, BATANGAS","AGONCILLO","Local Government Unit","Municipality"]
[620,"MGO AGOO, LA UNION","AGOO","Local Government Unit","Municipality"]
[641,"MGO AGUILAR, PANGASINAN","AGUILAR","Local Government Unit","Municipality"]
[3079,"MGO AGUINALDO, IFUGAO","AGUINALDO","Local Government Unit","Municipality"]
[1086,"MGO AGUTAYA, PALAWAN","AGUTAYA","Local Government Unit","Municipality"]
[1308,"MGO AJUY, ILOILO","AJUY","Local Government Unit","Municipality"]
[2061,"MGO AKBAR, BASILAN","AKBAR","Local Government Unit","Municipality"]
[3123,"MGO ALABAT, QUEZON","ALABAT","Local Government Unit","Municipality"]
[1870,"MGO ALABEL (CAPITAL), SARANGANI","ALABEL","Local Government Unit","Municipality"]
[1850,"MGO ALAMADA, NORTH COTABATO","ALAMADA","Local Government Unit","Municipality"]
[966,"MGO ALAMINOS, LAGUNA","ALAMINOS","Local Government Unit","Municipality"]
[1531,"MGO ALANGALANG, LEYTE","ALANGALANG","Local Government Unit","Municipality"]
[3104,"MGO AL-BARKA, BASILAN","AL-BARKA","Local Government Unit","Municipality"]
[1532,"MGO ALBUERA, LEYTE","ALBUERA","Local Government Unit","Municipality"]
[1372,"MGO ALBURQUERQUE, BOHOL","ALBURQUERQUE","Local Government Unit","Municipality"]
[696,"MGO ALCALA, CAGAYAN","ALCALA","Local Government Unit","Municipality"]
[642,"MGO ALCALA, PANGASINAN","ALCALA","Local Government Unit","Municipality"]
[1420,"MGO ALCANTARA, CEBU","ALCANTARA","Local Government Unit","Municipality"]
[1112,"MGO ALCANTARA, ROMBLON","ALCANTARA","Local Government Unit","Municipality"]
[1421,"MGO ALCOY, CEBU","ALCOY","Local Government Unit","Municipality"]
[1422,"MGO ALEGRIA, CEBU","ALEGRIA","Local Government Unit","Municipality"]
[1937,"MGO ALEGRIA, SURIGAO DEL NORTE","ALEGRIA","Local Government Unit","Municipality"]
[1851,"MGO ALEOSAN, NORTH COTABATO","ALEOSAN","Local Government Unit","Municipality"]
[764,"MGO ALFONSO CASTANEDA, NUEVA VIZCAYA","ALFONSO CASTANEDA","Local Government Unit","Municipality"]
[2031,"MGO ALFONSO LISTA (POTIA), IFUGAO","ALFONSO LISTA (POTIA)","Local Government Unit","Municipality"]
[947,"MGO ALFONSO, CAVITE","ALFONSO","Local Government Unit","Municipality"]
[835,"MGO ALIAGA, NUEVA ECIJA","ALIAGA","Local Government Unit","Municipality"]
[995,"MGO ALIBAT","ALIBAT","Local Government Unit","Municipality"]
[1373,"MGO ALICIA, BOHOL","ALICIA","Local Government Unit","Municipality"]
[725,"MGO ALICIA, ISABELA","ALICIA","Local Government Unit","Municipality"]
[1694,"MGO ALICIA, ZAMBOANGA SIBUGAY","ALICIA","Local Government Unit","Municipality"]
[586,"MGO ALILEM, ILOCOR SUR","ALILEM","Local Government Unit","Municipality"]
[1309,"MGO ALIMODIAN, ILOILO","ALIMODIAN","Local Government Unit","Municipality"]
[916,"MGO ALITAGTAG, BATANGAS","ALITAGTAG","Local Government Unit","Municipality"]
[697,"MGO ALLACAPAN, CAGAYAN","ALLACAPAN","Local Government Unit","Municipality"]
[1572,"MGO ALLEN, NORTHERN SAMAR","ALLEN","Local Government Unit","Municipality"]
[1597,"MGO ALMAGRO, SAMAR (WESTERN)","ALMAGRO","Local Government Unit","Municipality"]
[1497,"MGO ALMERIA, BILIRAN","ALMERIA","Local Government Unit","Municipality"]
[1423,"MGO ALOGUINSAN, CEBU","ALOGUINSAN","Local Government Unit","Municipality"]
[1761,"MGO ALORAN, MISAMIS OCCIDENTAL","ALORAN","Local Government Unit","Municipality"]
[1247,"MGO ALTAVAS, AKLAN","ALTAVAS","Local Government Unit","Municipality"]
[1776,"MGO ALUBIJID, MISAMIS ORIENTAL","ALUBIJID","Local Government Unit","Municipality"]
[948,"MGO AMADEO, CAVITE","AMADEO","Local Government Unit","Municipality"]
[765,"MGO AMBAGUIO, NUEVA VIZCAYA","AMBAGUIO","Local Government Unit","Municipality"]
[1467,"MGO AMLAN (AYUQUITAN), NEGROS ORIENTAL","AMLAN (AYUQUITAN)","Local Government Unit","Municipality"]
[2113,"MGO AMPATUAN, MAGUINDANAO","AMPATUAN","Local Government Unit","Municipality"]
[698,"MGO AMULUNG, CAGAYAN","AMULUNG","Local Government Unit","Municipality"]
[1624,"MGO ANAHAWAN, SOUTHERN LEYTE","ANAHAWAN","Local Government Unit","Municipality"]
[883,"MGO ANAO, TARLAC","ANAO","Local Government Unit","Municipality"]
[1374,"MGO ANDA, BOHOL","ANDA","Local Government Unit","Municipality"]
[643,"MGO ANDA, PANGASINAN","ANDA","Local Government Unit","Municipality"]
[726,"MGO ANGADANAN, ISABELA","ANGADANAN","Local Government Unit","Municipality"]
[809,"MGO ANGAT, BULACAN","ANGAT","Local Government Unit","Municipality"]
[1036,"MGO ANGONO, RIZAL","ANGONO","Local Government Unit","Municipality"]
[1310,"MGO ANILAO, ILOILO","ANILAO","Local Government Unit","Municipality"]
[1266,"MGO ANINI-Y, ANTIQUE","ANINI-Y","Local Government Unit","Municipality"]
[1375,"MGO ANTEQUERA, BOHOL","ANTEQUERA","Local Government Unit","Municipality"]
[1852,"MGO ANTIPAS, NORTH COTABATO","ANTIPAS","Local Government Unit","Municipality"]
[863,"MGO APALIT, PAMPANGA","APALIT","Local Government Unit","Municipality"]
[699,"MGO APARRI, CAGAYAN","APARRI","Local Government Unit","Municipality"]
[1087,"MGO ARACELI, PALAWAN","ARACELI","Local Government Unit","Municipality"]
[1853,"MGO ARAKAN, NORTH COTABATO","ARAKAN","Local Government Unit","Municipality"]
[864,"MGO ARAYAT, PAMPANGA","ARAYAT","Local Government Unit","Municipality"]
[1424,"MGO ARGAO, CEBU","ARGAO","Local Government Unit","Municipality"]
[621,"MGO ARINGAY, LA UNION","ARINGAY ","Local Government Unit","Municipality"]
[766,"MGO ARITAO, NUEVA VIZCAYA","ARITAO","Local Government Unit","Municipality"]
[1210,"MGO AROROY, MASBATE","AROROY","Local Government Unit","Municipality"]
[1506,"MGO ARTECHE, EASTERN SAMAR","ARTECHE","Local Government Unit","Municipality"]
[645,"MGO ASINGAN, PANGASINAN","ASINGAN","Local Government Unit","Municipality"]
[2032,"MGO ASIPULO, IFUGAO","ASIPULO","Local Government Unit","Municipality"]
[1425,"MGO ASTURIAS, CEBU","ASTURIAS","Local Government Unit","Municipality"]
[1812,"MGO ASUNCION (SAUG),DAVAO DEL NORTE","ASUNCION (SAUG)","Local Government Unit","Municipality"]
[996,"MGO ATIMONAN, QUEZON","ATIMONAN","Local Government Unit","Municipality"]
[2016,"MGO ATOK, BENGUET","ATOK","Local Government Unit","Municipality"]
[727,"MGO AURORA, ISABELA","AURORA","Local Government Unit","Municipality"]
[1667,"MGO AURORA, ZAMBOANGA DEL SUR","AURORA","Local Government Unit","Municipality"]
[1468,"MGO AYUNGON, NEGROS ORIENTAL","AYUNGON","Local Government Unit","Municipality"]
[1140,"MGO BAAO, CAMARINES SUR","BAAO","Local Government Unit","Municipality"]
[1533,"MGO BABATNGON, LEYTE","BABATNGON","Local Government Unit","Municipality"]
[1131,"MGO BACACAY, ALBAY","BACACAY","Local Government Unit","Municipality"]
[565,"MGO BACARRA, ILOCOS NORTE","BACARRA","Local Government Unit","Municipality"]
[1376,"MGO BACLAYON, BOHOL","BACLAYON","Local Government Unit","Municipality"]
[622,"MGO BACNOTAN, LA UNION","BACNOTAN","Local Government Unit","Municipality"]
[1069,"MGO BACO, ORIENTAL MINDORO","BACO","Local Government Unit","Municipality"]
[1738,"MGO BACOLOD, LANAO DEL NORTE","BACOLOD","Local Government Unit","Municipality"]
[2074,"MGO BACOLOD-KALAWI (BACOLOD GRANDE), LANAO DEL SUR","BACOLOD-KALAWI (BACOLOD G","Local Government Unit","Municipality"]
[865,"MGO BACOLOR, NUEVA ECIJA","BACOLOR","Local Government Unit","Municipality"]
[3194,"MGO BACOLOR,PAMPANGA","BACOLOR","Local Government Unit","Municipality"]
[1469,"MGO BACONG, NEGROS ORIENTAL","BACONG","Local Government Unit","Municipality"]
[1938,"MGO BACUAG, SURIGAO DEL NORTE","BACUAG","Local Government Unit","Municipality"]
[1643,"MGO BACUNGAN (LEON T POSTIGO), ZAMBOANGA DEL NORTE","BACUNGAN (LEON T POSTIGO)","Local Government Unit","Municipality"]
[1426,"MGO BADIAN, CEBU","BADIAN","Local Government Unit","Municipality"]
[1311,"MGO BADIANGAN, ILOILO","BADIANGAN","Local Government Unit","Municipality"]
[566,"MGO BADOC, ILOCOS NORTE","BADOC","Local Government Unit","Municipality"]
[767,"MGO BAGABAG, NUEVA VIZCAYA","BAGABAG","Local Government Unit","Municipality"]
[3115,"MGO BAGAC, BATAAN","BAGAC","Local Government Unit","Municipality"]
[1198,"MGO BAGAMANOC, CATANDUANES","BAGAMANOC","Local Government Unit","Municipality"]
[3074,"MGO BAGANGA, DAVAO ORIENTAL","BAGANGA","Local Government Unit","Municipality"]
[700,"MGO BAGGAO, CAGAYAN","BAGGAO","Local Government Unit","Municipality"]
[623,"MGO BAGULIN, LA UNION","BAGULIN","Local Government Unit","Municipality"]
[1890,"MGO BAGUMBAYAN, SULTAN KUDARAT","BAGUMBAYAN","Local Government Unit","Municipality"]
[2017,"MGO BAKUN, BENGUET","BAKUN","Local Government Unit","Municipality"]
[1088,"MGO BALABAC, PALAWAN","BALABAC","Local Government Unit","Municipality"]
[2075,"MGO BALABAGAN, LANAO DEL SUR","BALABAGAN","Local Government Unit","Municipality"]
[810,"MGO BALAGTAS (BIGAA), BULACAN","BALAGTAS (BIGAA)","Local Government Unit","Municipality"]
[1427,"MGO BALAMBAN, CEBU","BALAMBAN","Local Government Unit","Municipality"]
[1507,"MGO BALANGIGA, EASTERN SAMAR","BALANGIGA","Local Government Unit","Municipality"]
[1508,"MGO BALANGKAYAN, EASTERN SAMAR","BALANGKAYAN","Local Government Unit","Municipality"]
[624,"MGO BALAOAN, LA UNION","BALAOAN","Local Government Unit","Municipality"]
[1312,"MGO BALASAN, ILOILO","BALASAN","Local Government Unit","Municipality"]
[1141,"MGO BALATAN, CAMARINES SUR","BALATAN","Local Government Unit","Municipality"]
[917,"MGO BALAYAN, BATANGAS","BALAYAN","Local Government Unit","Municipality"]
[2043,"MGO BALBALAN, KALINGA","BALBALAN","Local Government Unit","Municipality"]
[1211,"MGO BALENO, MASBATE","BALENO","Local Government Unit","Municipality"]
[787,"MGO BALER , AURORA","BALER","Local Government Unit","Municipality"]
[1248,"MGO BALETE, AKLAN","BALETE","Local Government Unit","Municipality"]
[918,"MGO BALETE, BATANGAS","BALETE","Local Government Unit","Municipality"]
[1762,"MGO BALIANGAO, MISAMIS OCCIDENTAL","BALIANGAO","Local Government Unit","Municipality"]
[1644,"MGO BALIGUIAN, ZAMBOANGA DEL NORTE","BALIGUIAN ","Local Government Unit","Municipality"]
[1377,"MGO BALILIHAN, BOHOL","BALILIHAN","Local Government Unit","Municipality"]
[2076,"MGO BALINDONG (WATU), LANAO DEL SUR","BALINDONG (WATU)","Local Government Unit","Municipality"]
[1777,"MGO BALINGASAG, MISAMIS ORIENTAL","BALINGASAG","Local Government Unit","Municipality"]
[1778,"MGO BALINGOAN, MISAMIS ORIENTAL","BALINGOAN","Local Government Unit","Municipality"]
[811,"MGO BALIUAG, BULACAN","BALIUAG","Local Government Unit","Municipality"]
[701,"MGO BALLESTEROS, CAGAYAN","BALLESTEROS","Local Government Unit","Municipality"]
[1739,"MGO BALOI, LANAO DEL NORTE","BALOI","Local Government Unit","Municipality"]
[1212,"MGO BALUD, MASBATE","BALUD","Local Government Unit","Municipality"]
[644,"MGO BALUNGAO, PANGASINAN","BALUNGAO","Local Government Unit","Municipality"]
[884,"MGO BAMBAN, TARLAC","BAMBAN","Local Government Unit","Municipality"]
[768,"MGO BAMBANG, NUEVA VIZCAYA","BAMBANG","Local Government Unit","Municipality"]
[1313,"MGO BANATE, ILOILO","BANATE","Local Government Unit","Municipality"]
[2033,"MGO BANAUE, IFUGAO","BANAUE","Local Government Unit","Municipality"]
[1837,"MGO BANAYBANAY, DAVAO ORIENTAL","BANAYBANAY","Local Government Unit","Municipality"]
[587,"MGO BANAYOYO, ILOCOS SUR","BANAYOYO","Local Government Unit","Municipality"]
[1249,"MGO BANGA, AKLAN","BANGA","Local Government Unit","Municipality"]
[1878,"MGO BANGA, SOUTH COTABATO","BANGA","Local Government Unit","Municipality"]
[625,"MGO BANGAR, LA UNION","BANGAR","Local Government Unit","Municipality"]
[1979,"MGO BANGUED (CAPITAL), ABRA","BANGUED","Local Government Unit","Municipality"]
[567,"MGO BANGUI, ILOCOS NORTE","BANGUI","Local Government Unit","Municipality"]
[647,"MGO BANI, PANGASINAN","BANI","Local Government Unit","Municipality"]
[1854,"MGO BANISILAN, NORTH COTABATO","BANISILAN","Local Government Unit","Municipality"]
[568,"MGO BANNA (ESPIRITU), ILOCOS NORTE","BANNA (ESPIRITU)","Local Government Unit","Municipality"]
[1821,"MGO BANSALAN, DAVAO DEL SUR","BANSALAN","Local Government Unit","Municipality"]
[1070,"MGO BANSUD, ORIENTAL MINDORO","BANSUD","Local Government Unit","Municipality"]
[588,"MGO BANTAY, ILOCOS SUR","BANTAY","Local Government Unit","Municipality"]
[1428,"MGO BANTAYAN, CEBU","BANTAYAN","Local Government Unit","Municipality"]
[1113,"MGO BANTON, ROMBLON","BANTON","Local Government Unit","Municipality"]
[1199,"MGO BARAS, CATANDUANES","BARAS","Local Government Unit","Municipality"]
[1037,"MGO BARAS, RIZAL","BARAS","Local Government Unit","Municipality"]
[1267,"MGO BARBAZA, ANTIQUE","BARBAZA","Local Government Unit","Municipality"]
[1232,"MGO BARCELONA, SORSOGON","BARCELONA","Local Government Unit","Municipality"]
[1429,"MGO BARILI, CEBU","BARILI","Local Government Unit","Municipality"]
[2114,"MGO BARIRA, MAGUINDANAO","BARIRA","Local Government Unit","Municipality"]
[2050,"MGO BARLIG, MOUNTAIN PROVINCE","BARLIG","Local Government Unit","Municipality"]
[1960,"MGO BAROBO, SURIGAO DEL SUR","BAROBO","Local Government Unit","Municipality"]
[1314,"MGO BAROTAC NUEVO, ILOILO","BAROTAC NUEVO","Local Government Unit","Municipality"]
[1315,"MGO BAROTAC VIEJO, ILOILO","BAROTAC VIEJO","Local Government Unit","Municipality"]
[1740,"MGO BAROY, LANAO DEL NORTE","BAROY","Local Government Unit","Municipality"]
[1534,"MGO BARUGO, LEYTE","BARUGO","Local Government Unit","Municipality"]
[1470,"MGO BASAY, NEGROS ORIENTAL","BASAY","Local Government Unit","Municipality"]
[688,"MGO BASCO (CAPITAL), BATANES","BASCO","Local Government Unit","Municipality"]
[1598,"MGO BASEY, SAMAR (WESTERN)","BASEY","Local Government Unit","Municipality"]
[1929,"MGO BASILISA (RIZAL), DINAGAT ISLAND","BASILISA (RIZAL)","Local Government Unit","Municipality"]
[648,"MGO BASISTA, PANGASINAN","BASISTA","Local Government Unit","Municipality"]
[1180,"MGO BASUD, CAMARINES NORTE","BASUD","Local Government Unit","Municipality"]
[797,"MGO BATAC","BATAC","Local Government Unit","Municipality"]
[1316,"MGO BATAD, ILOILO","BATAD","Local Government Unit","Municipality"]
[1250,"MGO BATAN, AKLAN","BATAN","Local Government Unit","Municipality"]
[1089,"MGO BATARAZA, PALAWAN","BATARAZA","Local Government Unit","Municipality"]
[1200,"MGO BATO, CAMARINES SUR","BATO","Local Government Unit","Municipality"]
[1142,"MGO BATO, CATANDUANES","BATO","Local Government Unit","Municipality"]
[1535,"MGO BATO, LEYTE","BATO","Local Government Unit","Municipality"]
[1378,"MGO BATUAN, BOHOL","BATUAN","Local Government Unit","Municipality"]
[1213,"MGO BATUAN, MASBATE","BATUAN","Local Government Unit","Municipality"]
[3120,"MGO BAUAN, BATANGAS","BAUAN","Local Government Unit","Municipality"]
[626,"MGO BAUANG, LA UNION ","BAUANG","Local Government Unit","Municipality"]
[2051,"MGO BAUKO, MOUNTAIN PROVINCE","BAUKO","Local Government Unit","Municipality"]
[1711,"MGO BAUNGON, BUKIDNON","BAUNGON","Local Government Unit","Municipality"]
[649,"MGO BAUTISTA, PANGASINAN","BAUTISTA","Local Government Unit","Municipality"]
[967,"MGO BAY, LAGUNA","BAY","Local Government Unit","Municipality"]
[1962,"MGO BAYABAS, SURIGAO DEL SUR","BAYABAS","Local Government Unit","Municipality"]
[650,"MGO BAYAMBANG, PANGASINAN","BAYAMBANG","Local Government Unit","Municipality"]
[2077,"MGO BAYANG, LANAO DEL SUR","BAYANG","Local Government Unit","Municipality"]
[1668,"MGO BAYOG, ZAMBOANGA DEL SUR","BAYOG","Local Government Unit","Municipality"]
[769,"MGO BAYOMBONG (CAPITAL), NUEVA VIZCAYA","BAYOMBONG","Local Government Unit","Municipality"]
[1268,"MGO BELISON, ANTIQUE","BELISON","Local Government Unit","Municipality"]
[728,"MGO BENITO SOLIVEN, ISABELA","BENITO SOLIVEN","Local Government Unit","Municipality"]
[2052,"MGO BESAO, MOUNTAIN PROVINCE","BESAO","Local Government Unit","Municipality"]
[1379,"MGO BIEN UNIDO, BOHOL","BIEN UNIDO","Local Government Unit","Municipality"]
[1381,"MGO BILAR","BILAR","Local Government Unit","Municipality"]
[1380,"MGO BILAR, BOHOL","BILAR","Local Government Unit","Municipality"]
[1498,"MGO BILIRAN, BILIRAN","BILIRAN","Local Government Unit","Municipality"]
[1352,"MGO BINALBAGAN, NEGROS OCCIDENTAL","BINALBAGAN","Local Government Unit","Municipality"]
[652,"MGO BINALONAN, PANGASINAN","BINALONAN","Local Government Unit","Municipality"]
[1038,"MGO BINANGONAN, RIZAL","BINANGONAN","Local Government Unit","Municipality"]
[1471,"MGO BINDOY (PAYABON), NEGROS ORIENTAL","BINDOY (PAYABON)","Local Government Unit","Municipality"]
[1317,"MGO BINGAWAN, ILOILO","BINGAWAN","Local Government Unit","Municipality"]
[2078,"MGO BINIDAYAN, LANAO DEL SUR","BINIDAYAN","Local Government Unit","Municipality"]
[653,"MGO BINMALEY, PANGASINAN","BINMALEY","Local Government Unit","Municipality"]
[1779,"MGO BINUANGAN, MISAMIS ORIENTAL","BINUANGAN","Local Government Unit","Municipality"]
[1573,"MGO BIRI, NORTHERN SAMAR","BIRI","Local Government Unit","Municipality"]
[1050,"MGO BOAC (CAPITAL), MARINDUQUE","BOAC","Local Government Unit","Municipality"]
[1574,"MGO BOBON, NORTHERN SAMAR","BOBON","Local Government Unit","Municipality"]
[812,"MGO BOCAUE, BULACAN","BOCAUE","Local Government Unit","Municipality"]
[2018,"MGO BOKOD, BENGUET","BOKOD","Local Government Unit","Municipality"]
[654,"MGO BOLINAO, PANGASINAN","BOLINAO","Local Government Unit","Municipality"]
[1980,"MGO BOLINEY, ABRA","BOLINEY","Local Government Unit","Municipality"]
[1431,"MGO BOLJOON, CEBU","BOLJOON","Local Government Unit","Municipality"]
[1143,"MGO BOMBON, CAMARINES SUR","BOMBON","Local Government Unit","Municipality"]
[836,"MGO BONGABON, NUEVA ECIJA","BONGABON","Local Government Unit","Municipality"]
[1071,"MGO BONGABONG, ORIENTAL MINDORO","BONGABONG","Local Government Unit","Municipality"]
[null,"MGO BONGAO (CAPITAL), TAWI-TAWI","BONGAO","Local Government Unit","Municipality"]
[2170,"MGO BONGAO, TAWI-TAWI","BONGAO","Local Government Unit","Municipality"]
[1763,"MGO BONIFACIO, MISAMIS OCCIDENTAL","BONIFACIO","Local Government Unit","Municipality"]
[2053,"MGO BONTOC (CAPITAL), MOUNTAIN PROVINCE","BONTOC","Local Government Unit","Municipality"]
[1625,"MGO BONTOC, SOUTHERN LEYTE","BONTOC","Local Government Unit","Municipality"]
[1432,"MGO BORBON, CEBU","BORBON","Local Government Unit","Municipality"]
[1838,"MGO BOSTON, DAVAO ORIENTAL","BOSTON","Local Government Unit","Municipality"]
[901,"MGO BOTOLAN, ZAMBALES","BOTOLAN","Local Government Unit","Municipality"]
[1813,"MGO BRAULIO E DUJALI, DAVAO DEL NORTE","BRAULIO E DUJALI","Local Government Unit","Municipality"]
[1090,"MGO BROOKE'S POINT","BROOKE'S POINT","Local Government Unit","Municipality"]
[3126,"MGO BROOKES POINT, PALAWAN","BROOKES POINT","Local Government Unit","Municipality"]
[2079,"MGO BUADIPOSO-BUNTONG, LANAO DEL SUR","BUADIPOSO-BUNTONG","Local Government Unit","Municipality"]
[2080,"MGO BUBONG, LANAO DEL SUR","BUBONG","Local Government Unit","Municipality"]
[1981,"MGO BUCAY, ABRA","BUCAY","Local Government Unit","Municipality"]
[1982,"MGO BUCLOC, ABRA","BUCLOC","Local Government Unit","Municipality"]
[1902,"MGO BUENAVISTA, AGUSAN DEL NORTE","BUENAVISTA","Local Government Unit","Municipality"]
[1382,"MGO BUENAVISTA, BOHOL","BUENAVISTA","Local Government Unit","Municipality"]
[1302,"MGO BUENAVISTA, GUIMARAS","BUENAVISTA","Local Government Unit","Municipality"]
[1051,"MGO BUENAVISTA, MARINDUQUE","BUENAVISTA","Local Government Unit","Municipality"]
[997,"MGO BUENAVISTA, QUEZON","BUENAVISTA","Local Government Unit","Municipality"]
[655,"MGO BUGALLON, PANGASINAN","BUGALLON","Local Government Unit","Municipality"]
[1269,"MGO BUGASONG, ANTIQUE","BUGASONG","Local Government Unit","Municipality"]
[702,"MGO BUGUEY, CAGAYAN","BUGUEY","Local Government Unit","Municipality"]
[2019,"MGO BUGUIAS, BENGUET","BUGUIAS","Local Government Unit","Municipality"]
[1144,"MGO BUHI, CAMARINES SUR","BUHI","Local Government Unit","Municipality"]
[1145,"MGO BULA, CAMARINES SUR","BULA","Local Government Unit","Municipality"]
[813,"MGO BULACAN, BULACAN","BULACAN","Local Government Unit","Municipality"]
[1072,"MGO BULALACAO (SAN PEDRO), ORIENTAL MINDORO","BULALACAO (SAN PEDRO)","Local Government Unit","Municipality"]
[1233,"MGO BULAN, SORSOGON","BULAN","Local Government Unit","Municipality"]
[2115,"MGO BULDON, MAGUINDANAO","BULDON","Local Government Unit","Municipality"]
[2116,"MGO BULUAN, MAGUINDANAO","BULUAN","Local Government Unit","Municipality"]
[1234,"MGO BULUSAN, SORSOGON","BULUSAN","Local Government Unit","Municipality"]
[2081,"MGO BUMBARAN, LANAO DEL SUR","BUMBARAN","Local Government Unit","Municipality"]
[1915,"MGO BUNAWAN, AGUSAN DEL SUR","BUNAWAN","Local Government Unit","Municipality"]
[1537,"MGO BURAUEN, LEYTE","BURAUEN","Local Government Unit","Municipality"]
[998,"MGO BURDEOS, QUEZON","BURDEOS","Local Government Unit","Municipality"]
[569,"MGO BURGOS, ILOCOS NORTE","BURGOS","Local Government Unit","Municipality"]
[589,"MGO BURGOS, ILOCOS SUR","BURGOS","Local Government Unit","Municipality"]
[729,"MGO BURGOS, ISABELA","BURGOS","Local Government Unit","Municipality"]
[627,"MGO BURGOS, LA UNION","BURGOS","Local Government Unit","Municipality"]
[656,"MGO BURGOS, PANGASINAN","BURGOS","Local Government Unit","Municipality"]
[1940,"MGO BURGOS, SURIGAO DEL NORTE","BURGOS","Local Government Unit","Municipality"]
[1251,"MGO BURUANGA, AKLAN","BURUANGA","Local Government Unit","Municipality"]
[814,"MGO BUSTOS, BULACAN","BUSTOS","Local Government Unit","Municipality"]
[1094,"MGO BUSUANGA, PALAWAN","BUSUANGA","Local Government Unit","Municipality"]
[2082,"MGO BUTIG, LANAO DEL SUR","BUTIG","Local Government Unit","Municipality"]
[1695,"MGO BUUG, ZAMBOANGA SIBUGAY","BUUG","Local Government Unit","Municipality"]
[628,"MGO CABA, LA UNION","CABA","Local Government Unit","Municipality"]
[1903,"MGO CABADBARAN CITY, AGUSAN DEL NORTE","CABADBARAN","Local Government Unit","Municipality"]
[730,"MGO CABAGAN, ISABELA","CABAGAN","Local Government Unit","Municipality"]
[902,"MGO CABANGAN, ZAMBALES","CABANGAN","Local Government Unit","Municipality"]
[1712,"MGO CABANGLASAN, BUKIDNON","CABANGLASAN","Local Government Unit","Municipality"]
[781,"MGO CABARROGUIS, QUIRINO","CABARROGUIS","Local Government Unit","Municipality"]
[1318,"MGO CABATUAN, ILOILO","CABATUAN","Local Government Unit","Municipality"]
[731,"MGO CABATUAN, ISABELA","CABATUAN","Local Government Unit","Municipality"]
[837,"MGO CABIAO, NUEVA ECIJA","CABIAO","Local Government Unit","Municipality"]
[1499,"MGO CABUCGAYAN, BILIRAN","CABUCGAYAN","Local Government Unit","Municipality"]
[590,"MGO CABUGAO, ILOCOS SUR","CABUGAO","Local Government Unit","Municipality"]
[1146,"MGO CABUSAO","CABUSAO","Local Government Unit","Municipality"]
[1147,"MGO CABUSAO, CAMARINES SUR","CABUSAO","Local Government Unit","Municipality"]
[968,"MGO CABUYAO, LAGUNA","CABUYAO","Local Government Unit","Municipality"]
[1095,"MGO CAGAYANCILLO, PALAWAN","CAGAYANCILLO","Local Government Unit","Municipality"]
[1930,"MGO CAGDIANAO, DINAGAT ISLAND","CAGDIANAO","Local Government Unit","Municipality"]
[1963,"MGO CAGWAIT, SURIGAO DEL SUR","CAGWAIT","Local Government Unit","Municipality"]
[1500,"MGO CAIBIRAN, BILIRAN","CAIBIRAN","Local Government Unit","Municipality"]
[1039,"MGO CAINTA, RIZAL","CAINTA","Local Government Unit","Municipality"]
[1114,"MGO CAJIDIOCAN, ROMBLON","CAJIDIOCAN","Local Government Unit","Municipality"]
[1148,"MGO CALABANGA, CAMARINES SUR","CALABANGA","Local Government Unit","Municipality"]
[920,"MGO CALACA, BATANGAS","CALACA","Local Government Unit","Municipality"]
[1764,"MGO CALAMBA, MISAMIS OCCIDENTAL","CALAMBA","Local Government Unit","Municipality"]
[2006,"MGO CALANASAN (BAYAG), APAYAO","CALANASAN (BAYAG)","Local Government Unit","Municipality"]
[2083,"MGO CALANOGAS, LANAO DEL SUR","CALANOGAS","Local Government Unit","Municipality"]
[1383,"MGO CALAPE, BOHOL","CALAPE","Local Government Unit","Municipality"]
[657,"MGO CALASIAO, PANGASINAN","CALASIAO","Local Government Unit","Municipality"]
[921,"MGO CALATAGAN, BATANGAS","CALATAGAN","Local Government Unit","Municipality"]
[1353,"MGO CALATRAVA, NEGROS OCCIDENTAL","CALATRAVA","Local Government Unit","Municipality"]
[1115,"MGO CALATRAVA, ROMBLON","CALATRAVA","Local Government Unit","Municipality"]
[999,"MGO CALAUAG, QUEZON","CALAUAG","Local Government Unit","Municipality"]
[969,"MGO CALAUAN, LAGUNA","CALAUAN","Local Government Unit","Municipality"]
[703,"MGO CALAYAN, CAGAYAN","CALAYAN","Local Government Unit","Municipality"]
[1599,"MGO CALBIGA, SAMAR (WESTERN)","CALBIGA","Local Government Unit","Municipality"]
[1319,"MGO CALINOG, ILOILO","CALINOG","Local Government Unit","Municipality"]
[1058,"MGO CALINTAAN, OCCIDENTAL MINDORO","CALINTAAN","Local Government Unit","Municipality"]
[1538,"MGO CALUBIAN, LEYTE","CALUBIAN","Local Government Unit","Municipality"]
[815,"MGO CALUMPIT, BULACAN","CALUMPIT","Local Government Unit","Municipality"]
[1270,"MGO CALUYA, ANTIQUE","CALUYA","Local Government Unit","Municipality"]
[704,"MGO CAMALANIUGAN, CAGAYAN","CAMALANIUGAN","Local Government Unit","Municipality"]
[1165,"MGO CAMALIG, ALBAY","CAMALIG","Local Government Unit","Municipality"]
[1149,"MGO CAMALIGAN, CAMARINES SUR","CAMALIGAN","Local Government Unit","Municipality"]
[885,"MGO CAMILING, TARLAC","CAMILING","Local Government Unit","Municipality"]
[1150,"MGO CANAMAN, CAMARINES SUR","CANAMAN","Local Government Unit","Municipality"]
[1510,"MGO CAN-AVID, EASTERN SAMAR","CAN-AVID","Local Government Unit","Municipality"]
[866,"MGO CANDABA, PAMPANGA","CANDABA","Local Government Unit","Municipality"]
[1000,"MGO CANDELARIA, QUEZON","CANDELERIA","Local Government Unit","Municipality"]
[903,"MGO CANDELARIA, ZAMBALES","CANDELERIA","Local Government Unit","Municipality"]
[1384,"MGO CANDIJAY, BOHOL","CANDIJAY","Local Government Unit","Municipality"]
[1354,"MGO CANDONI, NEGROS OCCIDENTAL","CANDONI","Local Government Unit","Municipality"]
[1964,"MGO CANTILAN, SURIGAO DEL SUR","CANTILAN","Local Government Unit","Municipality"]
[591,"MGO CAOAYAN, ILOCOS SUR","CAOAYAN","Local Government Unit","Municipality"]
[1181,"MGO CAPALONGA, CAMARINES NORTE","CAPALONGA","Local Government Unit","Municipality"]
[886,"MGO CAPAS, TARLAC","CAPAS","Local Government Unit","Municipality"]
[1539,"MGO CAPOOCAN, LEYTE","CAPOOCAN","Local Government Unit","Municipality"]
[1575,"MGO CAPUL, NORTHERN SAMAR","CAPUL","Local Government Unit","Municipality"]
[1839,"MGO CARAGA. DAVAO ORIENTAL","CARAGA","Local Government Unit","Municipality"]
[1151,"MGO CARAMOAN, CAMARINES SUR","CARAMOAN","Local Government Unit","Municipality"]
[1201,"MGO CARAMORAN, CATANDUANES","CARAMORAN","Local Government Unit","Municipality"]
[570,"MGO CARASI, ILOCOS NORTE","CARASI","Local Government Unit","Municipality"]
[1040,"MGO CARDONA, RIZAL","CARDONA","Local Government Unit","Municipality"]
[1540,"MGO CARIGARA, LEYTE","CARIGARA","Local Government Unit","Municipality"]
[1320,"MGO CARLES, ILOILO","CARLES","Local Government Unit","Municipality"]
[1904,"MGO CARMEN, AGUSAN DEL NORTE","CARMEN","Local Government Unit","Municipality"]
[1434,"MGO CARMEN, BOHOL","CARMEN","Local Government Unit","Municipality"]
[1385,"MGO CARMEN, CEBU","CARMEN","Local Government Unit","Municipality"]
[1814,"MGO CARMEN, DAVAO DEL NORTE","CARMEN","Local Government Unit","Municipality"]
[1855,"MGO CARMEN, NORTH COTABATO","CARMEN","Local Government Unit","Municipality"]
[1965,"MGO CARMEN, SURIGAO DEL SUR","CARMEN","Local Government Unit","Municipality"]
[949,"MGO CARMONA, CAVITE","CARMONA","Local Government Unit","Municipality"]
[838,"MGO CARRANGLAN, NUEVA ECIJA","CARRANGLAN","Local Government Unit","Municipality"]
[1966,"MGO CARRASCAL, SURIGAO DEL SUR","CARRASCAL","Local Government Unit","Municipality"]
[788,"MGO CASIGURAN, AURORA","CASIGURAN","Local Government Unit","Municipality"]
[1235,"MGO CASIGURAN, SORSOGON","CASIGURAN","Local Government Unit","Municipality"]
[1236,"MGO CASTILLA, SORSOGON","CASTILLA","Local Government Unit","Municipality"]
[904,"MGO CASTILLEJOS, ZAMBALES","CASTILLEJOS","Local Government Unit","Municipality"]
[1214,"MGO CATAINGAN, MASBATE","CATAINGAN","Local Government Unit","Municipality"]
[1001,"MGO CATANAUAN, QUEZON","CATANAUAN","Local Government Unit","Municipality"]
[1576,"MGO CATARMAN (CAPITAL), NORTHERN SAMAR","CATARMAN","Local Government Unit","Municipality"]
[3072,"MGO CATARMAN, CAMIGUIN","CATARMAN","Local Government Unit","Municipality"]
[1840,"MGO CATEEL, DAVAO ORIENTAL","CATEEL","Local Government Unit","Municipality"]
[1386,"MGO CATIGBIAN, BOHOL","CATIGBIAN","Local Government Unit","Municipality"]
[1435,"MGO CATMON, CEBU","CATMON","Local Government Unit","Municipality"]
[1577,"MGO CATUBIG, NORTHERN SAMAR ","CATUBIG","Local Government Unit","Municipality"]
[1355,"MGO CAUAYAN, NEGROS OCCIDENTAL","CAUAYAN","Local Government Unit","Municipality"]
[970,"MGO CAVINTI, LAGUNA","CAVINTI","Local Government Unit","Municipality"]
[1215,"MGO CAWAYAN, MASBATE","CAWAYAN","Local Government Unit","Municipality"]
[592,"MGO CERVANTES, ILOCOS SUR","CERVANTES","Local Government Unit","Municipality"]
[1765,"MGO CLARIN, BOHOL","CLARIN","Local Government Unit","Municipality"]
[2410,"MGO CLARIN, MISAMIS OCCIDENTAL","CLARIN","Local Government Unit","Province"]
[1941,"MGO CLAVER, SURIGAO DEL NORTE","CLAVER","Local Government Unit","Municipality"]
[705,"MGO CLAVERIA, CAGAYAN","CLAVERIA","Local Government Unit","Municipality"]
[1216,"MGO CLAVERIA, MASBATE","CLAVERIA","Local Government Unit","Municipality"]
[1780,"MGO CLAVERIA, MISAMIS ORIENTAL","CLAVERIA","Local Government Unit","Municipality"]
[1891,"MGO COLUMBIO, SULTAN KUDARAT","COLUMBIO","Local Government Unit","Municipality"]
[1436,"MGO COMPOSTELA, CEBU","COMPOSTELA","Local Government Unit","Municipality"]
[1800,"MGO COMPOSTELA, COMPOSTELA VALLEY","COMPOSTELA","Local Government Unit","Municipality"]
[1321,"MGO CONCEPCION, ILOILO","CONCEPCION","Local Government Unit","Municipality"]
[1766,"MGO CONCEPCION, MISAMIS OCCIDENTAL","CONCEPCION","Local Government Unit","Municipality"]
[3124,"MGO CONCEPCION, ROMBLON","CONCEPCION","Local Government Unit","Municipality"]
[887,"MGO CONCEPCION, TARLAC","CONCEPTION","Local Government Unit","Municipality"]
[2007,"MGO CONNER, APAYAO","CONNER","Local Government Unit","Municipality"]
[1437,"MGO CONSOLACION, CEBU","CONSOLACION","Local Government Unit","Municipality"]
[1117,"MGO CORCUERA, ROMBLON","CORCUERA","Local Government Unit","Municipality"]
[732,"MGO CORDON, ISABELA","CORDON","Local Government Unit","Municipality"]
[1438,"MGO CORDOVA, CEBU","CORDOVA","Local Government Unit","Municipality"]
[1387,"MGO CORELLA, BOHOL","CORELLA","Local Government Unit","Municipality"]
[1096,"MGO CORON, PALAWAN","CORON","Local Government Unit","Municipality"]
[1388,"MGO CORTES, BOHOL","CORTES","Local Government Unit","Municipality"]
[1967,"MGO CORTES, SURIGAO DEL SUR","CORTES","Local Government Unit","Municipality"]
[1285,"MGO CUARTERO, CAPIZ","CUARTERO","Local Government Unit","Municipality"]
[922,"MGO CUENCA, BATANGAS","CUENCA","Local Government Unit","Municipality"]
[1501,"MGO CULABA, BILIRAN","CULABA","Local Government Unit","Municipality"]
[1271,"MGO CULASI, ANTIQUE","CULASI","Local Government Unit","Municipality"]
[1097,"MGO CULION, PALAWAN","CULION","Local Government Unit","Municipality"]
[571,"MGO CURRIMAO, ILOCOS NORTE","CURRIMAO","Local Government Unit","Municipality"]
[839,"MGO CUYAPO, NUEVA ECIJA","CUYAPO","Local Government Unit","Municipality"]
[3127,"MGO CUYO, PALAWAN","CUYO","Local Government Unit","Municipality"]
[1439,"MGO DAANBANTAYAN, CEBU","DAANBANTAYAN","Local Government Unit","Municipality"]
[1182,"MGO DAET (CAPITAL), CAMARINES NORTE","DAET","Local Government Unit","Municipality"]
[1541,"MGO DAGAMI, LEYTE","DAGAMI","Local Government Unit","Municipality"]
[1389,"MGO DAGOHOY, BOHOL","DAGOHOY","Local Government Unit","Municipality"]
[1983,"MGO DAGUIOMAN, ABRA","DAGUIOMAN","Local Government Unit","Municipality"]
[1440,"MGO DALAGUETE, CEBU","DALAGUETE","Local Government Unit","Municipality"]
[1713,"MGO DAMULOG, BUKIDNON","DAMULOG","Local Government Unit","Municipality"]
[469,"MGO DANAO, BOHOL","DANAO","Local Government Unit","Municipality"]
[1714,"MGO DANGCAGAN, BUKIDNON","DANGCAGAN","Local Government Unit","Municipality"]
[1984,"MGO DANGLAS, ABRA","DANGLAS","Local Government Unit","Municipality"]
[1286,"MGO DAO, CAPIZ","DAO","Local Government Unit","Municipality"]
[1942,"MGO DAPA, SURIGAO DEL NORTE","DAPA","Local Government Unit","Municipality"]
[1166,"MGO DARAGA (LOCSIN), ALBAY","DARAGA (LOCSIN)","Local Government Unit","Municipality"]
[1601,"MGO DARAM, SAMAR (WESTERN)","DARAM","Local Government Unit","Municipality"]
[658,"MGO DASOL, PANGASINAN","DASOL","Local Government Unit","Municipality"]
[2117,"MGO DATU ABDULLAH SANGKI, MAGUINDANAO","DATU ABDULLAH SANGKI","Local Government Unit","Municipality"]
[2118,"MGO DATU ANGGAL MIDTIMBANG, MAGUINDANAO","DATU ANGGAL MIDTIMBANG","Local Government Unit","Municipality"]
[2119,"MGO DATU BLAH T. SINSUAT, MAGUINDANAO","DATU BLAH T. SINSUAT","Local Government Unit","Municipality"]
[2120,"MGO DATU HOFFER AMPATUAN, MAGUINDANAO","DATU HOFFER AMPATUAN","Local Government Unit","Municipality"]
[2121,"MGO DATU ODIN SINSUAT (DINAIG), MAGUINDANAO","DATU ODIN SINSUAT (DINAIG","Local Government Unit","Municipality"]
[2122,"MGO DATU PAGLAS, MAGUINDANAO","DATU PAGLAS","Local Government Unit","Municipality"]
[2123,"MGO DATU PIANG, MAGUINDANAO","DATU PIANG","Local Government Unit","Municipality"]
[2124,"MGO DATU SALIBO, MAGUINDANAO","DATU SALIBO","Local Government Unit","Municipality"]
[2125,"MGO DATU SAUDI-AMPATUAN, MAGUINDANAO","DATU SAUDI-AMPATUAN","Local Government Unit","Municipality"]
[2126,"MGO DATU UNSAY, MAGUINDANAO","DATU UNSAY","Local Government Unit","Municipality"]
[1472,"MGO DAUIN, NEGROS ORIENTAL","DAUIN","Local Government Unit","Municipality"]
[1391,"MGO DAUIS, BOHOL","DAUIS","Local Government Unit","Municipality"]
[1943,"MGO DEL CARMEN, SURIGAO DEL NORTE","DEL CARMEN","Local Government Unit","Municipality"]
[1152,"MGO DEL GALLEGO, CAMARINES SUR","DEL GALLEGO","Local Government Unit","Municipality"]
[733,"MGO DELFIN ALBANO (MAGSAYSAY), ISABELA","DELFIN ALBANO (MAGSAYSAY)","Local Government Unit","Municipality"]
[770,"MGO DIADI, NUEVA VIZCAYA","DIADI","Local Government Unit","Municipality"]
[782,"MGO DIFFUN, QUIRINO","DIFFUN","Local Government Unit","Municipality"]
[789,"MGO DILASAG, AURORA","DILASAG","Local Government Unit","Municipality"]
[1217,"MGO DIMASALANG, MASBATE","DIMASALANG","Local Government Unit","Municipality"]
[1669,"MGO DIMATALING, ZAMBOANGA DEL SUR","DIMATALING","Local Government Unit","Municipality"]
[1392,"MGO DIMIAO, BOHOL","DIMIAO","Local Government Unit","Municipality"]
[1931,"MGO DINAGAT, DINAGAT ISLAND","DINAGAT","Local Government Unit","Municipality"]
[790,"MGO DINALUNGAN, AURORA","DINALUNGAN","Local Government Unit","Municipality"]
[799,"MGO DINALUPIHAN, BATAAN","DINALUPIHAN","Local Government Unit","Municipality"]
[735,"MGO DINAPIGUE, ISABELA","DINAPIGUE","Local Government Unit","Municipality"]
[1670,"MGO DINAS, ZAMBOANGA DEL SUR","DINAS","Local Government Unit","Municipality"]
[791,"MGO DINGALAN , AURORA","DINGALAN","Local Government Unit","Municipality"]
[1322,"MGO DINGLE, ILOILO","DINGLE","Local Government Unit","Municipality"]
[572,"MGO DINGRAS, ILOCOS NORTE","DINGRAS","Local Government Unit","Municipality"]
[792,"MGO DIPACULAO, AURORA","DIPACULAO","Local Government Unit","Municipality"]
[1696,"MGO DIPLAHAN, ZAMBOANGA SIBUGAY","DIPLAHAN","Local Government Unit","Municipality"]
[2084,"MGO DITSAAN-RAMAIN, LANAO DEL SUR","DITSAAN-RAMAIN","Local Government Unit","Municipality"]
[736,"MGO DIVILACAN, ISABELA","DIVILACAN","Local Government Unit","Municipality"]
[1985,"MGO DOLORES, ABRA","DOLORES","Local Government Unit","Municipality"]
[1511,"MGO DOLORES, EASTERN SAMAR","DOLORES","Local Government Unit","Municipality"]
[1002,"MGO DOLORES, QUEZON","DOLORES","Local Government Unit","Municipality"]
[1715,"MGO DON CARLOS, BUKIDNON","DON CARLOS","Local Government Unit","Municipality"]
[1822,"MGO DON MARCELINO, DAVAO DEL SUR","DON MARCELINO","Local Government Unit","Municipality"]
[1767,"MGO DON VICTORIANO CHIONGBIAN, MISAMIS OCCIDENTAL","DON VICTORIANO CHIONGBIAN","Local Government Unit","Municipality"]
[817,"MGO DOÑA REMEDIOS TRINIDAD, BULACAN","DOñA REMEDIOS TRINIDAD","Local Government Unit","Municipality"]
[1237,"MGO DONSOL, SORSOGON","DONSOL","Local Government Unit","Municipality"]
[1323,"MGO DUEÑAS, ILOILO","DUEÑAS","Local Government Unit","Municipality"]
[1393,"MGO DUERO, BOHOL","DUERO","Local Government Unit","Municipality"]
[1542,"MGO DULAG, LEYTE","DULAG","Local Government Unit","Municipality"]
[1287,"MGO DUMALAG, CAPIZ","DUMALAG","Local Government Unit","Municipality"]
[1671,"MGO DUMALINAO, ZAMBOANGA DEL SUR","DUMALINAO","Local Government Unit","Municipality"]
[573,"MGO DUMALNEG, ILOCOS NORTE","DUMALNEG","Local Government Unit","Municipality"]
[1324,"MGO DUMANGAS, ILOILO","DUMANGAS","Local Government Unit","Municipality"]
[1441,"MGO DUMANJUG, CEBU","DUMANJUG","Local Government Unit","Municipality"]
[1099,"MGO DUMARAN, PALAWAN","DUMARAN","Local Government Unit","Municipality"]
[1288,"MGO DUMARAO, CAPIZ","DUMARAO","Local Government Unit","Municipality"]
[1672,"MGO DUMINGAG, ZAMBOANGA DEL SUR","DUMINGAG","Local Government Unit","Municipality"]
[3067,"MGO DUPAX DEL NORTE, NUEVA VIZCAYA","DUPAX","Local Government Unit","Municipality"]
[772,"MGO DUPAX DEL SUR, NUEVA VIZCAYA","DUPAX DEL SUR","Local Government Unit","Municipality"]
[771,"MGO DUPLAX DEL NORTE","DUPLAX DEL NORTE","Local Government Unit","Municipality"]
[737,"MGO ECHAGUE, ISABELA","ECHAGUE","Local Government Unit","Municipality"]
[1100,"MGO EL NIDO (BACUIT), PALAWAN","EL NIDO (BACUIT)","Local Government Unit","Municipality"]
[706,"MGO ENRILE, CAGAYAN","ENRILE","Local Government Unit","Municipality"]
[1356,"MGO ENRIQUE B MAGALONA (SARAVIA), NEGROS OCCIDENTAL","ENRIQUE B MAGALONA (SARAV","Local Government Unit","Municipality"]
[1490,"MGO ENRIQUE VILLANUEVA, SIQUIJOR","ENRIQUE VILLANUEVA","Local Government Unit","Municipality"]
[1916,"MGO ESPERANZA, AGUSAN DEL SUR","ESPERANZA","Local Government Unit","Municipality"]
[1218,"MGO ESPERANZA, MASBATE","ESPERANZA","Local Government Unit","Municipality"]
[1892,"MGO ESPERANZA, SULTAN KUDARAT","ESPERANZA","Local Government Unit","Municipality"]
[1325,"MGO ESTANCIA, ILOILO","ESTANCIA","Local Government Unit","Municipality"]
[971,"MGO FAMY, LAGUNA","FAMY","Local Government Unit","Municipality"]
[1118,"MGO FERROL, ROMBLON","FERROL","Local Government Unit","Municipality"]
[2008,"MGO FLORA, APAYAO","FLORA","Local Government Unit","Municipality"]
[867,"MGO FLORIDABLANCA, PAMPANGA","FLORIDABLANCA","Local Government Unit","Municipality"]
[840,"MGO GABALDON (BITULOK AND SABANI), NUEVA ECIJA","GABALDON (BITULOK AND SAB","Local Government Unit","Municipality"]
[1153,"MGO GAINZA, CAMARINES SUR","GAINZA","Local Government Unit","Municipality"]
[593,"MGO GALIMUYOD, ILOCOS SUR","GALIMUYOD","Local Government Unit","Municipality"]
[1578,"MGO GAMAY, NORTHERN SAMAR","GAMAY","Local Government Unit","Municipality"]
[738,"MGO GAMU, ISABELA","GAMU","Local Government Unit","Municipality"]
[2085,"MGO GANASSI, LANAO DEL SUR","GANASSI","Local Government Unit","Municipality"]
[1602,"MGO GANDARA, SAMAR (WESTERN)","GANDARA","Local Government Unit","Municipality"]
[1154,"MGO GARCHITORENA, CAMARINES SUR","GARCHITORENA","Local Government Unit","Municipality"]
[1394,"MGO GARCIA HERNANDEZ, BOHOL","GARCIA HERNANDEZ","Local Government Unit","Municipality"]
[1052,"MGO GASAN, MARINDUQUE","GASAN","Local Government Unit","Municipality"]
[707,"MGO GATTARAN, CAGAYAN","GATTARAN","Local Government Unit","Municipality"]
[2127,"MGO GEN SK PENDATUNGEN SK PENDATUN","GEN SK PENDATUN","Local Government Unit","Municipality"]
[2556,"MGO GEN. SALIPADA K. PENDATUN, MAGUINDANAO","GEN. SALIPADA K. PENDATUN","Local Government Unit","Municipality"]
[950,"MGO GENERAL EMILIO AGUINALDO, CAVITE","GENERAL EMILIO AGUINALDO","Local Government Unit","Municipality"]
[1003,"MGO GENERAL LUNA, QUEZON","GENERAL LUNA","Local Government Unit","Municipality"]
[1944,"MGO GENERAL LUNA, SURIGAO DEL NORTE","GENERAL LUNA","Local Government Unit","Municipality"]
[1512,"MGO GENERAL MACARTHUR, EASTERN SAMAR","GENERAL MACARTHUR","Local Government Unit","Municipality"]
[841,"MGO GENERAL MAMERTO NATIVIDAD, NUEVA ECIJA","GENERAL MAMERTO NATIVIDAD","Local Government Unit","Municipality"]
[951,"MGO GENERAL MARIANO ALVAREZ, CAVITE","GENERAL MARIANO ALZAREZ","Local Government Unit","Municipality"]
[1004,"MGO GENERAL NAKAR, QUEZON","GENERAL NAKAR","Local Government Unit","Municipality"]
[842,"MGO GENERAL TINIO (PAPAYA), NUEVA ECIJA","GENERAL TINIO (PAPAYA)","Local Government Unit","Municipality"]
[952,"MGO GENERAL TRIAS, CAVITE","GENERAL TRIAS","Local Government Unit","Municipality"]
[888,"MGO GERONA, TARLAC","GERONA","Local Government Unit","Municipality"]
[1945,"MGO GIGAQUIT, SURIGAO DEL NORTE","GIGAQUIT","Local Government Unit","Municipality"]
[1202,"MGO GIGMOTO, CATANDUANES","GIGMOTO","Local Government Unit","Municipality"]
[1442,"MGO GINATILAN, CEBU","GINATILAN","Local Government Unit","Municipality"]
[1513,"MGO GIPORLOS, EASTERN SAMAR","GIPORLOS","Local Government Unit","Municipality"]
[1781,"MGO GITAGUM, MISAMIS ORIENTAL","GITAGUM","Local Government Unit","Municipality"]
[1871,"MGO GLAN, SARANGANI","GLAN","Local Government Unit","Municipality"]
[1073,"MGO GLORIA, ORIENTAL MINDORO","GLORIA","Local Government Unit","Municipality"]
[1155,"MGO GOA, CAMARINES SUR","GOA","Local Government Unit","Municipality"]
[1645,"MGO GODOD, ZAMBOANGA DEL NORTE","GODOD","Local Government Unit","Municipality"]
[708,"MGO GONZAGA, CAGAYAN","GONZAGA","Local Government Unit","Municipality"]
[1841,"MGO GOVERNOR GENEROSO, DAVAO ORIENTAL","GOVERNOR GENEROSO","Local Government Unit","Municipality"]
[594,"MGO GREGORIO DEL PILAR (CONCEPTION), ILOCOS SUR","GREGORIO DEL PILAR","Local Government Unit","Municipality"]
[868,"MGO GUAGUA, PAMPANGA","GUAGUA","Local Government Unit","Municipality"]
[1238,"MGO GUBAT, SORSOGON","GUBAT","Local Government Unit","Municipality"]
[820,"MGO GUIGUINTO, BULACAN","GUIGUINTO","Local Government Unit","Municipality"]
[843,"MGO GUIMBA, NUEVA ECIJA","GUIMBA","Local Government Unit","Municipality"]
[1326,"MGO GUIMBAL, ILOILO","GUIMBAL","Local Government Unit","Municipality"]
[1006,"MGO GUINAYANGAN, QUEZON","GUINAYANGAN","Local Government Unit","Municipality"]
[1395,"MGO GUINDULMAN, BOHOL","GUINDULMAN","Local Government Unit","Municipality"]
[2129,"MGO GUINDULUNGAN, MAGUINDANAO","GUINDULUNGAN","Local Government Unit","Municipality"]
[1167,"MGO GUINOBATAN, ALBAY","GUINOBATAN","Local Government Unit","Municipality"]
[1733,"MGO GUINSILIBAN, CAMIGUIN","GUINSILIBAN","Local Government Unit","Municipality"]
[1673,"MGO GUIPOS, ZAMBOANGA DEL SUR","GUIPOS","Local Government Unit","Municipality"]
[1514,"MGO GUIUAN, EASTERN SAMAR","GUIUAN","Local Government Unit","Municipality"]
[1007,"MGO GUMACA, QUEZON","GUMACA","Local Government Unit","Municipality"]
[1646,"MGO GUTALAC, ZAMBOANGA DEL NORTE","GUTALAC","Local Government Unit","Municipality"]
[2063,"MGO HADJI MOHAMMAD AJUL, BASILAN","HADJI MOHAMMAD AJUL","Local Government Unit","Municipality"]
[2064,"MGO HADJI MUHTAMAD, BASILAN","HADJI MUHTAMAD","Local Government Unit","Municipality"]
[2150,"MGO HADJI PANGLIMA TAHIL (MARUNGGAS), SULU","HADJI PANGLIMA TAHIL (MAR","Local Government Unit","Municipality"]
[821,"MGO HAGONOY, BULACAN","HAGONOY","Local Government Unit","Municipality"]
[1823,"MGO HAGONOY, DAVAO DEL SUR","HAGONOY","Local Government Unit","Municipality"]
[1272,"MGO HAMTIC, ANTIQUE","HAMTIC","Local Government Unit","Municipality"]
[800,"MGO HERMOSA, BATAAN","HERMOSA","Local Government Unit","Municipality"]
[1515,"MGO HERNANI, EASTERN SAMAR","HERNANI","Local Government Unit","Municipality"]
[1543,"MGO HILONGOS, LEYTE","HILONGOS","Local Government Unit","Municipality"]
[1603,"MGO HINABANGAN, SAMAR (WESTERN)","HINABANGAN","Local Government Unit","Municipality"]
[1968,"MGO HINATUAN, SURIGAO DEL SUR","HINATUAN","Local Government Unit","Municipality"]
[1544,"MGO HINDANG, LEYTE","HINDANG","Local Government Unit","Municipality"]
[2034,"MGO HINGYON, IFUGAO","HINGYON","Local Government Unit","Municipality"]
[1357,"MGO HINIGARAN, NEGROS OCCIDENTAL","HINIGARAN","Local Government Unit","Municipality"]
[1358,"MGO HINOBA-AN (ASIA), NEGROS OCCIDENTAL","HINOBA-AN (ASIA)","Local Government Unit","Municipality"]
[1626,"MGO HINUNANGAN, SAMAR (WESTERN)","HINUNANGAN","Local Government Unit","Municipality"]
[3070,"MGO HINUNDAYAN, SOUTHERN LEYTE","HINUNDAYAN","Local Government Unit","Municipality"]
[2035,"MGO HUNGDUAN, IFUGAO","HUNGDUAN","Local Government Unit","Municipality"]
[905,"MGO IBA (CAPITAL), ZAMBALES","IBA","Local Government Unit","Municipality"]
[923,"MGO IBAAN, BATANGAS","IBAAN","Local Government Unit","Municipality"]
[1252,"MGO IBAJAY, AKLAN","IBAJAY","Local Government Unit","Municipality"]
[1327,"MGO IGBARAS, ILOILO","IGBARAS","Local Government Unit","Municipality"]
[709,"MGO IGUIG, CAGAYAN","IGUIG","Local Government Unit","Municipality"]
[739,"MGO ILIGAN, ISABELA","ILIGAN","Local Government Unit","Municipality"]
[1359,"MGO ILOG, NEGROS OCCIDENTAL","ILOG","Local Government Unit","Municipality"]
[1697,"MGO IMELDA, ZAMBOANGA SIBUGAY","IMELDA","Local Government Unit","Municipality"]
[1716,"MGO IMPASUG-ONG, BUKIDNON","IMPASUG-ONG","Local Government Unit","Municipality"]
[1396,"MGO INABANGA, BOHOL","INABANGA","Local Government Unit","Municipality"]
[2151,"MGO INDANAN, SULU","INDANAN","Local Government Unit","Municipality"]
[953,"MGO INDANG, CAVITE","INDANG","Local Government Unit","Municipality"]
[659,"MGO INFANTA, PANGASINAN","INFANTA","Local Government Unit","Municipality"]
[1008,"MGO INFANTA, QUEZON","INFANTA","Local Government Unit","Municipality"]
[1782,"MGO INITAO, MISAMIS ORIENTAL","INITAO","Local Government Unit","Municipality"]
[1545,"MGO INOPACAN, LEYTE","INOPACAN","Local Government Unit","Municipality"]
[1698,"MGO IPIL, ZAMBOANGA SIBUGAY","IPIL","Local Government Unit","Municipality"]
[1239,"MGO IROSIN, SORSOGON","IROSIN","Local Government Unit","Municipality"]
[1546,"MGO ISABEL, LEYTE","ISABEL","Local Government Unit","Municipality"]
[1360,"MGO ISABELA, NEGROS OCCIDENTAL","ISABELA","Local Government Unit","Municipality"]
[1893,"MGO ISULAN (CAPITAL), SULTAN KUDARAT","ISULAN","Local Government Unit","Municipality"]
[689,"MGO ITBAYAT, BATANES","ITBAYAT","Local Government Unit","Municipality"]
[3100,"MGO ITOGON, BENGUET","ITOGON","Local Government Unit","Municipality"]
[690,"MGO IVANA, BATANES","IVANA","Local Government Unit","Municipality"]
[1289,"MGO IVISAN, CAPIZ","IVISAN","Local Government Unit","Municipality"]
[1905,"MGO JABONGA, AGUSAN DEL NORTE","JABONGA","Local Government Unit","Municipality"]
[844,"MGO JAEN, NUEVA ECIJA","JAEN","Local Government Unit","Municipality"]
[1397,"MGO JAGNA, BOHOL","JAGNA","Local Government Unit","Municipality"]
[1041,"MGO JALA-JALA, RIZAL","JALA-JALA","Local Government Unit","Municipality"]
[1290,"MGO JAMINDAN, CAPIZ","JAMINDAN","Local Government Unit","Municipality"]
[1328,"MGO JANIUAY, ILOILO","JANIUAY","Local Government Unit","Municipality"]
[1547,"MGO JARO, LEYTE","JARO","Local Government Unit","Municipality"]
[1783,"MGO JASAAN, MISAMIS ORIENTAL","JASAAN","Local Government Unit","Municipality"]
[1548,"MGO JAVIER (BUGHO), LEYTE","JAVIER (BUGHO)","Local Government Unit","Municipality"]
[1398,"MGO JETAFE, BOHOL","JETAFE","Local Government Unit","Municipality"]
[1604,"MGO JIABONG, SAMAR (WESTERN)","JIABONG","Local Government Unit","Municipality"]
[1474,"MGO JIMALALUD, NEGROS ORIENTAL","JIMALALUD","Local Government Unit","Municipality"]
[1768,"MGO JIMENEZ, MISAMIS OCCIDENTAL","JIMENEZ","Local Government Unit","Municipality"]
[1516,"MGO JIPAPAD, EASTREN SAMAR","JIPAPAD","Local Government Unit","Municipality"]
[2152,"MGO JOLO (CAPITAL), SULU","JOLO","Local Government Unit","Municipality"]
[1009,"MGO JOMALIG, QUEZON","JOMALIG","Local Government Unit","Municipality"]
[740,"MGO JONES, ISABELA","JONES","Local Government Unit","Municipality"]
[2939,"MGO JORDAN WATER DISTRCIT","JORDAN","Executive Branch","LWD"]
[1303,"MGO JORDAN, GUIMARAS","JORDAN","Local Government Unit","Municipality"]
[1824,"MGO JOSE ABAD SANTOS (TRINIDAD), DAVAO DEL SUR","JOSE ABAD SANTOS (TRINIDA","Local Government Unit","Municipality"]
[1647,"MGO JOSE DALMAN (PONOT), ZAMBOANGA DEL NORTE","JOSE DALMAN (PONOT)","Local Government Unit","Municipality"]
[1183,"MGO JOSE PANGANIBAN, CAMARINES NORTE","JOSE PANGANIBAN","Local Government Unit","Municipality"]
[1674,"MGO JOSEFINA, ZAMBOANGA DEL SUR","JOSEFINA","Local Government Unit","Municipality"]
[1168,"MGO JOVELLAR, ALBAY","JOVELLAR","Local Government Unit","Municipality"]
[1240,"MGO JUBAN, SORSOGON","JUBAN","Local Government Unit","Municipality"]
[1549,"MGO JULITA, LEYTE","JULITA","Local Government Unit","Municipality"]
[1856,"MGO KABACAN, NORTH COTABATO","KABACAN","Local Government Unit","Municipality"]
[1699,"MGO KABASALAN, ZAMBOANGA SIBUGAY","KABASALAN","Local Government Unit","Municipality"]
[2021,"MGO KABAYAN, BENGUET","KABAYAN","Local Government Unit","Municipality"]
[2009,"MGO KABUGAO (CAPITAL), APAYAO","KABUGAO","Local Government Unit","Municipality"]
[2128,"MGO KABUNTALAN (TUMBAO), MAGUINDANAO","KABUNTALAN (TUMBAO)","Local Government Unit","Municipality"]
[1717,"MGO KADINGILAN, BUKIDNON","KADINGILAN","Local Government Unit","Municipality"]
[1894,"MGO KALAMANSIG, SULTAN KUDARAT","KALAMANSIG","Local Government Unit","Municipality"]
[1648,"MGO KALAWIT, ZAMBOANGA DEL NORTE","KALAWIT","Local Government Unit","Municipality"]
[972,"MGO KALAYAAN, LAGUNA","KALAYAAN","Local Government Unit","Municipality"]
[1101,"MGO KALAYAAN, PALAWAN","KALAYAAN","Local Government Unit","Municipality"]
[1253,"MGO KALIBO, AKLAN","KALIBO","Local Government Unit","Municipality"]
[1718,"MGO KALILANGAN, BUKIDNON","KALILANGAN","Local Government Unit","Municipality"]
[2153,"MGO KALINGALAN CALUANG, SULU","KALINGALAN CALUANG","Local Government Unit","Municipality"]
[1550,"MGO KANANGA, LEYTE","KANANGA","Local Government Unit","Municipality"]
[2086,"MGO KAPAI, LANAO DEL SUR","KAPAI","Local Government Unit","Municipality"]
[1815,"MGO KAPALONG, DAVAO DEL NORTE","KAPALONG","Local Government Unit","Municipality"]
[2022,"MGO KAPANGAN, BENGUET","KAPANGAN","Local Government Unit","Municipality"]
[1741,"MGO KAPATAGAN, LANAO DEL NORTE","KAPATAGAN","Local Government Unit","Municipality"]
[2087,"MGO KAPATAGAN, LANAO DEL SUR","KAPATAGAN","Local Government Unit","Municipality"]
[773,"MGO KASIBU, NUEVA VIZCAYA","KASIBU","Local Government Unit","Municipality"]
[1649,"MGO KATIPUNAN, ZAMBOANGA DEL NORTE","KATIPUNAN","Local Government Unit","Municipality"]
[1742,"MGO KAUSWAGAN, LANAO DEL NORTE","KAUSWAGAN","Local Government Unit","Municipality"]
[1502,"MGO KAWAYAN, BILIRAN","KAWAYAN","Local Government Unit","Municipality"]
[954,"MGO KAWIT, CAVITE","KAWIT","Local Government Unit","Municipality"]
[774,"MGO KAYAPA, NUEVA VIZCAYA","KAYAPA","Local Government Unit","Municipality"]
[1872,"MGO KIAMBA, SARANGANI","KIAMBA","Local Government Unit","Municipality"]
[2036,"MGO KIANGAN, IFUGAO","KIANGAN","Local Government Unit","Municipality"]
[1719,"MGO KIBAWE, BUKIDNON","KIBAWE","Local Government Unit","Municipality"]
[1825,"MGO KIBLAWAN, DAVAO DEL SUR","KIBLAWAN","Local Government Unit","Municipality"]
[2023,"MGO KIBUNGAN, BENGUET","KIBUNGAN","Local Government Unit","Municipality"]
[1784,"MGO KINOGUITAN, MISAMIS ORIENTAL","KINOGUITAN","Local Government Unit","Municipality"]
[1720,"MGO KITAOTAO, BUKIDNON","KITAOTAO","Local Government Unit","Municipality"]
[1906,"MGO KITCHARAO, AGUSAN DEL NORTE","KITCHARAO","Local Government Unit","Municipality"]
[1743,"MGO KOLAMBUGAN, LANAO DEL NORTE","KOLAMBUGAN","Local Government Unit","Municipality"]
[1675,"MGO KUMALARANG, ZAMBOANGA DEL SUR","KUMALARANG","Local Government Unit","Municipality"]
[2062,"MGO L A SALI","L A SALI","Local Government Unit","Municipality"]
[1361,"MGO LA CASTELLANA, NEGROS OCCIDENTAL","LA CASTELLANA","Local Government Unit","Municipality"]
[1475,"MGO LA LIBERTAD, NEGROS ORIENTAL","LA LIBERTAD","Local Government Unit","Municipality"]
[3071,"MGO LA LIBERTAD, ZAMBOANGA DEL NORTE","LA LIBERTAD","Local Government Unit","Municipality"]
[1986,"MGO LA PAZ, ABRA","LA PAZ","Local Government Unit","Municipality"]
[1917,"MGO LA PAZ, AGUSAN DEL SUR","LA PAZ","Local Government Unit","Municipality"]
[1551,"MGO LA PAZ, LEYTE","LA PAZ","Local Government Unit","Municipality"]
[889,"MGO LA PAZ, TARLAC","LA PAZ","Local Government Unit","Municipality"]
[3080,"MGO LA TRINIDAD (CAPITAL), BENGUET","LA TRINIDAD","Local Government Unit","Municipality"]
[1801,"MGO LAAK (SAN VICENTE), COMPOSTELA VALLEY","LAAK (SAN VICENTE)","Local Government Unit","Municipality"]
[1676,"MGO LABANGAN, ZAMBOANGA DEL SUR","LABANGAN","Local Government Unit","Municipality"]
[1650,"MGO LABASON, ZAMBOANGA DEL NORTE","LABASON","Local Government Unit","Municipality"]
[1184,"MGO LABO, CAMARINES NORTE","LABO","Local Government Unit","Municipality"]
[660,"MGO LABRADOR, PANGASINAN","LABRADOR","Local Government Unit","Municipality"]
[1987,"MGO LACUB, ABRA","LACUB","Local Government Unit","Municipality"]
[3103,"MGO LAGANGILANG, ABRA","LAGANGILANG","Local Government Unit","Municipality"]
[2037,"MGO LAGAWE (CAPITAL), IFUGAO","LAGAWE","Local Government Unit","Municipality"]
[1988,"MGO LAGAYAN, ABRA","LAGAYAN","Local Government Unit","Municipality"]
[1785,"MGO LAGONGLONG, MISAMIS ORIENTAL","LAGONGLONG","Local Government Unit","Municipality"]
[1156,"MGO LAGONOY, CAMARINES SUR","LAGONOY","Local Government Unit","Municipality"]
[1786,"MGO LAGUINDINGAN, MISAMIS ORIENTAL","LAGUINDINGAN","Local Government Unit","Municipality"]
[1879,"MGO LAKE SEBU, SOUTH COTABATO","LAKE SEBU","Local Government Unit","Municipality"]
[1677,"MGO LAKEWOOD, ZAMBOANGA DEL SUR","LAKEWOOD","Local Government Unit","Municipality"]
[1744,"MGO LALA, LANAO DEL NORTE","LALA","Local Government Unit","Municipality"]
[710,"MGO LAL-LO, CAGAYAN","LAL-LO","Local Government Unit","Municipality"]
[1895,"MGO LAMBAYONG (MARIANO MARCOS), SULTAN KUDARAT","LAMBAYONG (MARIANO MARCOS)","Local Government Unit","Municipality"]
[1329,"MGO LAMBUNAO, ILOILO","LAMBUNAO","Local Government Unit","Municipality"]
[2038,"MGO LAMUT, IFUGAO","LAMUT","Local Government Unit","Municipality"]
[1989,"MGO LANGIDEN, ABRA","LANGIDEN","Local Government Unit","Municipality"]
[2171,"MGO LANGUYAN, TAWI-TAWI","LANGUYAN","Local Government Unit","Municipality"]
[1721,"MGO LANTAPAN, BUKIDNON","LANTAPAN","Local Government Unit","Municipality"]
[2066,"MGO LANTAWAN, BASILAN","LANTAWAN","Local Government Unit","Municipality"]
[1969,"MGO LANUZA, SURIGAO DEL SUR","LANUZA","Local Government Unit","Municipality"]
[662,"MGO LAOAC","LAOAC","Local Government Unit","Municipality"]
[661,"MGO LAOAC, PANGASINAN","LAOAC","Local Government Unit","Municipality"]
[1579,"MGO LAOANG, NORTHERN SAMAR","LAOANG","Local Government Unit","Municipality"]
[1580,"MGO LAPINIG, NORTHERN SAMAR","LAPINIG","Local Government Unit","Municipality"]
[1678,"MGO LAPUYAN, ZAMBOANGA DEL SUR","LAPUYAN","Local Government Unit","Municipality"]
[1491,"MGO LARENA, SIQUIJOR","LARENA","Local Government Unit","Municipality"]
[1581,"MGO LAS NAVAS, NORTHERN SAMAR","LAS NAVAS","Local Government Unit","Municipality"]
[1907,"MGO LAS NIEVES, AGUSAN DEL NORTE","LAS NIEVES","Local Government Unit","Municipality"]
[711,"MGO LASAM, CAGAYAN","LASAM","Local Government Unit","Municipality"]
[1273,"MGO LAUA-AN, ANTIQUE","LAUA-AN","Local Government Unit","Municipality"]
[845,"MGO LAUR, NUEVA ECIJA","LAUR","Local Government Unit","Municipality"]
[924,"MGO LAUREL, BATANGAS","LAUREL","Local Government Unit","Municipality"]
[1582,"MGO LAVEZARES, NORTHERN SAMAR","LAVEZARES","Local Government Unit","Municipality"]
[1517,"MGO LAWAAN, EASTERN SAMAR","LAWAAN","Local Government Unit","Municipality"]
[1492,"MGO LAZI, SIQUIJOR","LAZI","Local Government Unit","Municipality"]
[1896,"MGO LEBAK, SULTAN KUDARAT","LEBAK","Local Government Unit","Municipality"]
[1330,"MGO LEGANES","LEGANES","Local Government Unit","Municipality"]
[1331,"MGO LEGANES, ILOILO","LEGANES","Local Government Unit","Municipality"]
[925,"MGO LEMERY, BATANGAS","LEMERY","Local Government Unit","Municipality"]
[1332,"MGO LEMERY, ILOILO","LEMERY","Local Government Unit","Municipality"]
[1333,"MGO LEON, ILOILO","LEON","Local Government Unit","Municipality"]
[1552,"MGO LEYTE, LEYTE","LEYTE","Local Government Unit","Municipality"]
[1254,"MGO LEZO, AKLAN","LEZO","Local Government Unit","Municipality"]
[926,"MGO LIAN, BATANGAS","LIAN","Local Government Unit","Municipality"]
[1970,"MGO LIANGA, SURIGAO DEL SUR","LIANGA","Local Government Unit","Municipality"]
[1255,"MGO LIBACAO, AKLAN","LIBACAO","Local Government Unit","Municipality"]
[1628,"MGO LIBAGON, SOUTHERN LEYTE","LIBAGON","Local Government Unit","Municipality"]
[1274,"MGO LIBERTAD, ANTIQUE","LIBERTAD","Local Government Unit","Municipality"]
[1787,"MGO LIBERTAD, MISAMIS ORIENTAL","LIBERTAD","Local Government Unit","Municipality"]
[1932,"MGO LIBJO (ALBOR), DINAGAT ISLAND","LIBJO (ALBOR)","Local Government Unit","Municipality"]
[1157,"MGO LIBMANAN, CAMARINES SUR","LIBMANAN","Local Government Unit","Municipality"]
[1169,"MGO LIBON, ALBAY","LIBON","Local Government Unit","Municipality"]
[1722,"MGO LIBONA, BUKIDNON","LIBONA","Local Government Unit","Municipality"]
[1857,"MGO LIBUNGAN, NORTH COTABATO","LIBUNGAN","Local Government Unit","Municipality"]
[846,"MGO LICAB, NUEVA ECIJA","LICAB","Local Government Unit","Municipality"]
[1990,"MGO LICUAN-BAAY (LICUAN), ABRA","LICUAN-BAAY (LICUAN)","Local Government Unit","Municipality"]
[595,"MGO LIDLIDDA, ILOCOS SUR","LIDLIDDA","Local Government Unit","Municipality"]
[1399,"MGO LILA, BOHOL","LILA","Local Government Unit","Municipality"]
[973,"MGO LILIW, LAGUNA","LILIW","Local Government Unit","Municipality"]
[1443,"MGO LILOAN, CEBU","LILOAN","Local Government Unit","Municipality"]
[1629,"MGO LILOAN, SOUTHERN LEYTE","LILOAN","Local Government Unit","Municipality"]
[1651,"MGO LILOY, ZAMBOANGA DEL NORTE","LILOY","Local Government Unit","Municipality"]
[1630,"MGO LIMASAWA, SOUTHERN LEYTE","LIMASAWA","Local Government Unit","Municipality"]
[801,"MGO LIMAY, BATAAN","LIMAY","Local Government Unit","Municipality"]
[1745,"MGO LINAMON, LANAO DEL NORTE","LINAMON","Local Government Unit","Municipality"]
[1102,"MGO LINAPACAN, PALAWAN","LINAPACAN","Local Government Unit","Municipality"]
[663,"MGO LINGAYEN (CAPITAL), PANGASINAN","LINGAYEN","Local Government Unit","Municipality"]
[1971,"MGO LINGIG, SURIGAO DEL SUR","LINGIG","Local Government Unit","Municipality"]
[847,"MGO LLANERA, NUEVA ECIJA","LLANERA","Local Government Unit","Municipality"]
[1518,"MGO LLORENTE, EASTERN SAMAR","LLORENTE","Local Government Unit","Municipality"]
[1400,"MGO LOAY, BOHOL","LOAY","Local Government Unit","Municipality"]
[927,"MGO LOBO, BATANGAS","LOBO","Local Government Unit","Municipality"]
[1401,"MGO LOBOC, BOHOL","LOBOC","Local Government Unit","Municipality"]
[2044,"MGO LOGAN","LOGAN","Local Government Unit","Municipality"]
[1059,"MGO LOOC, OCCIDENTAL MINDORO","LOOC","Local Government Unit","Municipality"]
[1119,"MGO LOOC, ROMBLON","LOOC","Local Government Unit","Municipality"]
[1402,"MGO LOON, BOHOL","LOON","Local Government Unit","Municipality"]
[1583,"MGO LOPE DE VEGA, NORTHERN SAMAR","LOPE DE VEGA","Local Government Unit","Municipality"]
[1769,"MGO LOPEZ JAENA, MISAMIS OCCIDENTAL","LOPEZ JAENA","Local Government Unit","Municipality"]
[1010,"MGO LOPEZ, QUEZON","LOPEZ","Local Government Unit","Municipality"]
[1933,"MGO LORETO, AGUSAN DEL SUR","LORETO","Local Government Unit","Municipality"]
[1918,"MGO LORETO, DINAGAT ISLAND","LORETO","Local Government Unit","Municipality"]
[974,"MGO LOS BAÑOS, LAGUNA","LOS BAÑOS","Local Government Unit","Municipality"]
[1991,"MGO LUBA, ABRA","LUBA","Local Government Unit","Municipality"]
[1060,"MGO LUBANG, OCCIDENTAL MINDORO","LUBANG","Local Government Unit","Municipality"]
[869,"MGO LUBAO, PAMPANGA","LUBAO","Local Government Unit","Municipality"]
[2042,"MGO LUBUAGAN, KALINGA","LUBUAGAN","Local Government Unit","Municipality"]
[1011,"MGO LUCBAN, QUEZON","LUCBAN","Local Government Unit","Municipality"]
[1788,"MGO LUGAIT, MISAMIS ORIENTAL","LUGAIT","Local Government Unit","Municipality"]
[2154,"MGO LUGUS, SULU","LUGUS","Local Government Unit","Municipality"]
[975,"MGO LUISIANA, LAGUNA","LUISIANA","Local Government Unit","Municipality"]
[2088,"MGO LUMBA-BAYABAO (MAGUING), LANAO DEL SUR","LUMBA-BAYABAO (MAGUING)","Local Government Unit","Municipality"]
[2089,"MGO LUMBACA-UNAYAN, LANAO DEL SUR","LUMBACA-UNAYAN","Local Government Unit","Municipality"]
[976,"MGO LUMBAN, LAGUNA","LUMBAN","Local Government Unit","Municipality"]
[2090,"MGO LUMBATAN, LANAO DEL SUR","LUMBATAN","Local Government Unit","Municipality"]
[2091,"MGO LUMBAYANAGUE, LANAO DEL SUR","LUMBAYANAGUE","Local Government Unit","Municipality"]
[2011,"MGO LUNA","LUNA","Local Government Unit","Municipality"]
[2012,"MGO LUNA, APAYAO","LUNA","Local Government Unit","Municipality"]
[741,"MGO LUNA, CAGAYAN","LUNA","Local Government Unit","Municipality"]
[2010,"MGO LUNA, ISABELA","LUNA","Local Government Unit","Municipality"]
[629,"MGO LUNA, LA UNION","LUNA","Local Government Unit","Municipality"]
[848,"MGO LUPAO, NUEVA ECIJA","LUPAO","Local Government Unit","Municipality"]
[1158,"MGO LUPI, CAMARINES SUR","LUPI","Local Government Unit","Municipality"]
[1842,"MGO LUPON, DAVAO ORIENTAL","LUPON","Local Government Unit","Municipality"]
[1897,"MGO LUTAYAN, SULTAN KUDARAT","LUTAYAN","Local Government Unit","Municipality"]
[2155,"MGO LUUK, SULU","LUUK","Local Government Unit","Municipality"]
[1860,"MGO M LANG, COTABATO (NORTH COTABATO)","M LANG","Local Government Unit","Municipality"]
[1873,"MGO MAASIM, SARANGANI","MAASIM","Local Government Unit","Municipality"]
[1334,"MGO MAASIN, ILOILO","MAASIN","Local Government Unit","Municipality"]
[1291,"MGO MA-AYON, CAPIZ","MA-AYON","Local Government Unit","Municipality"]
[870,"MGO MABALACAT, PAMPANGA","MABALACAT","Local Government Unit","Municipality"]
[1476,"MGO MABINAY, NEGROS ORIENTAL","MABINAY","Local Government Unit","Municipality"]
[1802,"MGO MABINI (DOÑA ALICIA), COMPOSTELA VALLEY","MABINI (DOÑA ALICIA)","Local Government Unit","Municipality"]
[928,"MGO MABINI, BATANGAS","MABINI","Local Government Unit","Municipality"]
[1403,"MGO MABINI, BOHOL","MABINI","Local Government Unit","Municipality"]
[664,"MGO MABINI, PANGASINAN","MABINI","Local Government Unit","Municipality"]
[977,"MGO MABITAC, LAGUNA","MABITAC","Local Government Unit","Municipality"]
[1700,"MGO MABUHAY, ZAMBOANGA SIBUGAY","MABUHAY","Local Government Unit","Municipality"]
[871,"MGO MACABEBE, PAMPANGA","MACABEBE","Local Government Unit","Municipality"]
[1012,"MGO MACALELON, QUEZON","MACALELON","Local Government Unit","Municipality"]
[1553,"MGO MACARTHUR, LEYTE","MACARTHUR","Local Government Unit","Municipality"]
[1803,"MGO MACO, COMPOSTELA VALLEY","MACO","Local Government Unit","Municipality"]
[743,"MGO MACONACON, ISABELA","MACONANCON","Local Government Unit","Municipality"]
[1631,"MGO MACROHON, SOUTHERN LEYTE","MACROHON","Local Government Unit","Municipality"]
[1256,"MGO MADALAG, AKLAN","MADALAG","Local Government Unit","Municipality"]
[2092,"MGO MADALUM, LANAO DEL SUR","MADALUM","Local Government Unit","Municipality"]
[2093,"MGO MADAMBA, LANAO DEL SUR","MADAMBA","Local Government Unit","Municipality"]
[783,"MGO MADDELA, QUIRINO","MADDELA","Local Government Unit","Municipality"]
[1972,"MGO MADRID, SURIGAO DEL SUR","MADRID","Local Government Unit","Municipality"]
[1444,"MGO MADRIDEJOS, CEBU","MADRIDEJOS","Local Government Unit","Municipality"]
[3117,"MGO MAGALANG, PAMPANGA","MAGALANG","Local Government Unit","Municipality"]
[1908,"MGO MAGALLANES, AGUSAN DEL NORTE","MAGALLANES","Local Government Unit","Municipality"]
[955,"MGO MAGALLANES, CAVITE","MAGALLANES","Local Government Unit","Municipality"]
[1241,"MGO MAGALLANES, SORSOGON","MAGALLANES","Local Government Unit","Municipality"]
[1159,"MGO MAGARAO, CAMARINES SUR","MAGARAO","Local Government Unit","Municipality"]
[978,"MGO MAGDALENA, LAGUNA","MAGDALENA","Local Government Unit","Municipality"]
[1120,"MGO MAGDIWANG, ROMBLON","MAGDIWANG","Local Government Unit","Municipality"]
[1861,"MGO MAGPET, NORTH CATABATO","MAGPET","Local Government Unit","Municipality"]
[1789,"MGO MAGSAYSAY (LINUGOS), MISAMIS ORIENTAL","MAGSAYSAY (LINUGOS)","Local Government Unit","Municipality"]
[1826,"MGO MAGSAYSAY, DAVAO DEL SUR","MAGSAYSAY","Local Government Unit","Municipality"]
[1746,"MGO MAGSAYSAY, LANAO DEL NORTE","MAGSAYSAY","Local Government Unit","Municipality"]
[1061,"MGO MAGSAYSAY, OCCIDENTAL MINDORO","MAGSAYSAY","Local Government Unit","Municipality"]
[1103,"MGO MAGSAYSAY, PALAWAN","MAGSAYSAY","Local Government Unit","Municipality"]
[596,"MGO MAGSINGAL, ILOCOS SUR","MAGSINGAL","Local Government Unit","Municipality"]
[2094,"MGO MAGUING, LANAO DEL SUR","MAGUING","Local Government Unit","Municipality"]
[1554,"MGO MAHAPLAG, LEYTE","MAHAPLAG","Local Government Unit","Municipality"]
[691,"MGO MAHATAO, BATANES","MAHATAO","Local Government Unit","Municipality"]
[1679,"MGO MAHAYAG, ZAMBOANGA DEL SUR","MAHAYAG","Local Government Unit","Municipality"]
[1734,"MGO MAHINOG, CAMIGUIN","MAHINOG","Local Government Unit","Municipality"]
[1747,"MGO MAIGO, LANAO DEL NORTE","MAIGO","Local Government Unit","Municipality"]
[2156,"MGO MAIMBUNG, SULU","MAIMBUNG","Local Government Unit","Municipality"]
[1946,"MGO MAINIT, SURIGAO DEL NORTE","MAINIT","Local Government Unit","Municipality"]
[1874,"MGO MAITUM, SARANGANI","MAITUM","Local Government Unit","Municipality"]
[979,"MGO MAJAYJAY, LAGUNA","MAJAYJAY","Local Government Unit","Municipality"]
[1257,"MGO MAKATO, AKLAN","MAKATO","Local Government Unit","Municipality"]
[1862,"MGO MAKILALA, NORTH COTABATO","MAKILALA","Local Government Unit","Municipality"]
[2095,"MGO MALABANG, LANAO DEL SUR","MALABANG","Local Government Unit","Municipality"]
[1445,"MGO MALABUYOC, CEBU","MALABUYOC","Local Government Unit","Municipality"]
[3073,"MGO MALALAG, DAVAO DEL SUR","MALALAG","Local Government Unit","Municipality"]
[1014,"MGO MALANAY","MALANAY","Local Government Unit","Municipality"]
[1701,"MGO MALANGAS, ZAMBOANGA SIBUGAY","MALANGAS","Local Government Unit","Municipality"]
[1875,"MGO MALAPATAN, SARANGANI","MALAPATAN","Local Government Unit","Municipality"]
[665,"MGO MALASIQUI, PANGASINAN","MALASIQUI","Local Government Unit","Municipality"]
[1258,"MGO MALAY, AKLAN","MALAY","Local Government Unit","Municipality"]
[1992,"MGO MALIBCONG, ABRA","MALIBCONG","Local Government Unit","Municipality"]
[1170,"MGO MALILIPOT, ALBAY","MALILIPOT","Local Government Unit","Municipality"]
[1948,"MGO MALIMONO","MALIMONO","Local Government Unit","Municipality"]
[1947,"MGO MALIMONO, SURIGAO DEL NORTE","MALIMONO","Local Government Unit","Municipality"]
[1259,"MGO MALINAO, AKLAN","MALINAO","Local Government Unit","Municipality"]
[1171,"MGO MALINAO, ALBAY","MALINAO","Local Government Unit","Municipality"]
[1828,"MGO MALITA, DAVAO DEL SUR","MALITA","Local Government Unit","Municipality"]
[1723,"MGO MALITBOG, BUKIDNON","MALITBOG","Local Government Unit","Municipality"]
[1632,"MGO MALITBOG, SOUTHERN LEYTE","MALITBOG","Local Government Unit","Municipality"]
[744,"MGO MALLIG, ISABELA","MALLIG","Local Government Unit","Municipality"]
[1876,"MGO MALUNGON, SARANGANI","MALUNGON","Local Government Unit","Municipality"]
[2067,"MGO MALUSO, BASILAN","MALUSO","Local Government Unit","Municipality"]
[929,"MGO MALVAR, BATANGAS","MALVAR","Local Government Unit","Municipality"]
[2130,"MGO MAMASAPANO, MAGUINDANAO","MAMASAPANO","Local Government Unit","Municipality"]
[1735,"MGO MAMBAJAO (CAPITAL), CAMIGUIN","MAMBAJAO","Local Government Unit","Municipality"]
[1062,"MGO MAMBURAO (CAPITAL), OCCIDENTAL MINDORO","MAMBURAO","Local Government Unit","Municipality"]
[1292,"MGO MAMBUSAO, CAPIZ","MAMBUSAO","Local Government Unit","Municipality"]
[1993,"MGO MANABO, ABRA","MANABO","Local Government Unit","Municipality"]
[666,"MGO MANAOAG, PANGASINAN","MANAOAG","Local Government Unit","Municipality"]
[1362,"MGO MANAPLA, NEGROS OCCIDENTAL","MANAPLA","Local Government Unit","Municipality"]
[1845,"MGO MANAY, DAVAO ORIENTAL","MANAY","Local Government Unit","Municipality"]
[1219,"MGO MANDAON, MASBATE","MANDAON","Local Government Unit","Municipality"]
[667,"MGO MANGALDAN, PANGASINAN","MANGALDAN","Local Government Unit","Municipality"]
[668,"MGO MANGATAREM, PANGASINAN","MANGATAREM","Local Government Unit","Municipality"]
[2131,"MGO MANGUDADATU, MAGUINDANAO","MANGUDADATU","Local Government Unit","Municipality"]
[1172,"MGO MANITO, ALBAY","MANITO","Local Government Unit","Municipality"]
[1477,"MGO MANJUYOD, NEGROS ORIENTAL","MANJUYOD","Local Government Unit","Municipality"]
[2025,"MGO MANKAYAN, BENGUET","MANKAYAN","Local Government Unit","Municipality"]
[1724,"MGO MANOLO FORTICH, BUKIDNON","MANOLO FORTICH","Local Government Unit","Municipality"]
[1075,"MGO MANSALAY","MANSALAY","Local Government Unit","Municipality"]
[1074,"MGO MANSALAY, ORIENTAL MINDORO","MANSALAY","Local Government Unit","Municipality"]
[1790,"MGO MANTICAO, MISAMIS ORIENTAL","MANTICAO","Local Government Unit","Municipality"]
[1652,"MGO MANUKAN, ZAMBOANGA DEL NORTE","MANUKAN","Local Government Unit","Municipality"]
[1584,"MGO MAPANAS, NORTHERN SAMAR","MAPANAS","Local Government Unit","Municipality"]
[669,"MGO MAPANDAN, PANGASINAN","MAPANDAN","Local Government Unit","Municipality"]
[2172,"MGO MAPUN (CAGAYAN DE TAWI TAWI), TAWI-TAWI","MAPUN (CAGAYAN DE TAWI-TAWI)","Local Government Unit","Municipality"]
[1605,"MGO MARABUT, SAMAR (WESTERN)","MARABUT","Local Government Unit","Municipality"]
[956,"MGO MARAGONDON, CAVITE","MARAGONDON","Local Government Unit","Municipality"]
[1804,"MGO MARAGUSAN (SAN MARIANO), COMPOSTELA VALLEY","MARAGUSAN (SAN MARIANO)","Local Government Unit","Municipality"]
[1725,"MGO MARAMAG, BUKIDNON","MARAMAG","Local Government Unit","Municipality"]
[2096,"MGO MARANTAO, LANAO DEL SUR","MARANTAO","Local Government Unit","Municipality"]
[574,"MGO MARCOS, ILOCOS NORTE","MARCOS","Local Government Unit","Municipality"]
[1680,"MGO MARGOSATUBIG, ZAMBOANGA DEL SUR","MARGOSATUBIG","Local Government Unit","Municipality"]
[793,"MGO MARIA AURORA, AURORA","MARIA AURORA","Local Government Unit","Municipality"]
[1493,"MGO MARIA, SIQUIJOR","MARIA","Local Government Unit","Municipality"]
[1404,"MGO MARIBOJOC, BOHOL","MARIBOJOC","Local Government Unit","Municipality"]
[1973,"MGO MARIHATAG, SURIGAO DEL SUR","MARIHATAG","Local Government Unit","Municipality"]
[822,"MGO MARILAO, BULACAN","MARILAO","Local Government Unit","Municipality"]
[1503,"MGO MARIPIPI, BILIRAN","MARIPIPI","Local Government Unit","Municipality"]
[802,"MGO MARIVELES, BATAAN","MARIVELES","Local Government Unit","Municipality"]
[3260,"MGO MAROGONG, LANAO DEL SUR","MAROGONG","Local Government Unit","Municipality"]
[872,"MGO MASANTOL, PAMPANGA","MASANTOL","Local Government Unit","Municipality"]
[906,"MGO MASINLOC, TARLAC","MASINLOC","Local Government Unit","Municipality"]
[2097,"MGO MASIU, LANAO DEL SUR","MASIU","Local Government Unit","Municipality"]
[1519,"MGO MASLOG, EASTERN SAMAR","MASLOG","Local Government Unit","Municipality"]
[930,"MGO MATAAS NA KAHOY, BATANGAS","MATAAS NA KAHOY","Local Government Unit","Municipality"]
[1555,"MGO MATAG-OB, LEYTE","MATAG-OB","Local Government Unit","Municipality"]
[1863,"MGO MATALAM, NORTH COTABATO","MATALAM","Local Government Unit","Municipality"]
[1556,"MGO MATALOM, LEYTE","MATALOM","Local Government Unit","Municipality"]
[1829,"MGO MATANAO, DAVAO DEL SUR","MATANAO","Local Government Unit","Municipality"]
[2132,"MGO MATANOG, MAGUINDANAO","MATANOG","Local Government Unit","Municipality"]
[1242,"MGO MATNOG, SORSOGON","MATNOG","Local Government Unit","Municipality"]
[1606,"MGO MATUGUINAO, SAMAR (WESTERN)","MATUGUINAO","Local Government Unit","Municipality"]
[1748,"MGO MATUNGAO, LANAO DEL NORTE","MATUNGAO","Local Government Unit","Municipality"]
[1013,"MGO MAUBAN, QUEZON","MAUBAN","Local Government Unit","Municipality"]
[1805,"MGO MAWAB, COMPOSTELA VALLEY","MAWAB","Local Government Unit","Municipality"]
[890,"MGO MAYANTOC, TARLAC","MAYANTOC","Local Government Unit","Municipality"]
[1520,"MGO MAYDOLONG, EASTERN SAMAR","MAYDOLONG","Local Government Unit","Municipality"]
[1557,"MGO MAYORGA, LEYTE","MAYORGA","Local Government Unit","Municipality"]
[2039,"MGO MAYOYAO, IFUGAO","MAYOYAO","Local Government Unit","Municipality"]
[1446,"MGO MEDELLIN, CEBU","MEDELLIN","Local Government Unit","Municipality"]
[1792,"MGO MEDINA, MISAMIS ORIENTAL","MEDINA","Local Government Unit","Municipality"]
[957,"MGO MENDEZ, CAVITE","MENDEZ","Local Government Unit","Municipality"]
[1132,"MGO MERCEDES, CAMARINES NORTE","MERCEDES","Local Government Unit","Municipality"]
[1521,"MGO MERCEDES, EASTERN SAMAR","MERCEDES","Local Government Unit","Municipality"]
[1558,"MGO MERIDA, LEYTE","MERIDA","Local Government Unit","Municipality"]
[873,"MGO MEXICO, PAMPANGA","MEXICO","Local Government Unit","Municipality"]
[1335,"MGO MIAGAO, ILOILO","MIAGAO","Local Government Unit","Municipality"]
[1681,"MGO MIDSALIP, ZAMBOANGA DEL SUR","MIDSALIP","Local Government Unit","Municipality"]
[1864,"MGO MIDSAYAP, NORTH COTABATO","MIDSAYAP","Local Government Unit","Municipality"]
[1220,"MGO MILAGROS, MASBATE","MILAGROS","Local Government Unit","Municipality"]
[1161,"MGO MILAOR","MILAOR","Local Government Unit","Municipality"]
[1160,"MGO MILAOR, CAMARINES SUR","MILAOR","Local Government Unit","Municipality"]
[1336,"MGO MINA, ILOILO","MINA","Local Government Unit","Municipality"]
[1162,"MGO MINALABAC, CAMARINES SUR","MINALABAC","Local Government Unit","Municipality"]
[874,"MGO MINALIN, PAMPANGA","MINALIN","Local Government Unit","Municipality"]
[1447,"MGO MINGLANILLA, CEBU","MINGLANILLA","Local Government Unit","Municipality"]
[1760,"MGO MISAMIS OCCIDENTAL","MISAMIS OCCIDENTAL","Local Government Unit","Municipality"]
[3077,"MGO MLANG, NORTH COTABATO","MLANG","Local Government Unit","Municipality"]
[1448,"MGO MOALBOAL, CEBU","MOALBOAL","Local Government Unit","Municipality"]
[1221,"MGO MOBO, MASBATE","MOBO","Local Government Unit","Municipality"]
[1053,"MGO MOGPOG, MARINDUQUE","MOGPOG","Local Government Unit","Municipality"]
[1363,"MGO MOISES PADILLA (MAGALLON), NEGROS OCCIDENTAL","MOISES PADILLA (MAGALLON)","Local Government Unit","Municipality"]
[1682,"MGO MOLAVE, ZAMBOANGA DEL SUR","MOLAVE","Local Government Unit","Municipality"]
[891,"MGO MONCADA, TARLAC","MANCADA","Local Government Unit","Municipality"]
[1585,"MGO MONDRAGON, NORTHERN SAMAR","MONDRAGON","Local Government Unit","Municipality"]
[1806,"MGO MONKAYO, COMPOSTELA VALLEY","MONKAYO","Local Government Unit","Municipality"]
[1222,"MGO MONREAL, MASBATE","MONREAL","Local Government Unit","Municipality"]
[1807,"MGO MONTEVISTA, COMPOSTELA VALLEY","MONTEVISTA","Local Government Unit","Municipality"]
[803,"MGO MORONG, BATAAN","MORONG","Local Government Unit","Municipality"]
[1042,"MGO MORONG, RIZAL","MORONG","Local Government Unit","Municipality"]
[1607,"MGO MOTIONG, SAMAR (WESTERN)","MOTIONG","Local Government Unit","Municipality"]
[3190,"MGO MULANAY, QUEZON","MULANAY","Local Government Unit","Municipality"]
[2098,"MGO MULONDO, LANAO DEL SUR","MULONDO","Local Government Unit","Municipality"]
[1749,"MGO MUNAI, LANAO DEL NORTE","MUNAI","Local Government Unit","Municipality"]
[1364,"MGO MURCIA, NEGROS OCCIDENTAL","MURCIA","Local Government Unit","Municipality"]
[1653,"MGO MUTIA, ZAMBOANGA DEL NORTE","MUTIA","Local Government Unit","Municipality"]
[1791,"MGO NAAWAN, MISAMIS ORIENTAL","NAAWAN","Local Government Unit","Municipality"]
[1260,"MGO NABAS, AKLAN","NABAS","Local Government Unit","Municipality"]
[1163,"MGO NABUA, CAMARINES SUR","NABUA","Local Government Unit","Municipality"]
[1808,"MGO NABUNTURAN (CAPITAL), COMPOSTELA VALLEY","NABUNTURAN","Local Government Unit","Municipality"]
[1702,"MGO NAGA, ZAMBOANGA SIBUGAY","NAGA","Local Government Unit","Municipality"]
[597,"MGO NAGBUKEL, ILOCOS SUR","NAGBUKEL","Local Government Unit","Municipality"]
[980,"MGO NAGCARLAN, LAGUNA","NAGCARLAN","Local Government Unit","Municipality"]
[784,"MGO NAGTIPUNAN, QUIRINO","NAGTIPUNAN","Local Government Unit","Municipality"]
[630,"MGO NAGUILAN_LA UNION","NANGUILAN","Local Government Unit","Municipality"]
[745,"MGO NAGUILIAN, ISABELA","NAGUILIAN","Local Government Unit","Municipality"]
[3109,"MGO NAGUILIAN, LA UNION","NAGUILIAN","Local Government Unit","Municipality"]
[958,"MGO NAIC, CAVITE","NAIC","Local Government Unit","Municipality"]
[849,"MGO NAMPICUAN, NUEVA ECIJA","NAMPICUAN","Local Government Unit","Municipality"]
[1104,"MGO NARRA, PALAWAN","NARRA","Local Government Unit","Municipality"]
[598,"MGO NARVACAN, ILOCOS SUR","NARVACAN","Local Government Unit","Municipality"]
[1909,"MGO NASIPIT, AGUSAN DEL NORTE","NASIPIT","Local Government Unit","Municipality"]
[931,"MGO NASUGBU, BATANGAS","NASUGBU","Local Government Unit","Municipality"]
[670,"MGO NATIVIDAD, PANGASINAN","NATIVIDAD","Local Government Unit","Municipality"]
[2054,"MGO NATONIN, MOUNTAIN PROVINCE","NATONIN","Local Government Unit","Municipality"]
[1076,"MGO NAUJAN, ORIENTAL MINDORO","NAUJAN","Local Government Unit","Municipality"]
[1504,"MGO NAVAL (CAPITAL), BILIRAN","NAVAL","Local Government Unit","Municipality"]
[1351,"MGO NEGROS OCCIDENTAL","NEGROS OCCIDENTAL","Local Government Unit","Municipality"]
[1809,"MGO NEW BATAAN, COMPOSTELA VALLEY","NEW BATAAN","Local Government Unit","Municipality"]
[1816,"MGO NEW CORELLA, DAVAO DEL NORTE","NEW CORELLA","Local Government Unit","Municipality"]
[1337,"MGO NEW LUCENA, ILOILO","NEW LUCENA","Local Government Unit","Municipality"]
[1262,"MGO NEW WASHINGTON","NEW WASHINGTON","Local Government Unit","Municipality"]
[1261,"MGO NEW WASHINGTON, AKLAN","NEW WASHINGTON","Local Government Unit","Municipality"]
[1880,"MGO NORALA, SOUTH COTABATO","NORALA ","Local Government Unit","Municipality"]
[2133,"MGO NORTHERN KABUNTALAN, MAGUINDANAO","NORTHERN KABUNTALAN","Local Government Unit","Municipality"]
[823,"MGO NORZAGARAY, BULACAN","NORZAGARAY","Local Government Unit","Municipality"]
[959,"MGO NOVELETA, CAVITE","NOVELETA","Local Government Unit","Municipality"]
[575,"MGO NUEVA ERA, ILOCOS NORTE","NUEVA ERA","Local Government Unit","Municipality"]
[1304,"MGO NUEVA VALENCIA, GUIMARAS","NUEVA VALENCIA","Local Government Unit","Municipality"]
[1263,"MGO NUMANCIA, AKLAN","NUMANCIA","Local Government Unit","Municipality"]
[1750,"MGO NUNUNGAN, LANAO DEL NORTE","NUNUNGAN","Local Government Unit","Municipality"]
[1173,"MGO OAS, ALBAY","OAS","Local Government Unit","Municipality"]
[824,"MGO OBANDO, BULACAN","OBANDO","Local Government Unit","Municipality"]
[1164,"MGO OCAMPO, CAMARINES SUR","OCAMPO","Local Government Unit","Municipality"]
[1121,"MGO ODIONGAN, ROMBLON","ODIONGAN","Local Government Unit","Municipality"]
[2157,"MGO OLD PANAMAO, SULU","OLD PANAMAO","Local Government Unit","Municipality"]
[1703,"MGO OLUTANGA, ZAMBOANGA SIBUGAY","OLUTANGA","Local Government Unit","Municipality"]
[2158,"MGO OMAR, SULU","OMAR","Local Government Unit","Municipality"]
[1793,"MGO OPOL, MISAMIS ORIENTAL","OPOL","Local Government Unit","Municipality"]
[804,"MGO ORANI, BATAAN","ORANI","Local Government Unit","Municipality"]
[1522,"MGO ORAS, EASTERN SAMAR","ORAS","Local Government Unit","Municipality"]
[805,"MGO ORION, BATAAN","ORION","Local Government Unit","Municipality"]
[1449,"MGO OSLOB, CEBU","OSLOB","Local Government Unit","Municipality"]
[1338,"MGO OTON, ILOILO","OTON","Local Government Unit","Municipality"]
[1830,"MGO PADADA, DAVAO DEL SUR","PADADA","Local Government Unit","Municipality"]
[1015,"MGO PADRE BURGOS, QUEZON","PADRE BURGOS","Local Government Unit","Municipality"]
[1633,"MGO PADRE BURGOS, SOUTHERN LEYTE","PADRE BURGOS","Local Government Unit","Municipality"]
[932,"MGO PADRE GARCIA, BATANGAS","PADRE GARCIA","Local Government Unit","Municipality"]
[981,"MGO PAETA","PAETA","Local Government Unit","Municipality"]
[3121,"MGO PAETE, LAGUNA","PAETE","Local Government Unit","Municipality"]
[2134,"MGO PAGAGAWAN, MAGUINDANAO","PAGAGAWAN","Local Government Unit","Municipality"]
[2135,"MGO PAGALUNGAN, MAGUINDANAO","PAGALUNGAN","Local Government Unit","Municipality"]
[2099,"MGO PAGAYAWAN (TATARIKAN), LANAO DEL SUR","PAGAYAWAN (TATARIKAN)","Local Government Unit","Municipality"]
[1016,"MGO PAGBILAO, QUEZON","PAGBILAO","Local Government Unit","Municipality"]
[2136,"MGO PAGLAT, MAGUINDANAO","PAGLAT","Local Government Unit","Municipality"]
[1608,"MGO PAGSANGHAN, SAMAR (WESTERN)","PAGSANGHAN","Local Government Unit","Municipality"]
[982,"MGO PAGSANJAN, LAGUNA","PAGSANJAN","Local Government Unit","Municipality"]
[576,"MGO PAGUDPUD, ILOCOS NORTE","PAGUDPUD","Local Government Unit","Municipality"]
[983,"MGO PAKIL, LAGUNA","PAKIL","Local Government Unit","Municipality"]
[3113,"MGO PALANAN, ISABELA","PALANAN","Local Government Unit","Municipality"]
[1223,"MGO PALANAS, MASBATE","PALANAS","Local Government Unit","Municipality"]
[1586,"MGO PALAPAG, NORTHERN SAMAR","PALAPAG","Local Government Unit","Municipality"]
[907,"MGO PALAUIG, ZAMBALES","PALAUIG","Local Government Unit","Municipality"]
[1899,"MGO PALIMBANG, SULTAN KUDARAT","PALIMBANG","Local Government Unit","Municipality"]
[1559,"MGO PALO, LEYTE","PALO","Local Government Unit","Municipality"]
[3068,"MGO PALOMPON, LEYTE","PALOMPON","Local Government Unit","Municipality"]
[1063,"MGO PALUAN, OCCIDENTAL MINDORO","PALUAN","Local Government Unit","Municipality"]
[1587,"MGO PAMBUJAN, NORTHERN SAMAR","PAMBUJAN","Local Government Unit","Municipality"]
[712,"MGO PAMPLONA, CAGAYAN","PAMPLONA","Local Government Unit","Municipality"]
[1185,"MGO PAMPLONA, CAMARINES SUR","PAMPLONA","Local Government Unit","Municipality"]
[1478,"MGO PAMPLONA, NEGROS ORIENTAL","PAMPLONA","Local Government Unit","Municipality"]
[1770,"MGO PANAON, MISAMIS OCCIDENTAL","PANAON","Local Government Unit","Municipality"]
[1293,"MGO PANAY, CAPIZ","PANAY","Local Government Unit","Municipality"]
[2137,"MGO PANDAG, MAGUINDANAO","PANDAG","Local Government Unit","Municipality"]
[2159,"MGO PANDAMI, SULU","PANDAMI","Local Government Unit","Municipality"]
[1275,"MGO PANDAN, ANTIQUE","PANDAN","Local Government Unit","Municipality"]
[1203,"MGO PANDAN, CATANDUANES","PANDAN","Local Government Unit","Municipality"]
[825,"MGO PANDI, BULACAN","PANDI","Local Government Unit","Municipality"]
[1204,"MGO PANGANIBAN (PAYO), CATANDUANES","PANGANIBAN (PAYO)","Local Government Unit","Municipality"]
[1726,"MGO PANGANTUCAN, BUKIDNON","PANGANTUCAN","Local Government Unit","Municipality"]
[984,"MGO PANGIL, LAGUNA","PANGIL","Local Government Unit","Municipality"]
[1405,"MGO PANGLAO, BOHOL","PANGLAO","Local Government Unit","Municipality"]
[2160,"MGO PANGLIMA ESTINO (NEW PANAMAO), SULU","PANGLIMA ESTINO (NEW PANA","Local Government Unit","Municipality"]
[2173,"MGO PANGLIMA SUGALA (BALIMBING) (CAPITAL), TAWI-TAWI","PANGLIMA SUGALA (BALIMBIN","Local Government Unit","Municipality"]
[2161,"MGO PANGUTARAN, SULU","PANGUTARAN","Local Government Unit","Municipality"]
[892,"MGO PANIQUI, TARLAC","PANIQUI","Local Government Unit","Municipality"]
[1294,"MGO PANITAN, CAPIZ","PANITAN","Local Government Unit","Municipality"]
[850,"MGO PANTABANGAN, NUEVA ECIJA","PANTABANGAN","Local Government Unit","Municipality"]
[1751,"MGO PANTAO RAGAT, LANAO DEL NORTE","PANTAO RAGAT","Local Government Unit","Municipality"]
[1752,"MGO PANTAR, LANAO DEL NORTE","PANTAR","Local Government Unit","Municipality"]
[1810,"MGO PANTUKAN, COMPOSTELA VALLEY","PANTUKAN","Local Government Unit","Municipality"]
[1017,"MGO PANUKULAN, QUEZON","PANUKULAN","Local Government Unit","Municipality"]
[577,"MGO PAOAY, ILOCOS NORTE","PAOAY","Local Government Unit","Municipality"]
[827,"MGO PAOMBONG","PAOMBONG","Local Government Unit","Municipality"]
[826,"MGO PAOMBONG, BULACAN","PAOMBONG","Local Government Unit","Municipality"]
[1133,"MGO PARACALE, CAMARINES NORTE","PARACALE","Local Government Unit","Municipality"]
[2055,"MGO PARACELIS, MOUNTAIN PROVINCE","PARACELIS","Local Government Unit","Municipality"]
[1609,"MGO PARANAS (WRIGHT), SAMAR (WESTERN)","PARANAS (WRIGHT)","Local Government Unit","Municipality"]
[2138,"MGO PARANG, MAGUINDANAO","PARANG","Local Government Unit","Municipality"]
[2162,"MGO PARANG, SULU","PARANG","Local Government Unit","Municipality"]
[1186,"MGO PASACAO, CAMARINES SUR","PASACAO","Local Government Unit","Municipality"]
[3078,"MGO PASIL, KALINGA","PASIL","Local Government Unit","Municipality"]
[1561,"MGO PASTRANA, LEYTE","PASTRANA","Local Government Unit","Municipality"]
[578,"MGO PASUQUIN, ILOCOS NORTE","PASUQUIN","Local Government Unit","Municipality"]
[2163,"MGO PATA, SULU","PATA","Local Government Unit","Municipality"]
[562,"MGO PATEROS, NCR","PATEROS","Local Government Unit","Municipality"]
[425,"MGO PATEROS, TAGUIG CITY","PATEROS","Local Government Unit","Municipality"]
[2164,"MGO PATIKUL, SULU","PATIKUL","Local Government Unit","Municipality"]
[1018,"MGO PATNANUNGAN, QUEZON","PATNANUNGAN","Local Government Unit","Municipality"]
[1276,"MGO PATNONGON, ANTIQUE","PATNONGON","Local Government Unit","Municipality"]
[1339,"MGO PAVIA, ILOILO","PAVIA","Local Government Unit","Municipality"]
[1704,"MGO PAYAO, ZAMBOANGA SIBUGAY","PAYAO","Local Government Unit","Municipality"]
[713,"MGO PEÑABLANCA, CAGAYAN","PEñABLANCA","Local Government Unit","Municipality"]
[851,"MGO PEÑARANDA, NUEVA ECIJA","PEÑARANDA","Local Government Unit","Municipality"]
[1994,"MGO PEÑARRUBIA, ABRA","PEÑARRUBIA","Local Government Unit","Municipality"]
[1019,"MGO PEREZ, QUEZON","PEREZ","Local Government Unit","Municipality"]
[2100,"MGO PIAGAPO, LANAO DEL SUR","PIAGAPO","Local Government Unit","Municipality"]
[715,"MGO PIAT, CAGAYAN","PIAT","Local Government Unit","Municipality"]
[null,"MGO PICONG (SULTAN GUMANDER), LANAO DEL SUR","PICONG","Local Government Unit","Municipality"]
[579,"MGO PIDDIG, ILOCOS NORTE","PIDDIG","Local Government Unit","Municipality"]
[1995,"MGO PIDIGAN, ABRA","PIDIGAN","Local Government Unit","Municipality"]
[1865,"MGO PIGKAWAYAN, NORTH COTABATO","PIGKAWAYAN","Local Government Unit","Municipality"]
[1866,"MGO PIKIT, NORTH COTABATO","PIKIT","Local Government Unit","Municipality"]
[985,"MGO PILA, LAGUNA","PILA","Local Government Unit","Municipality"]
[1996,"MGO PILAR, ABRA","PILAR","Local Government Unit","Municipality"]
[806,"MGO PILAR, BATAAN","PILAR","Local Government Unit","Municipality"]
[1406,"MGO PILAR, BOHOL","PILAR","Local Government Unit","Municipality"]
[1295,"MGO PILAR, CAPIZ","PILAR","Local Government Unit","Municipality"]
[1450,"MGO PILAR, CEBU","PILAR","Local Government Unit","Municipality"]
[1243,"MGO PILAR, SORSOGON","PILAR","Local Government Unit","Municipality"]
[1949,"MGO PILAR, SURIGAO DEL NORTE","PILAR","Local Government Unit","Municipality"]
[1187,"MGO PILI (CAPITAL), CAMARINES SUR","PILI","Local Government Unit","Municipality"]
[1043,"MGO PILILLA, RIZAL","PILILLA","Local Government Unit","Municipality"]
[1610,"MGO PINABACDAO, SAMAR (WESTERN)","PINABACDAO","Local Government Unit","Municipality"]
[1077,"MGO PINAMALAYAN, ORIENTAL MINDORO","PINAMALAYAN","Local Government Unit","Municipality"]
[1451,"MGO PINAMUNGAHAN, CEBU","PINAMUNGAHAN","Local Government Unit","Municipality"]
[1654,"MGO PIÑAN (NEW PIÑAN), ZAMBOANGA DEL NORTE","PIÑAN (NEW PIÑAN)","Local Government Unit","Municipality"]
[580,"MGO PINILI, ILOCOS NORTE","PINILI","Local Government Unit","Municipality"]
[1634,"MGO PINTUYAN, SOUTHERN LEYTE","PINTUYAN","Local Government Unit","Municipality"]
[2045,"MGO PINUKPUK, KALINGA","PINUKPUK","Local Government Unit","Municipality"]
[1174,"MGO PIO DURAN, ALBAY","PIO DURAN","Local Government Unit","Municipality"]
[1224,"MGO PIO V. CORPUZ (LIMBUHAN), MASBATE","PIO V. CORPUZ (LIMBUHAN)","Local Government Unit","Municipality"]
[1020,"MGO PITOGO, QUEZON","PITOGO","Local Government Unit","Municipality"]
[1683,"MGO PITOGO, ZAMBOANGA DEL SUR","PITOGO","Local Government Unit","Municipality"]
[1225,"MGO PLACER, MASBATE","PLACER","Local Government Unit","Municipality"]
[1950,"MGO PLACER, SURIGAO DEL NORTE","PLACER","Local Government Unit","Municipality"]
[828,"MGO PLARIDEL, BULACAN","PLARIDEL","Local Government Unit","Municipality"]
[1771,"MGO PLARIDEL, MISAMIS OCCIDENTAL","PLARIDEL","Local Government Unit","Municipality"]
[1021,"MGO PLARIDEL, QUEZON","PLARIDEL","Local Government Unit","Municipality"]
[1078,"MGO POLA, ORIENTAL MINDORO","POLA","Local Government Unit","Municipality"]
[1655,"MGO POLANCO, ZAMBOANGA DEL NORTE","POLANCO","Local Government Unit","Municipality"]
[1175,"MGO POLANGUI, ALBAY","POLANGUI","Local Government Unit","Municipality"]
[1022,"MGO POLILLO, QUEZON","POLILLO","Local Government Unit","Municipality"]
[1881,"MGO POLOMOLOK, SOUTH COTABATO","POLOMOLOK","Local Government Unit","Municipality"]
[1365,"MGO PONTEVEDRA, CAPIZ","PONTEVEDRA","Local Government Unit","Municipality"]
[1296,"MGO PONTEVEDRA, NEGROS OCCIDENTAL","PONTEVEDRA","Local Government Unit","Municipality"]
[2102,"MGO POONA BAYABAO (GATA), LANAO DEL SUR","POONA BAYABAO (GATA)","Local Government Unit","Municipality"]
[1753,"MGO POONA PIAGAPO, LANAO DEL NORTE","POONA PIAGAPO","Local Government Unit","Municipality"]
[875,"MGO PORAC, PAMPANGA","PORAC","Local Government Unit","Municipality"]
[1452,"MGO PORO, CEBU","PORO","Local Government Unit","Municipality"]
[1340,"MGO POTOTAN, ILOILO","POTOTAN","Local Government Unit","Municipality"]
[671,"MGO POZZORUBIO, PANGASINAN","POZORRUBIO","Local Government Unit","Municipality"]
[1407,"MGO PRES. CARLOS P. GARCIA (PITOGO), BOHOL","PRES. CARLOS P. GARCIA","Local Government Unit","Municipality"]
[1656,"MGO PRES. MANUEL A. ROXAS, ZAMBOANGA DEL NORTE","PRES. MANUEL A. ROXAS","Local Government Unit","Municipality"]
[1188,"MGO PRESENTACION (PARUBCAN), CAMARINES SUR","PRESENTACION (PARUBCAN)","Local Government Unit","Municipality"]
[1900,"MGO PRESIDENT QUIRINO, SULTAN KUDARAT","PRESIDENT QUIRINO","Local Government Unit","Municipality"]
[1297,"MGO PRESIDENT ROXAS, CAPIZ","PRESIDENT ROXASWWW","Local Government Unit","Municipality"]
[1867,"MGO PRESIDENT ROXAS, NORTH COTABATO","PRESIDENT ROXAS","Local Government Unit","Municipality"]
[1244,"MGO PRIETO DIAZ, SORSOGON","PRIETO DIAZ","Local Government Unit","Municipality"]
[1919,"MGO PROSPERIDAD, AGUSAN DEL SUR","PROSPERIDAD","Local Government Unit","Municipality"]
[2103,"MGO PUALAS, LANAO DEL SUR","PUALAS","Local Government Unit","Municipality"]
[2013,"MGO PUDTOL, APAYAO","PUDTOL","Local Government Unit","Municipality"]
[1079,"MGO PUERTO GALERA, ORIENTAL MINDORO","PUERTO GALERA","Local Government Unit","Municipality"]
[631,"MGO PUGO, LA UNION","PUGO","Local Government Unit","Municipality"]
[829,"MGO PULILAN, BULACAN","PULILAN","Local Government Unit","Municipality"]
[1366,"MGO PULUPANDAN, NEGROS OCCIDENTAL","PULUPANDAN","Local Government Unit","Municipality"]
[893,"MGO PURA, TARLAC","PURA","Local Government Unit","Municipality"]
[1727,"MGO QUEZON, BUKIDNON","QUEZON","Local Government Unit","Municipality"]
[747,"MGO QUEZON, CAGAYAN","QUEZON","Local Government Unit","Municipality"]
[775,"MGO QUEZON, ISABELA","QUEZON","Local Government Unit","Municipality"]
[852,"MGO QUEZON, NUEVA ECIJA","QUEZON","Local Government Unit","Municipality"]
[3114,"MGO QUEZON, NUEVA VIZCAYA","QUEZON","Local Government Unit","Municipality"]
[1105,"MGO QUEZON, PALAWAN","QUEZON","Local Government Unit","Municipality"]
[1023,"MGO QUEZON, QUEZON","QUEZON","Local Government Unit","Municipality"]
[1523,"MGO QUINAPONDAN, EASTERN SAMAR","QUINAPONDAN","Local Government Unit","Municipality"]
[599,"MGO QUIRINO (ANGKAKI), ILOCOS SUR","QUIRINO ","Local Government Unit","Municipality"]
[748,"MGO QUIRINO, ISABELA","QUIRINO","Local Government Unit","Municipality"]
[1189,"MGO RAGAY, CAMARINES SUR","RAGAY","Local Government Unit","Municipality"]
[2139,"MGO RAJAH BUAYAN, MAGUINDANAO","RAJAH BUAYAN","Local Government Unit","Municipality"]
[1684,"MGO RAMON MAGSAYSAY (LIARGO), ZAMBOANGA DEL SUR","RAMON MAGSAYSAY (LIARGO)","Local Government Unit","Municipality"]
[749,"MGO RAMON, ISABELA","RAMON","Local Government Unit","Municipality"]
[894,"MGO RAMOS, TARLAC","RAMOS","Local Government Unit","Municipality"]
[1176,"MGO RAPU-RAPU, ALBAY","RAPU-RAPU","Local Government Unit","Municipality"]
[1024,"MGO REAL, QUEZON","REAL","Local Government Unit","Municipality"]
[3066,"MGO REINA MERCEDES, ISABELA","REINA","Local Government Unit","Municipality"]
[1910,"MGO REMEDIOS T. ROMUALDEZ, AGUSAN DEL NORTE","REMEDIOS T. ROMUALDEZ","Local Government Unit","Municipality"]
[2046,"MGO RIZAL (LIWAN), KALINGA","RIZAL (LIWAN)","Local Government Unit","Municipality"]
[1106,"MGO RIZAL (MARCOS), PALAWAN","RIZAL ","Local Government Unit","Municipality"]
[716,"MGO RIZAL, CAGAYAN","RIZAL","Local Government Unit","Municipality"]
[986,"MGO RIZAL, LAGUNA","RIZAL","Local Government Unit","Municipality"]
[853,"MGO RIZAL, NUEVA ECIJA","RIZAL","Local Government Unit","Municipality"]
[1064,"MGO RIZAL, OCCIDENTAL MINDORO","RIZAL","Local Government Unit","Municipality"]
[1657,"MGO RIZAL, ZAMBOANGA DEL NORTE","RIZAL","Local Government Unit","Municipality"]
[3192,"MGO RODRIGUEZ, RIZAL","RODRIGUEZ","Local Government Unit","Municipality"]
[1044,"MGO RODRIQUEZ (MONTALBAN)","RODRIQUEZ (MONTALBAN)","Local Government Unit","Municipality"]
[1122,"MGO ROMBLON","ROMBLON","Local Government Unit","Municipality"]
[1123,"MGO ROMBLON, ROMBLON","ROMBLON","Local Government Unit","Municipality"]
[1453,"MGO RONDA, CEBU","RONDA","Local Government Unit","Municipality"]
[672,"MGO ROSALES, PANGASINAN","ROSALES","Local Government Unit","Municipality"]
[1920,"MGO ROSARIO, AGUSAN DEL SUR","ROSARIO","Local Government Unit","Municipality"]
[960,"MGO ROSARIO, BATANGAS","ROSARIO","Local Government Unit","Municipality"]
[933,"MGO ROSARIO, CAVITE","ROSARIO","Local Government Unit","Municipality"]
[632,"MGO ROSARIO, LA UNION","ROSARIO","Local Government Unit","Municipality"]
[1588,"MGO ROSARIO, NORTHERN SAMAR","ROSARIO","Local Government Unit","Municipality"]
[1705,"MGO ROSELLER LIM, ZAMBOANGA SIBUGAY","ROSELLER LIM","Local Government Unit","Municipality"]
[751,"MGO ROXAS, ISABELA","ROXAS","Local Government Unit","Municipality"]
[1080,"MGO ROXAS, ORIENTAL MINDORO","ROXAS","Local Government Unit","Municipality"]
[1107,"MGO ROXAS, PALAWAN","ROXAS","Local Government Unit","Municipality"]
[2545,"MGO ROXAS, ZAMBOANGA DEL NORTE","ROXAS","Local Government Unit","Municipality"]
[2056,"MGO SABANGAN, MOUNTAIN PROVINCE","SABANGAN","Local Government Unit","Municipality"]
[2026,"MGO SABLAN, BENGUET","SABLAN","Local Government Unit","Municipality"]
[1065,"MGO SABLAYAN, OCCIDENTAL MINDORO","SABLAYAN","Local Government Unit","Municipality"]
[692,"MGO SABTANG, BATANES","SABTANG","Local Government Unit","Municipality"]
[2057,"MGO SADANGA, MOUNTAIN PROVINCE","SADANGA","Local Government Unit","Municipality"]
[2058,"MGO SAGADA, MOUNTAIN PROVINCE","SAGADA","Local Government Unit","Municipality"]
[1736,"MGO SAGAY, CAMIGUIN","SAGAY","Local Government Unit","Municipality"]
[1408,"MGO SAGBAYAN (BORJA), BOHOL","SAGBAYAN (BORJA)","Local Government Unit","Municipality"]
[1194,"MGO SAGÑAY, CAMARINES SUR","SAGÑAY","Local Government Unit","Municipality"]
[785,"MGO SAGUDAY, QUIRINO","SAGUDAY","Local Government Unit","Municipality"]
[2104,"MGO SAGUIARAN, LANAO DEL SUR","SAGUIARAN","Local Government Unit","Municipality"]
[1635,"MGO SAINT BERNARD, SOUTHERN LEYTE","SAINT BERNARD","Local Government Unit","Municipality"]
[1794,"MGO SALAY, MISAMIS ORIENTAL","SALAY","Local Government Unit","Municipality"]
[600,"MGO SALCEDO (BAUGEN), ILOCOS SUR","SALCEDO (BAUGEN)","Local Government Unit","Municipality"]
[1524,"MGO SALCEDO,EASTERN SAMAR","SALCEDO","Local Government Unit","Municipality"]
[3102,"MGO SALLAPADAN, ABRA","SALLAPADAN","Local Government Unit","Municipality"]
[2546,"MGO SALUG, ZAMBOANGA DEL NORTE","SALUG","Local Government Unit","Municipality"]
[1367,"MGO SALVADOR BENEDICTO, NEGROS OCCIDENTAL","SALVADOR BENEDICTO","Local Government Unit","Municipality"]
[1754,"MGO SALVADOR, LANAO DEL NORTE","SALVADOR","Local Government Unit","Municipality"]
[807,"MGO SAMAL, BATAAN","SAMAL","Local Government Unit","Municipality"]
[1596,"MGO SAMAR (WESTERN)","SAMAR (WESTERN)","Local Government Unit","Municipality"]
[1454,"MGO SAMBOAN, CEBU","SAMBOAN","Local Government Unit","Municipality"]
[1025,"MGO SAMPAOC, QUEZON","SAMPALOC","Local Government Unit","Municipality"]
[1124,"MGO SAN AGUSTIN, ISABELA","SAN AGUSTIN","Local Government Unit","Municipality"]
[752,"MGO SAN AGUSTIN, ROMBLON","SAN AGUSTIN","Local Government Unit","Municipality"]
[1974,"MGO SAN AGUSTIN, SURIGAO DEL SUR","SAN AGUSTIN","Local Government Unit","Municipality"]
[1205,"MGO SAN ANDRES (CALOLBON), CATANDUANES","SAN ANDRES (CALOLBON)","Local Government Unit","Municipality"]
[1026,"MGO SAN ANDRES, QUEZON","SAN ANDRES","Local Government Unit","Municipality"]
[1125,"MGO SAN ANDRES, ROMBLON","SAN ANDRES","Local Government Unit","Municipality"]
[1589,"MGO SAN ANTONIO, NORTHERN SAMAR","SAN ANTONIO","Local Government Unit","Municipality"]
[854,"MGO SAN ANTONIO, NUEVA ECIJA","SAN ANTONIO","Local Government Unit","Municipality"]
[1027,"MGO SAN ANTONIO, QUEZON","SAN ANTONIO","Local Government Unit","Municipality"]
[908,"MGO SAN ANTONIO, ZAMBALES","SAN ANTONIO","Local Government Unit","Municipality"]
[1951,"MGO SAN BENITO, SURIGAO DEL NORTE","SAN BENITO","Local Government Unit","Municipality"]
[895,"MGO SAN CLEMENTE, TARLAC","SAN CLEMENTE","Local Government Unit","Municipality"]
[1341,"MGO SAN DIONISIO, ILOILO","SAN DIONISIO","Local Government Unit","Municipality"]
[601,"MGO SAN EMILIO, ILOCOS SUR","SAN EMILIO","Local Government Unit","Municipality"]
[1368,"MGO SAN ENRIQUE, ILOILO","SAN ENRIQUE","Local Government Unit","Municipality"]
[1342,"MGO SAN ENRIQUE, NEGROS OCCIDENTAL","SAN ENRIQUE","Local Government Unit","Municipality"]
[602,"MGO SAN ESTEBAN, ILOCOS SUR","SAN ESTEBAN","Local Government Unit","Municipality"]
[673,"MGO SAN FABIAN, PANGASINAN","SAN FABIAN","Local Government Unit","Municipality"]
[909,"MGO SAN FELIPE, ZAMBALES","SAN FELIPE","Local Government Unit","Municipality"]
[1728,"MGO SAN FERNANDO, BUKIDNON","SAN FERNANDO","Local Government Unit","Municipality"]
[1190,"MGO SAN FERNANDO, CAMARINES SUR","SAN FERNANDO","Local Government Unit","Municipality"]
[1455,"MGO SAN FERNANDO, CEBU","SAN FERNANDO","Local Government Unit","Municipality"]
[1226,"MGO SAN FERNANDO, MASBATE","SAN FERNANDO","Local Government Unit","Municipality"]
[1126,"MGO SAN FERNANDO, ROMBLON","SAN FERNANDO","Local Government Unit","Municipality"]
[1952,"MGO SAN FRANCISCO (ANAO-AON), SURIGAO DEL NORTE","SAN FRANCISCO (ANAO-AON)","Local Government Unit","Municipality"]
[1921,"MGO SAN FRANCISCO, AGUSAN DEL SUR","SAN FRANCISCO","Local Government Unit","Municipality"]
[1456,"MGO SAN FRANCISCO, CEBU","SAN FRANCISCO","Local Government Unit","Municipality"]
[3264,"MGO SAN FRANCISCO, QUEZON","FRANCISCO","Local Government Unit","Municipality"]
[1636,"MGO SAN FRANCISCO, SOUTHERN LEYTE","SAN FRANCISCO","Local Government Unit","Municipality"]
[633,"MGO SAN GABRIEL, LA UNION","SAN GABRIEL","Local Government Unit","Municipality"]
[753,"MGO SAN GUILLERMO, ISABELA","SAN GUILLERMO","Local Government Unit","Municipality"]
[830,"MGO SAN ILDEFONSO, BULACAN","SAN ILDEFONSO","Local Government Unit","Municipality"]
[603,"MGO SAN ILDEFONSO, ILOCOS SUR","SAN ILDEFONSO","Local Government Unit","Municipality"]
[1998,"MGO SAN ISIDRO, ABRA","SAN ISIDRO","Local Government Unit","Municipality"]
[1409,"MGO SAN ISIDRO, BOHOL","SAN ISIDRO","Local Government Unit","Municipality"]
[1817,"MGO SAN ISIDRO, DAVAO DEL NORTE","SAN ISIDRO","Local Government Unit","Municipality"]
[1847,"MGO SAN ISIDRO, DAVAO ORIENTAL","SAN ISIDRO","Local Government Unit","Municipality"]
[754,"MGO SAN ISIDRO, ISABELA","SAN ISIDRO","Local Government Unit","Municipality"]
[1562,"MGO SAN ISIDRO, LEYTE","SAN ISIDRO","Local Government Unit","Municipality"]
[1590,"MGO SAN ISIDRO, NORTHERN SAMAR","SAN ISIDRO","Local Government Unit","Municipality"]
[855,"MGO SAN ISIDRO, NUEVA ECIJA","SAN ISIDRO","Local Government Unit","Municipality"]
[1953,"MGO SAN ISIDRO, SURIGAO DEL NORTE","SAN ISIDRO","Local Government Unit","Municipality"]
[1227,"MGO SAN JACINTO, MASBATE","SAN JACINTO","Local Government Unit","Municipality"]
[674,"MGO SAN JACINTO, PANGASINAN","SAN JACINTO","Local Government Unit","Municipality"]
[1343,"MGO SAN JOAQUIN, ILOILO","SAN JOAQUIN","Local Government Unit","Municipality"]
[1611,"MGO SAN JORGE, SAMAR (WESTERN)","SAN JORGE","Local Government Unit","Municipality"]
[1612,"MGO SAN JOSE DE BUAN, SAMAR (WESTERN)","SAN JOSE DE BUAN","Local Government Unit","Municipality"]
[1277,"MGO SAN JOSE, ANTIQUE","SAN JOSE","Local Government Unit","Municipality"]
[934,"MGO SAN JOSE, BATANGAS","SAN JOSE","Local Government Unit","Municipality"]
[1191,"MGO SAN JOSE, CAMARINES SUR","SAN JOSE","Local Government Unit","Municipality"]
[1934,"MGO SAN JOSE, DINAGAT ISLAND","SAN JOSE","Local Government Unit","Municipality"]
[1479,"MGO SAN JOSE, NEGROS ORIENTAL","SAN JOSE","Local Government Unit","Municipality"]
[1591,"MGO SAN JOSE, NORTHERN SAMAR","SAN JOSE","Local Government Unit","Municipality"]
[1066,"MGO SAN JOSE, OCCIDENTAL MINDORO","SAN JOSE","Local Government Unit","Municipality"]
[1127,"MGO SAN JOSE, ROMBLON","SAN JOSE","Local Government Unit","Municipality"]
[896,"MGO SAN JOSE, TARLAC","SAN JOSE","Local Government Unit","Municipality"]
[1637,"MGO SAN JUAN (CABALIAN), SOUTHERN LEYTE","SAN JUAN (CABALIAN)","Local Government Unit","Municipality"]
[604,"MGO SAN JUAN (LAPOG), ILOCOS SUR","SAN JUAN (LAPOG)","Local Government Unit","Municipality"]
[1999,"MGO SAN JUAN, ABRA","SAN JUAN","Local Government Unit","Municipality"]
[3188,"MGO SAN JUAN, BATANGAS","SAN JUAN","Local Government Unit","Municipality"]
[935,"MGO SAN JUAN, CALABARZON","SAN JUAN","Local Government Unit","Municipality"]
[634,"MGO SAN JUAN, LA UNION","SAN JUAN","Local Government Unit","Municipality"]
[1494,"MGO SAN JUAN, SIQUIJOR","SAN JUAN","Local Government Unit","Municipality"]
[1525,"MGO SAN JULIAN, EASTERN SAMAR","SAN JULIAN","Local Government Unit","Municipality"]
[856,"MGO SAN LEONARDO, NUEVA ECIJA","SAN LEONARDO","Local Government Unit","Municipality"]
[1134,"MGO SAN LORENZO RUIZ (IMELDA), CAMARINES NORTE","SAN LORENZO RUIZ (IMELDA)","Local Government Unit","Municipality"]
[1305,"MGO SAN LORENZO, GUIMARAS","SAN LORENZO","Local Government Unit","Municipality"]
[1922,"MGO SAN LUIS, AGUSAN DEL SUR","SAN LUIS","Local Government Unit","Municipality"]
[794,"MGO SAN LUIS, AURORA","SAN LUIS","Local Government Unit","Municipality"]
[936,"MGO SAN LUIS, BATANGAS","SAN LUIS","Local Government Unit","Municipality"]
[876,"MGO SAN LUIS, PAMPANGA","SAN LUIS","Local Government Unit","Municipality"]
[755,"MGO SAN MANUEL, ISABELA","SAN MANUEL ","Local Government Unit","Municipality"]
[675,"MGO SAN MANUEL, PANGASINAN","SAN MANUEL","Local Government Unit","Municipality"]
[897,"MGO SAN MANUEL, TARLAC","SAN MANUEL","Local Government Unit","Municipality"]
[910,"MGO SAN MARCELINO, ZAMBALES","SAN MARCELINO","Local Government Unit","Municipality"]
[756,"MGO SAN MARIANO, ISABELA","SAN MARIANO","Local Government Unit","Municipality"]
[757,"MGO SAN MATEO, ISABELA","SAN MATEO","Local Government Unit","Municipality"]
[1045,"MGO SAN MATEO, RIZAL","SAN MATEO","Local Government Unit","Municipality"]
[1410,"MGO SAN MIGUEL, BOHOL","SAN MIGUEL","Local Government Unit","Municipality"]
[831,"MGO SAN MIGUEL, BULACAN","SAN MIGUEL","Local Government Unit","Municipality"]
[1206,"MGO SAN MIGUEL, CATANDUANES","SAN MIGUEL","Local Government Unit","Municipality"]
[1344,"MGO SAN MIGUEL, ILOILO","SAN MIGUEL","Local Government Unit","Municipality"]
[1563,"MGO SAN MIGUEL, LEYTE","SAN MIGUEL","Local Government Unit","Municipality"]
[1975,"MGO SAN MIGUEL, SURIGAO DEL SUR","SAN MIGUEL","Local Government Unit","Municipality"]
[1685,"MGO SAN MIGUEL, ZAMBOANGA DEL SUR","SAN MIGUEL","Local Government Unit","Municipality"]
[1029,"MGO SAN NARCISO, QUEZON","SAN NARCISO","Local Government Unit","Municipality"]
[911,"MGO SAN NARCISO, ZAMBALES","SAN NARCISO","Local Government Unit","Municipality"]
[937,"MGO SAN NICOLAS, BATANGAS","SAN NICOLAS","Local Government Unit","Municipality"]
[581,"MGO SAN NICOLAS, ILOCOS NORTE","SAN NICOLAS","Local Government Unit","Municipality"]
[676,"MGO SAN NICOLAS, PANGASINAN","SAN NICOLAS","Local Government Unit","Municipality"]
[758,"MGO SAN PABLO, ISABELA","SAN PABLO","Local Government Unit","Municipality"]
[1686,"MGO SAN PABLO, ZAMBOANGA DEL SUR","SAN PABLO","Local Government Unit","Municipality"]
[938,"MGO SAN PASCUAL, BATANGAS","SAN PASCUAL","Local Government Unit","Municipality"]
[2307,"MGO SAN PASCUAL, CAMARINES SUR","SAN PASCUAL","Local Government Unit","Municipality"]
[1228,"MGO SAN PASCUAL, MASBATE","SAN PASCUAL","Local Government Unit","Municipality"]
[987,"MGO SAN PEDRO, LAGUNA","SAN PEDRO","Local Government Unit","Municipality"]
[1526,"MGO SAN POLICARPO, EASTERN SAMAR","SAN POLICARPO","Local Government Unit","Municipality"]
[2000,"MGO SAN QUINTIN, ABRA","SAN QUINTIN","Local Government Unit","Municipality"]
[677,"MGO SAN QUINTIN, PANGASINAN","SAN QUINTIN","Local Government Unit","Municipality"]
[832,"MGO SAN RAFAEL, BULACAN","SAN RAFAEL","Local Government Unit","Municipality"]
[1345,"MGO SAN RAFAEL, ILOILO","SAN RAFAEL","Local Government Unit","Municipality"]
[1278,"MGO SAN REMIGIO, ANTIQUE","SAN REMIGIO","Local Government Unit","Municipality"]
[1457,"MGO SAN REMIGIO, CEBU","SAN REMIGIO","Local Government Unit","Municipality"]
[1638,"MGO SAN RICARDO, SOUTHERN LEYTE","SAN RICARDO","Local Government Unit","Municipality"]
[1592,"MGO SAN ROQUE, NORTHERN SAMAR","SAN ROQUE","Local Government Unit","Municipality"]
[1613,"MGO SAN SEBASTIAN, SAMAR (WESTERN)","SAN SEBASTIAN","Local Government Unit","Municipality"]
[3118,"MGO SAN SIMON, PAMPANGA","SAN SIMON","Local Government Unit","Municipality"]
[1081,"MGO SAN TEODORO, ORIENTAL MINDORO","SAN TEODORO","Local Government Unit","Municipality"]
[1135,"MGO SAN VICENTE, CAMARINES NORTE","SAN VICENTE","Local Government Unit","Municipality"]
[605,"MGO SAN VICENTE, ILOCOS SUR","SAN VICENTE","Local Government Unit","Municipality"]
[1593,"MGO SAN VICENTE, NORTHERN SAMAR","SAN VICENTE","Local Government Unit","Municipality"]
[1108,"MGO SAN VICENTE, PALAWAN","SAN VICENTE","Local Government Unit","Municipality"]
[717,"MGO SANCHEZ-MIRA, CAGAYAN","SANCHEZ-MIRA","Local Government Unit","Municipality"]
[718,"MGO SANTA ANA, CAGAYAN","SANTA ANA","Local Government Unit","Municipality"]
[878,"MGO SANTA ANA, PAMPANGA","SANTA ANA","Local Government Unit","Municipality"]
[1346,"MGO SANTA BARBARA, ILOILO","SANTA BARBARA","Local Government Unit","Municipality"]
[678,"MGO SANTA BARBARA, PANGASINAN","SANTA BARBARA","Local Government Unit","Municipality"]
[607,"MGO SANTA CATALINA, ILOCOS SUR","SANTA CATALINA","Local Government Unit","Municipality"]
[1480,"MGO SANTA CATALINA, NEGROS ORIENTAL","SANTA CATALINA","Local Government Unit","Municipality"]
[988,"MGO SANTA CRUZ (CAPITAL), LAGUNA","SANTA CRUZ","Local Government Unit","Municipality"]
[1831,"MGO SANTA CRUZ, DAVAO DEL SUR","SANTA CRUZ","Local Government Unit","Municipality"]
[608,"MGO SANTA CRUZ, ILOCOS SUR","SANTA CRUZ","Local Government Unit","Municipality"]
[1054,"MGO SANTA CRUZ, MARINDUQUE","SANTA CRUZ","Local Government Unit","Municipality"]
[1067,"MGO SANTA CRUZ, OCCIDENTAL MINDORO","SANTA CRUZ","Local Government Unit","Municipality"]
[912,"MGO SANTA CRUZ, ZAMBALES","SANTA CRUZ","Local Government Unit","Municipality"]
[1136,"MGO SANTA ELENA CAMARINES NORTE","SANTA ELENA","Local Government Unit","Municipality"]
[1458,"MGO SANTA FE, CEBU","SANTA FE","Local Government Unit","Municipality"]
[1564,"MGO SANTA FE, LEYTE","SANTA FE","Local Government Unit","Municipality"]
[776,"MGO SANTA FE, NUEVA VIZCAYA","SANTA FE","Local Government Unit","Municipality"]
[1128,"MGO SANTA FE, ROMBLON","SANTA FE","Local Government Unit","Municipality"]
[898,"MGO SANTA IGNACIA, TARLAC","SANTA IGNACIA","Local Government Unit","Municipality"]
[1923,"MGO SANTA JOSEFA, AGUSAN DEL SUR","SANTA JOSEFA","Local Government Unit","Municipality"]
[609,"MGO SANTA LUCIA, ILOCOS SUR","SANTA LUCIA","Local Government Unit","Municipality"]
[1245,"MGO SANTA MAGDALENA, SORSOGON","SANTA MAGDALENA","Local Government Unit","Municipality"]
[2014,"MGO SANTA MARCELA, APAYAO","SANTA MARCELA","Local Government Unit","Municipality"]
[1614,"MGO SANTA MARGARITA, SAMAR (WESTERN)","SANTA MARGARITA","Local Government Unit","Municipality"]
[1129,"MGO SANTA MARIA (IMELDA), ROMBLON","SANTA MARIA (IMELDA)","Local Government Unit","Municipality"]
[833,"MGO SANTA MARIA, BULACAN","SANTA MARIA","Local Government Unit","Municipality"]
[1832,"MGO SANTA MARIA, DAVAO DEL SUR","SANTA MARIA","Local Government Unit","Municipality"]
[610,"MGO SANTA MARIA, ILOCOS SUR","SANTA MARIA","Local Government Unit","Municipality"]
[759,"MGO SANTA MARIA, ISABELA","SANTA MARIA","Local Government Unit","Municipality"]
[989,"MGO SANTA MARIA, LAGUNA","SANTA MARIA","Local Government Unit","Municipality"]
[679,"MGO SANTA MARIA, PANGASINAN","SANTA MARIA","Local Government Unit","Municipality"]
[1954,"MGO SANTA MONICA (SAPAO), SURIGAO DEL NORTE","SANTA MONICA (SAPAO)","Local Government Unit","Municipality"]
[719,"MGO SANTA PRAXEDES, CAGAYAN","SANTA PRAXEDES","Local Government Unit","Municipality"]
[879,"MGO SANTA RITA, PAMPANGA","SANTA RITA","Local Government Unit","Municipality"]
[1615,"MGO SANTA RITA, SAMAR (WESTERN)","SANTA RITA","Local Government Unit","Municipality"]
[857,"MGO SANTA ROSA, NUEVA ECIJA","SANTA ROSA","Local Government Unit","Municipality"]
[3189,"MGO SANTA TERESITA, BATANGAS","SANTA TERESITA","Local Government Unit","Municipality"]
[720,"MGO SANTA TERESITA, CAGAYAN","SANTA TERESITA","Local Government Unit","Municipality"]
[606,"MGO SANTA, ILOCOS SUR","SANTA","Local Government Unit","Municipality"]
[1459,"MGO SANTANDER, CEBU","SANTANDER","Local Government Unit","Municipality"]
[1911,"MGO SANTIAGO, AGUSAN DEL NORTE","SANTIAGO","Local Government Unit","Municipality"]
[611,"MGO SANTIAGO, ILOCOS SUR","SANTIAGO","Local Government Unit","Municipality"]
[1177,"MGO SANTO DOMINGO (LIBOG), ALBAY","SANTO DOMINGO (LIBOG)","Local Government Unit","Municipality"]
[612,"MGO SANTO DOMINGO, ILOCOS SUR","SANTO DOMINGO","Local Government Unit","Municipality"]
[858,"MGO SANTO DOMINGO, NUEVA ECIJA","SANTO DOMINGO","Local Government Unit","Municipality"]
[721,"MGO SANTO NIAO (FAIRE), CAGAYAN","SANTO NIAO (FAIRE)","Local Government Unit","Municipality"]
[1882,"MGO SANTO NIÑO (FAIRE), CAGAYAN","SANTO NIñO","Local Government Unit","Municipality"]
[1616,"MGO SANTO NIÑO, SAMAR (WESTERN)","SANTO NIÑO","Local Government Unit","Municipality"]
[3105,"MGO SANTO NIÑO, SOUTH COTABATO","SANTO NIÑO","Local Government Unit","Municipality"]
[940,"MGO SANTO TOMAS, BATANGAS","SANTO TOMAS","Local Government Unit","Municipality"]
[1818,"MGO SANTO TOMAS, DAVAO DEL NORTE","SANTO TOMAS","Local Government Unit","Municipality"]
[760,"MGO SANTO TOMAS, ISABELA","SANTO TOMAS","Local Government Unit","Municipality"]
[635,"MGO SANTO TOMAS, LA UNION","SANTO TOMAS","Local Government Unit","Municipality"]
[880,"MGO SANTO TOMAS, PAMPANGA","SANTO TOMAS","Local Government Unit","Municipality"]
[680,"MGO SANTO TOMAS, PANGASINAN","SANTO TOMAS","Local Government Unit","Municipality"]
[636,"MGO SANTOL, LA UNION","SANTOL","Local Government Unit","Municipality"]
[1755,"MGO SAPAD, LANAO DEL NORTE","SAPAD","Local Government Unit","Municipality"]
[1772,"MGO SAPANG DALAGA, MISAMIS OCCIDENTAL","SAPANG DALAGA","Local Government Unit","Municipality"]
[2174,"MGO SAPA-SAPA, TAWI-TAWI","SAPA-SAPA","Local Government Unit","Municipality"]
[1298,"MGO SAPI-AN, CAPIZ","SAPI-AN","Local Government Unit","Municipality"]
[1347,"MGO SARA, ILOILO","SARA","Local Government Unit","Municipality"]
[1833,"MGO SARANGANI, DAVAO DEL SUR","SARANGANI","Local Government Unit","Municipality"]
[1030,"MGO SARIAYA, QUEZON","SARIAYA","Local Government Unit","Municipality"]
[582,"MGO SARRAT, ILOCOS NORTE","SARRAT","Local Government Unit","Municipality"]
[881,"MGO SASMUAN (SEXMOAN), PAMPANGA","SASMUAN (SEXMUAN)","Local Government Unit","Municipality"]
[1279,"MGO SEBASTE, ANTIQUE","SEBASTE","Local Government Unit","Municipality"]
[1898,"MGO SEN. NINOY AQUINO, SULTAN KUDARAT","SEN. NINOY AQUINO","Local Government Unit","Municipality"]
[1658,"MGO SERGIO OSMEÑA SR, ZAMBOANGA DEL NORTE","SERGIO OSMEÑA SR","Local Government Unit","Municipality"]
[1411,"MGO SEVILLA, BOHOL","SEVILLA","Local Government Unit","Municipality"]
[2140,"MGO SHARIFF AGUAK (MAGANOY) (CAPITAL), MAGUINDANAO","SHARIFF AGUAK (MAGANOY)*","Local Government Unit","Municipality"]
[2141,"MGO SHARIFF SAYDONA, MAGUINDANAO","SHARIFF SAYDONA MUSTAPHA","Local Government Unit","Municipality"]
[1481,"MGO SIATON, NEGROS ORIENTAL","SIATON","Local Government Unit","Municipality"]
[1706,"MGO SIAY, ZAMBOANGA SIBUGAY","SIAY","Local Government Unit","Municipality"]
[1659,"MGO SIAYAN, ZAMBOANGA DEL NORTE","SIAYAN","Local Government Unit","Municipality"]
[1924,"MGO SIBAGAT, AGUSAN DEL SUR","SIBAGAT","Local Government Unit","Municipality"]
[1280,"MGO SIBALOM, ANTIQUE","SIBALOM","Local Government Unit","Municipality"]
[1460,"MGO SIBONGA, CEBU","SIBONGA","Local Government Unit","Municipality"]
[1660,"MGO SIBUCO, ZAMBOANGA DEL NORTE","SIBUCO","Local Government Unit","Municipality"]
[1482,"MGO SIBULAN, NEGROS ORIENTAL","SIBULAN","Local Government Unit","Municipality"]
[1306,"MGO SIBUNAG, GUIMARAS","SIBUNAG","Local Government Unit","Municipality"]
[1661,"MGO SIBUTAD, ZAMBOANGA DEL NORTE","SIBUTAD","Local Government Unit","Municipality"]
[2175,"MGO SIBUTU, TAWI-TAWI","SIBUTU","Local Government Unit","Municipality"]
[1412,"MGO SIERRA BULLONES, BOHOL","SIERRA BULLONES","Local Government Unit","Municipality"]
[3108,"MGO SIGAY, ILOCOS SUR","SIGAY","Local Government Unit","Municipality"]
[1299,"MGO SIGMA, CAPIZ","SIGMA","Local Government Unit","Municipality"]
[1413,"MGO SIKATUNA, BOHOL","SIKATUNA","Local Government Unit","Municipality"]
[1639,"MGO SILAGO, SOUTHERN LEYTE","SILAGO","Local Government Unit","Municipality"]
[961,"MGO SILANG, CAVITE","SILANG","Local Government Unit","Municipality"]
[1594,"MGO SILVINO LOBOS, NORTHERN SAMAR","SILVINO LOBOS","Local Government Unit","Municipality"]
[2176,"MGO SIMUNUL, TAWI-TAWI","SIMUNUL","Local Government Unit","Municipality"]
[1773,"MGO SINACABAN, MISAMIS OCCIDENTAL","SINACABAN","Local Government Unit","Municipality"]
[615,"MGO SINAIT, ILOCOS SUR","SINAIT","Local Government Unit","Municipality"]
[1662,"MGO SINDANGAN, ZAMBOANGA DEL NORTE","SINDANGAN","Local Government Unit","Municipality"]
[613,"MGO SINGAY","SINGAY","Local Government Unit","Municipality"]
[614,"MGO SINGAY_ILOCOS SUR","SINGAY","Local Government Unit","Municipality"]
[991,"MGO SINILOAN","SINALOAN","Local Government Unit","Municipality"]
[990,"MGO SINILOAN, LAGUNA","SINILOAN","Local Government Unit","Municipality"]
[1663,"MGO SIOCON, ZAMBOANGA DEL NORTE","SIOCON","Local Government Unit","Municipality"]
[1192,"MGO SIPOCOT, CAMARINES SUR","SIPOCOT","Local Government Unit","Municipality"]
[1495,"MGO SIQUIJOR (CAPITAL), SIQUIJOR","SIQUIJOR","Local Government Unit","Municipality"]
[1664,"MGO SIRAWAI, ZAMBOANGA DEL NORTE","SIRAWAI","Local Government Unit","Municipality"]
[1193,"MGO SIRUMA, CAMARINES SUR","SIRUMA","Local Government Unit","Municipality"]
[681,"MGO SISON, PANGASINAN","SISON","Local Government Unit","Municipality"]
[1955,"MGO SISON, SURIGAO DEL NORTE","SISON","Local Government Unit","Municipality"]
[2177,"MGO SITANGKAI, TAWI-TAWI","SITANGKAI","Local Government Unit","Municipality"]
[1082,"MGO SOCORRO, ORIENTAL MINDORO","SOCORRO","Local Government Unit","Municipality"]
[1956,"MGO SOCORRO, SURIGAO DEL NORTE","SOCORRO","Local Government Unit","Municipality"]
[1109,"MGO SOFRONIO ESPAÑOLA, PALAWAN","SOFRONIO ESPAñOLA","Local Government Unit","Municipality"]
[1461,"MGO SOGOD, CEBU","SOGOD","Local Government Unit","Municipality"]
[1640,"MGO SOGOD, SOUTHERN LEYTE","SOGOD","Local Government Unit","Municipality"]
[3111,"MGO SOLANA, CAGAYAN","SOLANA","Local Government Unit","Municipality"]
[777,"MGO SOLANO, NUEVA VIZCAYA","SOLANO","Local Government Unit","Municipality"]
[722,"MGO SOLONA","SOLONA","Local Government Unit","Municipality"]
[583,"MGO SOLSONA, ILOCOS NORTE","SOLSONA","Local Government Unit","Municipality"]
[1687,"MGO SOMINOT (DON MARIANO MARCOS), ZAMBOANGA DEL SUR","SOMINOT (DON MARIANO MARC","Local Government Unit","Municipality"]
[2178,"MGO SOUTH UBIAN, TAWI-TAWI","SOUTH UBIAN","Local Government Unit","Municipality"]
[2142,"MGO SOUTH UPI, MAGUINDANAO","SOUTH UPI","Local Government Unit","Municipality"]
[682,"MGO SUAL, PANGASINAN","SUAL","Local Government Unit","Municipality"]
[913,"MGO SUBIC, ZAMBALES","SUBIC","Local Government Unit","Municipality"]
[637,"MGO SUDIPEN, LA UNION","SUDIPEN","Local Government Unit","Municipality"]
[1795,"MGO SUGBONGCOGON, MISAMIS ORIENTAL","SUGBONGCOGON","Local Government Unit","Municipality"]
[616,"MGO SUGPON, ILOCOS SUR","SUGPON","Local Government Unit","Municipality"]
[1527,"MGO SULAT, EASTERN SAMAR","SULAT","Local Government Unit","Municipality"]
[1834,"MGO SULOP, DAVAO DEL SUR","SULOP","Local Government Unit","Municipality"]
[2105,"MGO SULTAN DUMALONDONG, LANAO DEL SUR","SULTAN DUMALONDONG","Local Government Unit","Municipality"]
[2101,"MGO SULTAN GUMANDER, LANAO DEL SUR","SULTAN GUMANDER","Local Government Unit","Municipality"]
[2143,"MGO SULTAN KUDARAT (NULING), MAGUINDANAO","SULTAN KUDARAT (NULING)","Local Government Unit","Municipality"]
[2144,"MGO SULTAN MASTURA, MAGUINDANAO","SULTAN MASTURA","Local Government Unit","Municipality"]
[1756,"MGO SULTAN NAGA DIMAPORO (KAROMATAN), LANAO DEL NORTE","SULTAN NAGA DIMAPORO (KAR","Local Government Unit","Municipality"]
[2145,"MGO SULTAN SA BARONGIS (LAMBAYONG), MAGUINDANAO","SULTAN SA BARONGIS (LAMBA","Local Government Unit","Municipality"]
[1729,"MGO SUMILAO, BUKIDNON","SUMILAO","Local Government Unit","Municipality"]
[2068,"MGO SUMISIP, BASILAN","SUMISIP","Local Government Unit","Municipality"]
[1883,"MGO SURALLAH, SOUTH COTABATO","SURALLAH","Local Government Unit","Municipality"]
[617,"MGO SUYO, ILOCOS SUR","SUYO","Local Government Unit","Municipality"]
[1884,"MGO T BOLI, SOUTH COTABATO","T BOLI","Local Government Unit","Municipality"]
[941,"MGO TAAL, BATANGAS","TAAL","Local Government Unit","Municipality"]
[1565,"MGO TABANGO, LEYTE","TABANGO","Local Government Unit","Municipality"]
[1688,"MGO TABINA, ZAMBOANGA DEL SUR","TABINA","Local Government Unit","Municipality"]
[1462,"MGO TABOGON, CEBU","TABOGON","Local Government Unit","Municipality"]
[1566,"MGO TABONTABON, LEYTE","TABONTABON","Local Government Unit","Municipality"]
[2069,"MGO TABUAN-LASA, BASILAN","TABUAN-LASA","Local Government Unit","Municipality"]
[1463,"MGO TABUELAN, CEBU","TABUELAN","Local Government Unit","Municipality"]
[2059,"MGO TADIAN, MOUNTAIN PROVINCE","TADIAN","Local Government Unit","Municipality"]
[1528,"MGO TAFT, EASTERN SAMAR","TAFT","Local Government Unit","Municipality"]
[1957,"MGO TAGANA-AN, SURIGAO DEL NORTE","TAGANA-AN","Local Government Unit","Municipality"]
[1617,"MGO TAGAPUL-AN, SAMAR(WESTERN)","TAGAPUL-AN","Local Government Unit","Municipality"]
[1976,"MGO TAGBINA, SURIGAO DEL SUR","TAGBINA","Local Government Unit","Municipality"]
[1031,"MGO TAGKAWAYAN, QUEZON","TAGKAWAYAN","Local Government Unit","Municipality"]
[1977,"MGO TAGO, SURIGAO DEL SUR","TAGO","Local Government Unit","Municipality"]
[2106,"MGO TAGOLOAN II, LANAO DEL SUR","TAGOLOAN II","Local Government Unit","Municipality"]
[1796,"MGO TAGOLOAN, LANAO DEL NORTE","TAGOLOAN","Local Government Unit","Municipality"]
[1757,"MGO TAGOLOAN, MISAMIS ORIENTAL","TAGOLOAN","Local Government Unit","Municipality"]
[618,"MGO TAGUDIN, ILOCOS SUR","TAGUDIN","Local Government Unit","Municipality"]
[1925,"MGO TALACOGON, AGUSAN DEL SUR","TALACOGON","Local Government Unit","Municipality"]
[1819,"MGO TALAINGOD, DAVAO DEL NORTE","TALAINGOD","Local Government Unit","Municipality"]
[1730,"MGO TALAKAG, BUKIDNON","TALAKAG","Local Government Unit","Municipality"]
[1618,"MGO TALALORA, SAMAR (WESTERN)","TALALORA","Local Government Unit","Municipality"]
[859,"MGO TALAVERA, NUEVA ECIJA","TALAVERA","Local Government Unit","Municipality"]
[2146,"MGO TALAYAN, MAGUINDANAO","TALAYAN","Local Government Unit","Municipality"]
[1414,"MGO TALIBON, BOHOL","TALIBON","Local Government Unit","Municipality"]
[2166,"MGO TALIPAO, SULU","TALIPAO","Local Government Unit","Municipality"]
[942,"MGO TALISAY, BATANGAS","TALISAY","Local Government Unit","Municipality"]
[1137,"MGO TALISAY, CAMARINES NORTE","TALISAY","Local Government Unit","Municipality"]
[1797,"MGO TALISAYAN, MISAMIS ORIENTAL","TALISAYAN","Local Government Unit","Municipality"]
[2147,"MGO TALITAY, MAGUINDANAO","TALITAY","Local Government Unit","Municipality"]
[860,"MGO TALUGTUG, NUEVA ECIJA","TALUGTUG","Local Government Unit","Municipality"]
[1707,"MGO TALUSAN, ZAMBOANGA SIBUGAY","TALUSAN","Local Government Unit","Municipality"]
[1689,"MGO TAMBULIG, ZAMBOANGA DEL SUR","TAMBULIG","Local Government Unit","Municipality"]
[1885,"MGO TAMPAKAN, SOUTH COTABATO","TAMPAKAN","Local Government Unit","Municipality"]
[2107,"MGO TAMPARAN, LANAO DEL SUR","TAMPARAN","Local Government Unit","Municipality"]
[1665,"MGO TAMPILISAN, ZAMBOANGA DEL NORTE","TAMPILISAN","Local Government Unit","Municipality"]
[1567,"MGO TANAUAN, LEYTE","TANAUAN","Local Government Unit","Municipality"]
[1046,"MGO TANAY, RIZAL","TANAY","Local Government Unit","Municipality"]
[2179,"MGO TANDUBAS, TAWI-TAWI","TANDUBAS","Local Government Unit","Municipality"]
[1264,"MGO TANGALAN, AKLAN","TANGALAN","Local Government Unit","Municipality"]
[1758,"MGO TANGCAL, LANAO DEL NORTE","TANGCAL","Local Government Unit","Municipality"]
[1886,"MGO TANTANGAN, SOUTH COTABATO","TANTANGAN","Local Government Unit","Municipality"]
[2047,"MGO TANUDAN, KALINGA","TANUDAN","Local Government Unit","Municipality"]
[963,"MGO TANZA, CAVITE","TANZA","Local Government Unit","Municipality"]
[1300,"MGO TAPAZ, CAPIZ","TAPAZ","Local Government Unit","Municipality"]
[2167,"MGO TAPUL, SULU","TAPUL","Local Government Unit","Municipality"]
[2108,"MGO TARAKA, LANAO DEL SUR","TARAKA","Local Government Unit","Municipality"]
[1619,"MGO TARANGNAN, SAMAR (WESTERN)","TARANGNAN","Local Government Unit","Municipality"]
[1848,"MGO TARRAGONA, DAVAO ORIENTAL","TARRAGONA","Local Government Unit","Municipality"]
[1483,"MGO TAYASAN, NEGROS ORIENTAL","TAYASAN","Local Government Unit","Municipality"]
[943,"MGO TAYSAN, BATANGAS","TAYSAN","Local Government Unit","Municipality"]
[1110,"MGO TAYTAY, PALAWAN","TAYTAY","Local Government Unit","Municipality"]
[1047,"MGO TAYTAY, RIZAL","TAYTAY","Local Government Unit","Municipality"]
[683,"MGO TAYUG, PANGASINAN","TAYUG","Local Government Unit","Municipality"]
[2001,"MGO TAYUM, ABRA","TAYUM","Local Government Unit","Municipality"]
[1048,"MGO TERESA, RIZAL","TERESA","Local Government Unit","Municipality"]
[964,"MGO TERNATE, CAVITE","TERNATE","Local Government Unit","Municipality"]
[1033,"MGO TIAONG","TIAONG","Local Government Unit","Municipality"]
[1032,"MGO TIAONG, QUEZON","TIAONG","Local Government Unit","Municipality"]
[1281,"MGO TIBIAO, ANTIQUE","TIBIAO","Local Government Unit","Municipality"]
[1195,"MGO TIGAON, CAMARINES SUR","TIGAON","Local Government Unit","Municipality"]
[1690,"MGO TIGBAO, ZAMBOANGA DEL SUR","TIGBAO","Local Government Unit","Municipality"]
[1348,"MGO TIGBAUAN, ILOILO","TIGBAUAN","Local Government Unit","Municipality"]
[1196,"MGO TINAMBAC, CAMARINES SUR","TINAMBAC","Local Government Unit","Municipality"]
[2002,"MGO TINEG, ABRA","TINEG","Local Government Unit","Municipality"]
[2048,"MGO TINGLAYAN, KALINGA","TINGLAYAN","Local Government Unit","Municipality"]
[944,"MGO TINGLOY, BATANGAS","TINGLOY","Local Government Unit","Municipality"]
[2040,"MGO TINOC, IFUGAO","TINOC","Local Government Unit","Municipality"]
[2070,"MGO TIPO-TIPO, BASILAN","TIPO-TIPO","Local Government Unit","Municipality"]
[1708,"MGO TITAY, ZAMBOANGA SIBUGAY","TITAY","Local Government Unit","Municipality"]
[1178,"MGO TIWI, ALBAY","TIWI","Local Government Unit","Municipality"]
[1282,"MGO TOBIAS FORNIER (DAO), ANTIQUE","TOBIAS FORNIER (DAO)","Local Government Unit","Municipality"]
[1369,"MGO TOBOSO, NEGROS OCCIDENTAL","TOBOSO","Local Government Unit","Municipality"]
[1568,"MGO TOLOSA, LEYTE","TOLOSA","Local Government Unit","Municipality"]
[1641,"MGO TOMAS OPPUS, SOUTHERN LEYTE","TOMAS OPPUS","Local Government Unit","Municipality"]
[2168,"MGO TONGKIL, SULU","TONGKIL","Local Government Unit","Municipality"]
[1055,"MGO TORRIJOS, MARINDUQUE","TORRIJOS","Local Government Unit","Municipality"]
[1926,"MGO TRENTO, AGUSAN DEL SUR","TRENTO","Local Government Unit","Municipality"]
[1415,"MGO TRINIDAD, BOHOL","TRINIDAD","Local Government Unit","Municipality"]
[723,"MGO TUAO, CAGAYAN","TUAO","Local Government Unit","Municipality"]
[2027,"MGO TUBA, BENGUET","TUBA","Local Government Unit","Municipality"]
[1935,"MGO TUBAJON, DINAGAT ISLAND","TUBAJON","Local Government Unit","Municipality"]
[638,"MGO TUBAO, LA UNION","TUBAO","Local Government Unit","Municipality"]
[2109,"MGO TUBARAN, LANAO DEL SUR","TUBARAN","Local Government Unit","Municipality"]
[1912,"MGO TUBAY, AGUSAN DEL NORTE","TUBAY","Local Government Unit","Municipality"]
[1416,"MGO TUBIGON, BOHOL","TUBIGON","Local Government Unit","Municipality"]
[2028,"MGO TUBLAY, BENGUET","TUBLAY","Local Government Unit","Municipality"]
[2003,"MGO TUBO, ABRA","TUBO","Local Government Unit","Municipality"]
[1759,"MGO TUBOD (CAPITAL), LANAO DEL NORTE","TUBOD","Local Government Unit","Municipality"]
[1958,"MGO TUBOD, SURIGAO DEL NORTE","TUBOD","Local Government Unit","Municipality"]
[1349,"MGO TUBUNGAN, ILOILO","TUBUNGAN","Local Government Unit","Municipality"]
[2071,"MGO TUBURAN, BASILAN","TUBURAN","Local Government Unit","Municipality"]
[1464,"MGO TUBURAN, CEBU","TUBURAN","Local Government Unit","Municipality"]
[1465,"MGO TUDELA, CEBU","TUDELA","Local Government Unit","Municipality"]
[1774,"MGO TUDELA, MISAMIS OCCIDENTAL","TUDELA","Local Government Unit","Municipality"]
[3261,"MGO TUGAYA, LANAO DEL SUR","TUGAYA","Local Government Unit","Municipality"]
[1691,"MGO TUKURAN, ZAMBOANGA DEL SUR","TUKURAN","Local Government Unit","Municipality"]
[1868,"MGO TULUNAN, NORTH COTABATO","TULUNAN","Local Government Unit","Municipality"]
[762,"MGO TUMAUINI, ISABELA","TUMAUINI","Local Government Unit","Municipality"]
[1569,"MGO TUNGA, LEYTE","TUNGA","Local Government Unit","Municipality"]
[1709,"MGO TUNGAWAN, ZAMBOANGA SIBUGAY","TUNGAWAN","Local Government Unit","Municipality"]
[1887,"MGO TUPI, SOUTH COTABATO","TUPI","Local Government Unit","Municipality"]
[2180,"MGO TURTLE ISLANDS, TAWI-TAWI","TURTLE ISLANDS","Local Government Unit","Municipality"]
[945,"MGO TUY, BATANGAS","TUY","Local Government Unit","Municipality"]
[1417,"MGO UBAY, BOHOL","UBAY","Local Government Unit","Municipality"]
[684,"MGO UMINGAN, PANGASINAN","UMINGAN","Local Government Unit","Municipality"]
[2072,"MGO UNGKAYA PUKAN, BASILAN","UNGKAYA PUKAN","Local Government Unit","Municipality"]
[1034,"MGO UNISAN, QUEZON","UNISAN","Local Government Unit","Municipality"]
[2148,"MGO UPI, MAGUINDANAO","UPI","Local Government Unit","Municipality"]
[685,"MGO URBIZTONDO, PANGASINAN","URBIZTONDO","Local Government Unit","Municipality"]
[1229,"MGO USON, MASBATE","USON","Local Government Unit","Municipality"]
[3110,"MGO UYUGAN, BATANES","UYUGAN","Local Government Unit","Municipality"]
[1283,"MGO VALDERAMA, ANTIQUE","VALDERAMA","Local Government Unit","Municipality"]
[1489,"MGO VALENCIA (LUZURRIAGA), NEGROS ORIENTAL","VALENCIA (LUZURRIAGA)","Local Government Unit","Municipality"]
[1418,"MGO VALENCIA, BOHOL","VALENCIA","Local Government Unit","Municipality"]
[1370,"MGO VALLADOLID, NEGROS OCCIDENTAL","VALLADOLID","Local Government Unit","Municipality"]
[1485,"MGO VALLEHERMOSO, NEGROS ORIENTAL","VALLEHERMOSO","Local Government Unit","Municipality"]
[1927,"MGO VERUELA, AGUSAN DEL SUR","VERUELA","Local Government Unit","Municipality"]
[992,"MGO VICTORIA, LAGUNA","VICTORIA","Local Government Unit","Municipality"]
[1595,"MGO VICTORIA, NORTHERN SAMAR","VICTORIA","Local Government Unit","Municipality"]
[1083,"MGO VICTORIA, ORIENTAL MINDORO","VICTORIA","Local Government Unit","Municipality"]
[899,"MGO VICTORIA, TARLAC","VICTORIA","Local Government Unit","Municipality"]
[1207,"MGO VIGA, CATANDUANES","VIGA","Local Government Unit","Municipality"]
[1570,"MGO VILLABA, LEYTE","VILLABA","Local Government Unit","Municipality"]
[1798,"MGO VILLANUEVA, MISAMIS ORIENTAL","VILLANUEVA","Local Government Unit","Municipality"]
[1620,"MGO VILLAREAL, SAMAR (WESTERN)","VILLAREAL","Local Government Unit","Municipality"]
[686,"MGO VILLASIS, PANGASINAN","VILLASIS","Local Government Unit","Municipality"]
[778,"MGO VILLAVERDE, NUEVA VIZCAYA","VILLAVERDE","Local Government Unit","Municipality"]
[2004,"MGO VILLAVICIOSA, ABRA","VILLAVICIOSA","Local Government Unit","Municipality"]
[1692,"MGO VINCENZO Z SAGUN, ZAMBOANGA DEL SUR","VINCENZO Z SAGUN","Local Government Unit","Municipality"]
[584,"MGO VINTAR, ILOCOS NORTE","VINTAR","Local Government Unit","Municipality"]
[1138,"MGO VINZONS, CAMARINES NORTE","VINZONS","Local Government Unit","Municipality"]
[1208,"MGO VIRAC (CAPITAL), CATANDUANES","VIRAC","Local Government Unit","Municipality"]
[2111,"MGO WAO, LANAO DEL SUR","WAO","Local Government Unit","Municipality"]
[1487,"MGO ZAMBOANGUITA, NEGROS ORIENTAL","ZAMBOANGUITA","Local Government Unit","Municipality"]
[861,"MGO ZARAGOZA, NUEVA ECIJA","ZARAGOZA","Local Government Unit","Municipality"]
[1350,"MGO ZARRAGA, ILOILO","ZARRAGA","Local Government Unit","Municipality"]
[1622,"MGO ZUMARRAGA, SAMAR (WESTERN)","ZUMARRAGA","Local Government Unit","Municipality"]
[3212,"MGO-DOÑA REMEDIOS TRINIDAD","DRM","Local Government Unit","Province"]
[3216,"MGO-GEN.NATIVIDAD","G.N","Local Government Unit","Province"]
[3229,"MGO-STA.IGNACIO","SI","Local Government Unit","Province"]
[3213,"MGO-STA.MARIA","STA.MARIA","Local Government Unit","Province"]
[3220,"MGO-STA.ROSA","STA.ROSA","Local Government Unit","City"]
[3219,"MGO-STODOMING","STO.DOMINGO","Local Government Unit","Province"]
[3218,"MGO-ZARAGOSA","ZARAGOSA","Local Government Unit","Province"]
[2956,"MIAG-AO WATER DISTRICT","MOWD","Executive Branch","LWD"]
[2983,"MINDANAO DEVELOPMENT AUTHORITY","MINDA","Executive Branch","Attached"]
[273,"MINDANAO STATE UNIVERSITY","MSU","State Universities and Colleges","Proper"]
[2196,"MINDANAO STATE UNIVERSITY – ILIGAN INSTITUTE OF TECHNOLOGY","MSUIIT","State Universities and Colleges","Branch"]
[2197,"MINDANAO STATE UNIVERSITY – TAWI-TAWI COLLEGE OF TECHNOLOGY AND OCEANOGRAPHY","MSU-TCTO","State Universities and Colleges","Branch"]
[2192,"MINDANAO STATE UNIVERSITY (GENERAL SANTOS CAMPUS)","MSU (GENERAL SANTOS)","State Universities and Colleges","Branch"]
[2193,"MINDANAO STATE UNIVERSITY (MAGUINDANAO)","MSU (MAGUINDANAO)","State Universities and Colleges","Branch"]
[2194,"MINDANAO STATE UNIVERSITY (NAAWAN)","MSU (NAAWAN)","State Universities and Colleges","Branch"]
[2195,"MINDANAO STATE UNIVERSITY (SULU)","MSU (SULU)","State Universities and Colleges","Branch"]
[2191,"MINDANAO STATE UNIVERSITY MAIN CAMPUS ","MSU MARAWI (MAIN CAMPUS)","State Universities and Colleges","Proper"]
[2284,"MINDANAO UNIVERSITY OF SCIENCE AND TECHNOLOGY","MUST","State Universities and Colleges","Proper"]
[2232,"MINDORO STATE COLLEGE OF AGRICULTURE AND TECHNOLOGY","MINSCAT","State Universities and Colleges","Proper"]
[246,"MINES AND GEOSCIENCES BUREAU","MGB","Executive Branch","Attached"]
[2412,"MISAMIS OCCIDENTAL WATER DISTRICT","MISAMIS OCCIDENTAL","Executive Branch","LWD"]
[2285,"MISAMIS ORIENTAL STATE COLLEGE OF AGRICULTURE AND TECHNOLOGY","MOSCAT","State Universities and Colleges","Proper"]
[2387,"M'LANG WATER DISTRICT","MWD","Executive Branch","LWD"]
[3004,"MOALBOAL WATER DISTRICT","MWD","Executive Branch","LWD"]
[2767,"MONCADA WATER DISTRICT","MONCADA","Executive Branch","LWD"]
[2620,"MONDRAGON AGRO-INDUSTRIAL SCHOOL","MAIS","State Universities and Colleges","Proper"]
[3028,"MONDRAGON WATER DISTRICT","MONDRAGON","Executive Branch","LWD"]
[2896,"MORONG WATER DISTRICT","MORONG","Executive Branch","LWD"]
[2203,"MOUNTAIN PROVINCE STATE POLYTECHNIC COLLEGE","MTPSPC","State Universities and Colleges","Proper"]
[2984,"MOVIE AND TELEVISION REVIEW AND CLASSIFICATION BOARD","MTRCB","Executive Branch","Attached"]
[410,"MUNICIPAL TRIAL COURT","MTC","Judiciary","Proper"]
[2735,"MUÑOZ WATER DISTRICT","MUÑOZ","Executive Branch","LWD"]
[3208,"MURCIA WATER DISTRICT","MWD","Executive Branch","LWD"]
[2922,"NABAS WATER DISTRICT","NABAS","Executive Branch","LWD"]
[2316,"NABUA WATER DISTRICT","CAMARINES SUR","Executive Branch","LWD"]
[3047,"NABUNTURAN WATER DISTRICT","NWD","Executive Branch","LWD"]
[2416,"NAGLALOA-AN NATIONAL HIGH SCHOOL","NNHS","Executive Branch","NGA"]
[2459,"NAGUILIAN DISTRICT HOSPITAL","NDH","Executive Branch","NGA"]
[2467,"NAGUILIAN WATER DISTRICT","NWD","Executive Branch","LWD"]
[2417,"NARVACAN NATIONAL CENTRAL HIGH SCHOOL","NHCHS","Executive Branch","NGA"]
[2427,"NARVACAN WATER DISTRICT","NWD","Executive Branch","LWD"]
[2592,"NASIPIT WATER DISTRICT","NWD","Executive Branch","LWD"]
[2843,"NASUGBU WATER DISTRICT","NWD","Executive Branch","LWD"]
[116,"NATIONAL ACADEMY OF SCIENCE AND TECHNOLOGY","NAST","Executive Branch","Attached"]
[2799,"NATIONAL AGRI-BUSINESS CORPORATION","NABCOR","Executive Branch","GFI/GOCC"]
[271,"NATIONAL ANTI-POVERTY COMMISSION","NAPC","Executive Branch","Attached"]
[157,"NATIONAL ARCHIVES OF THE PHILIPPINES","NAP","Executive Branch","Attached"]
[174,"NATIONAL BOOK DEVELOPMENT BOARD","NBDB","Executive Branch","Attached"]
[73,"NATIONAL BUREAU OF INVESTIGATION","NBI","Executive Branch","Attached"]
[56,"NATIONAL CENTER FOR DISEASE PREVENTION AND CONTROL","NCDPC","Executive Branch","Attached"]
[59,"NATIONAL CENTER FOR HEALTH FACILITY AND DEVELOPMENT","NCHFD","Executive Branch","Attached"]
[58,"NATIONAL CENTER FOR HEALTH PROMOTION","NCHP","Executive Branch","Attached"]
[47,"NATIONAL CENTER FOR MENTAL HEALTH","NCMH","Executive Branch","Attached"]
[50,"NATIONAL CHILDREN S HOSPITAL","NCH","Executive Branch","Attached"]
[173,"NATIONAL COMMISSION ON CULTURE AND THE ARTS","NCCA","Executive Branch","Attached"]
[165,"NATIONAL COMMISSION ON INDIGENOUS PEOPLE","NCIP","Executive Branch","Attached"]
[164,"NATIONAL COMMISSION ON MUSLIM FILIPINOS","NCMF","Executive Branch","Attached"]
[158,"NATIONAL COMPUTER CENTER","NCC","Executive Branch","Attached"]
[85,"NATIONAL CONCILIATION AND MEDIATION BOARD","NCMB","Executive Branch","Attached"]
[3163,"NATIONAL COUNCIL FOR CHILDREN’S TELEVISION","NCCT","Executive Branch","Attached"]
[119,"NATIONAL COUNCIL ON DISABILITY AFFAIRS","NCDA","Executive Branch","Attached"]
[204,"NATIONAL DAIRY AUTHORITY","NDA","Executive Branch","Attached"]
[412,"NATIONAL DEFENSE COLLEGE OF THE PHILIPPINES","NDCP","Executive Branch","Attached"]
[205,"NATIONAL DEVELOPMENT COMPANY","NDC","Executive Branch","GFI/GOCC"]
[145,"NATIONAL ECONOMIC AND DEVELOPMENT AUTHORITY","NEDA","Executive Branch","NGA"]
[24,"NATIONAL EDUCATION TESTING AND RESEARCH CENTER","NETRC","Executive Branch","Attached"]
[25,"NATIONAL EDUCATORS ACADEMY OF THE PHILIPPINES","NEAP","Executive Branch","Attached"]
[206,"NATIONAL ELECTRIFICATION ADMINISTRATION","NEA","Executive Branch","GFI/GOCC"]
[57,"NATIONAL EPIDEMIOLOGY CENTER","NEC","Executive Branch","Attached"]
[3133,"NATIONAL FISHERIES RESEARCH AND DEVELOPMENT INSTITUTE","NFRDI","Executive Branch","NGA"]
[207,"NATIONAL FOOD AUTHORITY","NFA","Executive Branch","GFI/GOCC"]
[154,"NATIONAL HISTORICAL COMMISSION OF THE PHILIPPINES","NHCP","Executive Branch","Attached"]
[208,"NATIONAL HOME MORTGAGE FINANCE CORPORATION","NHMFC","Executive Branch","GFI/GOCC"]
[209,"NATIONAL HOUSING AUTHORITY","NHA","Executive Branch","GFI/GOCC"]
[259,"NATIONAL INTELLIGENCE COORDINATING AGENCY","NICA","Executive Branch","Attached"]
[210,"NATIONAL IRRIGATION ADMINISTRATION","NIA","Executive Branch","GFI/GOCC"]
[211,"NATIONAL KIDNEY AND TRANSPLANT INSTITUTE","NKTI","Executive Branch","GFI/GOCC"]
[86,"NATIONAL LABOR RELATIONS COMMISSION","NLRC","Executive Branch","Attached"]
[243,"NATIONAL LIVELIHOOD DEVELOPMENT CORPORATION","NLDC","Executive Branch","GFI/GOCC"]
[30,"NATIONAL MAPPING AND RESOURCE INFORMATION AUTHORITY","NAMRIA","Executive Branch","Attached"]
[377,"NATIONAL MARITIME POLYTECHNIC","NMP","Executive Branch","Attached"]
[15,"NATIONAL MEAT INSPECTION SERVICE","NMIS","Executive Branch","Attached"]
[155,"NATIONAL MUSEUM","NM","Executive Branch","Attached"]
[10,"NATIONAL NUTRITION COUNCIL","NNC","Executive Branch","Attached"]
[123,"NATIONAL PARKS DEVELOPMENT COMMITTEE","NPDC","Executive Branch","Attached"]
[68,"NATIONAL POLICE COMMISSION","NAPOLCOM","Executive Branch","NGA"]
[212,"NATIONAL POWER CORPORATION","NAPOCOR","Executive Branch","GFI/GOCC"]
[180,"NATIONAL PRINTING OFFICE","NPO","Executive Branch","Attached"]
[3266,"NATIONAL PRIVACY COMMISSION","NPC","Executive Branch","NGA"]
[82,"NATIONAL PROSECUTION SERVICE","NPS","Executive Branch","Attached"]
[3180,"NATIONAL RESEARCH COUNCIL OF THE PHILIPPINES ","NRCP","Executive Branch","Attached"]
[27,"NATIONAL SCIENCE TEACHING INSTRUMENTATION CENTER","NSTIC","Executive Branch","Attached"]
[176,"NATIONAL SECURITY COUNCIL","NSC","Executive Branch","Attached"]
[149,"NATIONAL STATISTICAL COORDINATION BOARD","NSCB","Executive Branch","Attached"]
[150,"NATIONAL STATISTICS OFFICE","NSO","Executive Branch","Attached"]
[32,"NATIONAL TAX RESEARCH CENTER","NTRC","Executive Branch","Attached"]
[142,"NATIONAL TELECOMMUNICATIONS COMMISSION","NTC","Executive Branch","Attached"]
[213,"NATIONAL TOBACCO ADMINISTRATION","NTA","Executive Branch","GFI/GOCC"]
[2805,"NATIONAL TOBACCO ADMINISTRATION","NTA","Executive Branch","GFI/GOCC"]
[289,"NATIONAL TRANSMISSION CORPORATION","TRANSCO","Executive Branch","GFI/GOCC"]
[88,"NATIONAL WAGES AND PRODUCTIVITY COMMISSION","NWPC","Executive Branch","Attached"]
[96,"NATIONAL WATER RESOURCES BOARD","NWRB","Executive Branch","Attached"]
[367,"NATIONAL YOUTH COMMISSION","NYC","Executive Branch","Attached"]
[214,"NATURAL RESOURCES DEVELOPMENT CORPORATION","NRDC","Executive Branch","Attached"]
[2873,"NAUJAN WATER DISTRICT","NWD","Executive Branch","LWD"]
[2265,"NAVAL INSTITUTE OF TECHNOLOGY","NSU","State Universities and Colleges","Proper"]
[2580,"NAVAL WATER DISTRICT","NWD","Executive Branch","LWD"]
[124,"NAYONG PILIPINO FOUNDATION","NPF","Executive Branch","Attached"]
[2830,"NDC-PHILIPPINE INFRASTRUCTURE CORPORATION","NPIC","Executive Branch","GFI/GOCC"]
[2259,"NEGROS ORIENTAL STATE UNIVERSITY","NORSU","State Universities and Colleges","Proper"]
[2250,"NEGROS STATE COLLEGE OF AGRICULTURE","NSCA","State Universities and Colleges","Proper"]
[3048,"NEW CORELLA WATER DISTRICT","NCWD","Executive Branch","LWD"]
[2957,"NEW LUCENA WATER DISTRICT","NLWD","Executive Branch","LWD"]
[178,"NEWS AND INFORMATION BUREAU","NIB","Executive Branch","Attached"]
[2804,"NIA CONSULT, INCORPORATED","NIACONSULT","Executive Branch","GFI/GOCC"]
[2403,"NORALA WATER DISTRICT","NWD","Executive Branch","LWD"]
[2207,"NORTH LUZON PHILIPPINES STATE COLLEGE","NLPSC","State Universities and Colleges","Proper"]
[2831,"NORTH LUZON RAILWAY CORPORATION","NORTHRAIL","Executive Branch","GFI/GOCC"]
[2251,"NORTHERN ILOILO POLYTECHNIC STATE COLLEGE","NIPSC ","State Universities and Colleges","Proper"]
[2364,"NORTHERN MINDANAO MEDICAL CENTER","NMMC","Executive Branch","NGA"]
[387,"NORTHERN MINDANAO STATE INSTITUTE OF SCIENCE AND TECHNOLOGY","NMSIST","State Universities and Colleges","Proper"]
[2252,"NORTHERN NEGROS STATE COLLEGE OF SCIENCE AND TECHNOLOGY","NNSCST","State Universities and Colleges","Proper"]
[2605,"NORTHERN SAMAR PROVINCIAL HEALTH OFFICE","NSPHO","Executive Branch","NGA"]
[2606,"NORTHERN SAMAR PROVINCIAL HOSPITAL","NSPH","Executive Branch","NGA"]
[2266,"NORTHWEST SAMAR STATE UNIVERSITY","NSSU","State Universities and Colleges","Proper"]
[2286,"NORTHWESTERN MINDANAO STATE COLLEGE OF SCIENCE AND TECHNOLOGY","NMSC","State Universities and Colleges","Proper"]
[2713,"NORZAGARAY WATER DISTRICT","NORZAGARAY","Executive Branch","LWD"]
[2306,"NOT APPLICABLE","N/A","Private Sector","Proper"]
[2221,"NUEVA ECIJA UNIVERSITY OF SCIENCE AND TECHNOLOGY","NEUST","State Universities and Colleges","Proper"]
[2213,"NUEVA VIZCAYA STATE UNIVERSITY","NVSU","State Universities and Colleges","Proper"]
[2923,"NUMANCIA WATER DISTRICT","NUMANCIA","Executive Branch","LWD"]
[2714,"OBANDO WATER DISTRICT","OBANDO","Executive Branch","LWD"]
[2233,"OCCIDENTAL MINDORO NATIONAL COLLEGE","OMSC","State Universities and Colleges","Proper"]
[215,"OCCUPATIONAL SAFETY AND HEALTH CENTER","OSHC","Executive Branch","Attached"]
[2899,"ODIONGAN WATER DISTRICT","OWD","Executive Branch","LWD"]
[3171,"OFFICE FOR ALTERNATIVE DISPUTE RESOLUTION","OADR","Executive Branch","Attached"]
[3257,"OFFICE FOR SOUTHERN CULTURAL COMMUNITIES - ARMM","OSCC","Executive Branch","NGA"]
[399,"OFFICE FOR TRANSPORTATION SECURITY","OTS","Executive Branch","Attached"]
[92,"OFFICE OF CIVIL DEFENSE","OCD","Executive Branch","Attached"]
[79,"OFFICE OF THE GOVERNMENT CORPORATE COUNSEL","OGCC","Executive Branch","Attached"]
[5,"OFFICE OF THE OMBUDSMAN","OMB","Constitutional Offices","Proper"]
[153,"OFFICE OF THE PRESIDENT","OP","Executive Branch","NGA"]
[2990,"OFFICE OF THE PRESIDENTIAL ADVISER ON THE PEACE PROCESS","OPAPP","Executive Branch","Attached"]
[2346,"OFFICE OF THE PRESIDENTIAL ASSISTANT","OPA","Executive Branch","Attached"]
[177,"OFFICE OF THE PRESS SECRETARY","OPS","Executive Branch","NGA"]
[2365,"OFFICE OF THE REGIONAL STATE PROSECUTOR","ORSP-RO10","Judiciary","Attached"]
[null,"OFFICE OF THE REGIONAL TREASURER","ORT"]
[405,"OFFICE OF THE SOLICITOR GENERAL","OSG","Executive Branch","Attached"]
[2972,"OFFICE OF THE VICE PRESIDENT","OVP","Executive Branch","NGA"]
[254,"OFFICE OF TRANSPORT COOPERATIVES","OTC","Executive Branch","Attached"]
[2991,"OPTICAL MEDIA BOARD","OMB","Executive Branch","Attached"]
[2699,"ORANI WATER DISTRICT","OWD","Executive Branch","LWD"]
[3017,"ORAS WATER DISTRICT","OWD","Executive Branch","LWD"]
[2700,"ORION WATER DISTRICT","ORION","Executive Branch","LWD"]
[2571,"OROQUIETA AGRO INDUSTRIAL SCHOOL","OAIS","State Universities and Colleges","Proper"]
[2414,"OROQUIETA CITY WATER DISTRICT","OCWD","Executive Branch","LWD"]
[216,"OVERSEAS WORKERS WELFARE ADMINISTRATION","OWWA","Executive Branch","GFI/GOCC"]
[2532,"PAGADIAN CITY WATER DISTRICT","PCWD","Executive Branch","LWD"]
[2865,"PAGSANJAN WATER DISTRICT","PWD","Executive Branch","LWD"]
[2453,"PAGUDPUD WATER DISTRICT","PWD","Executive Branch","LWD"]
[2866,"PAKIL WATER DISTRICT","PAKIL","Executive Branch","LWD"]
[2783,"PALAUIG WATER DISTRICT","PALAUIG","Executive Branch","LWD"]
[3165,"PALAWAN COUNCIL FOR SUSTAINABLE DEVELOPMENT","PCSD","Executive Branch","Attached"]
[2234,"PALAWAN STATE UNIVERSITY","PSU","State Universities and Colleges","Proper"]
[2736,"PALAYAN WATER DISTRICT","PWD","Executive Branch","LWD"]
[2267,"PALOMPON INSTITUTE OF TECHNOLOGY","PIT","State Universities and Colleges","Proper"]
[3207,"PAMANTASAN  NG LUNGSOD NG CABUYAO","PLC","State Universities and Colleges","Proper"]
[3237,"PAMANTASAN NG LUNGSOD NG MARIKINA","PLMAR","State Universities and Colleges","Proper"]
[3252,"PAMANTASAN NG LUNGSOD NG MAYNILA","PLM","State Universities and Colleges","Proper"]
[2222,"PAMPANGA AGRICULTURAL COLLEGE","PAC","State Universities and Colleges","Proper"]
[3049,"PANABO WATER DISTRICT","PANABO","Executive Branch","LWD"]
[2832,"PANAY RAILWAYS INCORPORATED","PRI","Executive Branch","GFI/GOCC"]
[2347,"PANDAN WATER DISTRICT","PWD","Executive Branch","LWD"]
[2715,"PANDI WATER DISTRICT","PANDI","Executive Branch","LWD"]
[2208,"PANGASINAN STATE UNIVERSITY","PSU","State Universities and Colleges","Proper"]
[2770,"PANIQUI WATER DISTRICT","PANIQUI","Executive Branch","LWD"]
[2447,"PAOAY LAKE NATIONAL HIGH SCHOOL","PLNHS","Executive Branch","NGA"]
[2517,"PARACALE WATER DISTRICT","PWD","Executive Branch","LWD"]
[77,"PAROLE AND PROBATION ADMINISTRATION","PA","Executive Branch","Attached"]
[2340,"PARTIDO DEVELOPMENT ADMINISTRATION","PDA","Executive Branch","GFI/GOCC"]
[368,"PARTIDO STATE UNIVERSITY","PSU","State Universities and Colleges","Proper"]
[2317,"PASACAO WATER DISTRICT","CAMARINES SUR","Executive Branch","LWD"]
[2994,"PASIG RIVER REHABILITATION COMMISSION","PRRC","Executive Branch","Attached"]
[2929,"PATNONGON WATER DISTRICT","PATNONGON","Executive Branch","LWD"]
[2667,"PEÑABLANCA WATER DISTRICT","PWD","Executive Branch","LWD"]
[2738,"PEÑARANDA WATER DISTRICT","PEÑARANDA","Executive Branch","LWD"]
[2769,"PEOPLE'S CREDIT AND FINANCE CORPORATION","PCFC","Executive Branch","GFI/GOCC"]
[2833,"PEOPLE'S TELEVISION NETWORK, INCORPORATED","PTNI","Executive Branch","GFI/GOCC"]
[1978,"PGO ABRA","ABRA","Local Government Unit","Province"]
[1901,"PGO AGUSAN DEL NORTE","AGUSAN DEL NORTE","Local Government Unit","Province"]
[1913,"PGO AGUSAN DEL SUR","AGUSAN DEL SUR","Local Government Unit","Province"]
[1246,"PGO AKLAN","AKLAN","Local Government Unit","Province"]
[1130,"PGO ALBAY","ALBAY","Local Government Unit","Province"]
[1265,"PGO ANTIQUE","ANTIQUE","Local Government Unit","Province"]
[2005,"PGO APAYAO","APAYAO","Local Government Unit","Province"]
[786,"PGO AURORA","AURORA","Local Government Unit","Province"]
[2060,"PGO BASILAN","BASILAN","Local Government Unit","Province"]
[795,"PGO BATAAN ","BATAAN","Local Government Unit","Province"]
[687,"PGO BATANES","BATANES","Local Government Unit","Province"]
[914,"PGO BATANGAS","BATANGAS","Local Government Unit","Province"]
[2015,"PGO BENGUET","BENGUET","Local Government Unit","Province"]
[1496,"PGO BILIRAN","BILIRAN","Local Government Unit","Province"]
[1371,"PGO BOHOL","BOHOL","Local Government Unit","Province"]
[1710,"PGO BUKIDNON","BUKIDNON","Local Government Unit","Province"]
[808,"PGO BULACAN, BULACAN","BULACAN","Local Government Unit","Province"]
[694,"PGO CAGAYAN","CAGAYAN","Local Government Unit","Province"]
[1179,"PGO CAMARINES NORTE","CAMARINES NORTE","Local Government Unit","Province"]
[1139,"PGO CAMARINES SUR","CAMARINES SUR","Local Government Unit","Province"]
[1731,"PGO CAMIGUIN","CAMIGUIN","Local Government Unit","Province"]
[1284,"PGO CAPIZ","CAPIZ","Local Government Unit","Province"]
[1197,"PGO CATANDUANES","CATANDUANES","Local Government Unit","Province"]
[946,"PGO CAVITE","CAVITE","Local Government Unit","Province"]
[1419,"PGO CEBU","CEBU","Local Government Unit","Province"]
[1799,"PGO COMPOSTELA VALLEY","COMPOSTELA VALLEY","Local Government Unit","Province"]
[1849,"PGO COTABATO (NORTH COTABATO)","COTABATO (NORTH COTABATO)","Local Government Unit","Province"]
[1811,"PGO DAVAO DEL NORTE","DAVAO DEL NORTE","Local Government Unit","Province"]
[1820,"PGO DAVAO DEL SUR","DAVAO DEL SUR","Local Government Unit","Province"]
[1835,"PGO DAVAO ORIENTAL","DAVAO ORIENTAL","Local Government Unit","Province"]
[1928,"PGO DINAGAT ISLAND","DINAGAT ISLAND","Local Government Unit","Province"]
[1505,"PGO EASTERN SAMAR","EASTERN SAMAR","Local Government Unit","Province"]
[1301,"PGO GUIMARAS","GUIMARAS","Local Government Unit","Province"]
[3184,"PGO IFUGAO","IFUGAO","Local Government Unit","Province"]
[563,"PGO ILOCOS NORTE","ILOCOS NORTE","Local Government Unit","Province"]
[585,"PGO ILOCOS SUR","ILOCOS SUR","Local Government Unit","Province"]
[1307,"PGO ILOILO","ILOILO","Local Government Unit","Province"]
[724,"PGO ISABELA","ISABELA","Local Government Unit","Province"]
[2041,"PGO KALINGA","KALINGA","Local Government Unit","Province"]
[619,"PGO LA UNION","LA UNION","Local Government Unit","Province"]
[965,"PGO LAGUNA","LAGUNA","Local Government Unit","Province"]
[1737,"PGO LANAO DEL NORTE  ","LANAO DEL NORTE","Local Government Unit","Province"]
[2073,"PGO LANAO DEL SUR","LANAO DEL SUR","Local Government Unit","Province"]
[1529,"PGO LEYTE ","LEYTE","Local Government Unit","Province"]
[2112,"PGO MAGUINDANAO ","MAGUINDANAO","Local Government Unit","Province"]
[1049,"PGO MARINDUQUE","MARINDUQUE","Local Government Unit","Province"]
[1209,"PGO MASBATE","MASBATE","Local Government Unit","Province"]
[2411,"PGO MISAMIS OCCIDENTAL","MISAMIS OCCIDENTAL","Local Government Unit","Province"]
[1775,"PGO MISAMIS ORIENTAL","MISAMIS ORIENTAL","Local Government Unit","Province"]
[2049,"PGO MOUNTAIN PROVINCE","MOUNTAIN PROVINCE","Local Government Unit","Province"]
[3183,"PGO NEGROS OCCIDENTAL","NEGROS OCCIDENTAL","Local Government Unit","Province"]
[1466,"PGO NEGROS ORIENTAL","NEGROS ORIENTAL","Local Government Unit","Province"]
[1571,"PGO NORTHERN SAMAR","NORTHERN SAMAR","Local Government Unit","Province"]
[834,"PGO NUEVA ECIJA","NUEVA ECIJA","Local Government Unit","Province"]
[763,"PGO NUEVA VIZCAYA","NEUVA VISCAYA","Local Government Unit","Province"]
[1056,"PGO OCCIDENTAL MINDORO","OCCIDENTAL MINDORO","Local Government Unit","Province"]
[1068,"PGO ORIENTAL MINDORO","ORIENTAL MINDORO","Local Government Unit","Province"]
[1084,"PGO PALAWAN ","PALAWAN","Local Government Unit","Province"]
[862,"PGO PAMPANGA","PAMPANGA","Local Government Unit","Province"]
[639,"PGO PANGASINAN","PANGASINAN","Local Government Unit","Province"]
[993,"PGO QUEZON","QUEZON","Local Government Unit","Province"]
[779,"PGO QUIRINO","QUIRINO","Local Government Unit","Province"]
[1035,"PGO RIZAL","RIZAL ","Local Government Unit","Province"]
[1111,"PGO ROMBLON","ROMBLON","Local Government Unit","Province"]
[3238,"PGO SAMAR","PGO SAMAR","Local Government Unit","Province"]
[1028,"PGO SAN FRANCISCO (AURORA), QUEZON","SAN FRANCISCO (AURORA)","Local Government Unit","Province"]
[1869,"PGO SARANGANI","SARANGANI","Local Government Unit","Province"]
[1486,"PGO SIQUIJOR","SIQUIJOR","Local Government Unit","Province"]
[1230,"PGO SORSOGON","SORSOGON","Local Government Unit","Province"]
[1877,"PGO SOUTH COTABATO","SOUTH COTABATO","Local Government Unit","Province"]
[1623,"PGO SOUTHERN LEYTE","SOUTHERN LEYTE","Local Government Unit","Province"]
[1888,"PGO SULTAN KUDARAT","SULTAN KUDARAT","Local Government Unit","Province"]
[2149,"PGO SULU","SULU  ","Local Government Unit","Province"]
[2409,"PGO SURALLAH, SOUTH COTABATO","SURALLAH","Local Government Unit","Province"]
[1936,"PGO SURIGAO DEL NORTE","SURIGAO DEL NORTE","Local Government Unit","Province"]
[1959,"PGO SURIGAO DEL SUR","SURIGAO DEL SUR","Local Government Unit","Province"]
[882,"PGO TARLAC","TARLAC","Local Government Unit","Province"]
[2169,"PGO TAWI-TAWI","TAWI-TAWI","Local Government Unit","Province"]
[900,"PGO ZAMBALES","ZAMBALES","Local Government Unit","Province"]
[1642,"PGO ZAMBOANGA DEL NORTE","ZAMBOANGA DEL NORTE","Local Government Unit","Province"]
[1666,"PGO ZAMBOANGA DEL SUR  ","ZAMBOANGA DEL SUR","Local Government Unit","Province"]
[1693,"PGO ZAMBOANGA SIBUGAY","ZAMBOANGA SIBUGAY","Local Government Unit","Province"]
[217,"PHILIPPINE AEROSPACE DEVELOPMENT CORPORATION","PADC","Executive Branch","GFI/GOCC"]
[2836,"PHILIPPINE AGRICULTURAL DEVELOPMENT AND COMMERCIAL CORPORATION","PADCC","Executive Branch","GFI/GOCC"]
[3175,"PHILIPPINE AIR FORCE","PAF","Executive Branch","Attached"]
[2824,"PHILIPPINE AMUSEMENT AND GAMING CORPORATION","PAGCOR","Executive Branch","GFI/GOCC"]
[3174,"PHILIPPINE ARMY","PA","Executive Branch","Attached"]
[110,"PHILIPPINE ATMOSPHERIC GEOPHYSICAL AND ASTRONOMICAL SERVICES ADMINISTRATION","PAGASA","Executive Branch","Attached"]
[16,"PHILIPPINE CARABAO CENTER","PCC","Executive Branch","Attached"]
[2974,"PHILIPPINE CENTER FOR ECONOMIC DEVELOPMENT","PCED","Executive Branch","GFI/GOCC"]
[413,"PHILIPPINE CENTER FOR POSTHARVEST DEVELOPMENT AND MECHANIZATION","PHILMECH","Executive Branch","Attached"]
[366,"PHILIPPINE CENTER ON TRANSNATIONAL CRIME","PCTC","Executive Branch","Attached"]
[218,"PHILIPPINE CHARITY SWEEPSTAKES OFFICE","PCSO","Executive Branch","GFI/GOCC"]
[219,"PHILIPPINE CHILDREN S MEDICAL CENTER","PCMC","Executive Branch","GFI/GOCC"]
[393,"PHILIPPINE COAST GUARD","PCG","Executive Branch","Attached"]
[220,"PHILIPPINE COCONUT AUTHORITY","PCA","Executive Branch","GFI/GOCC"]
[172,"PHILIPPINE COMMISSION ON WOMEN","PCW","Executive Branch","Attached"]
[132,"PHILIPPINE CONTRACTORS ACCREDITATION BOARD","PCAB","Executive Branch","Attached"]
[102,"PHILIPPINE COUNCIL FOR ADVANCED SCIENCE AND TECHNOLOGY RESEARCH AND DEVELOPMENT","PCASTRD","Executive Branch","Attached"]
[14,"PHILIPPINE COUNCIL FOR AGRICULTURE AND FISHERIES","PCAF","Executive Branch","Attached"]
[100,"PHILIPPINE COUNCIL FOR AGRICULTURE, FORESTRY AND NATURAL RESOURCES RESEARCH & DEVELOPMENT","PCAANRRD","Executive Branch","Attached"]
[103,"PHILIPPINE COUNCIL FOR AQUATIC AND MARINE RESEARCH AND DEVELOPMENT","PCAMRD","Executive Branch","Attached"]
[101,"PHILIPPINE COUNCIL FOR HEALTH RESEARCH AND DEVELOPMENT","PCHRD","Executive Branch","Attached"]
[99,"PHILIPPINE COUNCIL FOR INDUSTRY, ENERGY AND EMERGING TECHNOLOGY RESEARCH AND DEVELOPMENT","PCIEERD","Executive Branch","Attached"]
[222,"PHILIPPINE CROP INSURANCE CORPORATION","PCIC","Executive Branch","GFI/GOCC"]
[223,"PHILIPPINE DEPOSIT INSURANCE CORPORATION","PDIC","Executive Branch","GFI/GOCC"]
[134,"PHILIPPINE DOMESTIC CONSTRUCTION BOARD","PDCB","Executive Branch","Attached"]
[414,"PHILIPPINE DRUG ENFORCEMENT AGENCY","PDEA","Executive Branch","Attached"]
[224,"PHILIPPINE ECONOMIC ZONE AUTHORITY","PEZA","Executive Branch","GFI/GOCC"]
[244,"PHILIPPINE EXPORT-IMPORT CREDIT AGENCY","PHILEXIM","Executive Branch","GFI/GOCC"]
[12,"PHILIPPINE FIBER INDUSTRY DEVELOPMENT AUTHORITY","PHILFIDA","Executive Branch","Attached"]
[225,"PHILIPPINE FISHERIES DEVELOPMENT AUTHORITY","PFDA","Executive Branch","Attached"]
[2807,"PHILIPPINE FOREST CORPORATION","PHILFOREST","Executive Branch","Attached"]
[226,"PHILIPPINE HEALTH INSURANCE CORPORATION","PHIC","Executive Branch","GFI/GOCC"]
[227,"PHILIPPINE HEART CENTER","PHC","Executive Branch","GFI/GOCC"]
[3164,"PHILIPPINE HIGH SCHOOL FOR THE ARTS","PHSA","Executive Branch","NGA"]
[181,"PHILIPPINE INFORMATION AGENCY","PIA","Executive Branch","Attached"]
[228,"PHILIPPINE INSTITUTE FOR DEVELOPMENT STUDIES","PIDS","Executive Branch","GFI/GOCC"]
[3199,"PHILIPPINE INSTITUTE OF TRADITIONAL AND ALTERNATIVE HEALTH CARE","PITAHC","Executive Branch","NGA"]
[111,"PHILIPPINE INSTITUTE OF VOLCANOLOGY AND SEISMOLOGY","PHILVOCS","Executive Branch","Attached"]
[229,"PHILIPPINE INTERNATIONAL TRADING CORPORATION","PITC","Executive Branch","Attached"]
[2190,"PHILIPPINE MERCHANT MARINE ACADEMY","PMMA","State Universities and Colleges","Proper"]
[3178,"PHILIPPINE MILITARY ACADEMY","PMA","Executive Branch","Attached"]
[2808,"PHILIPPINE MINING DEVELOPMENT CORPORATION","PMDC","Executive Branch","GFI/GOCC"]
[402,"PHILIPPINE NATIONAL CONSTRUCTION CORPORATION","PNCC","Executive Branch","GFI/GOCC"]
[230,"PHILIPPINE NATIONAL OIL COMPANY","PNOC","Executive Branch","GFI/GOCC"]
[269,"PHILIPPINE NATIONAL POLICE","PNP","Executive Branch","NGA"]
[231,"PHILIPPINE NATIONAL RAILWAYS","PNR","Executive Branch","GFI/GOCC"]
[146,"PHILIPPINE NATIONAL VOLUNTEER SERVICE COORDINATING AGENCY","PNVSCA","Executive Branch","Attached"]
[3176,"PHILIPPINE NAVY","PN","Executive Branch","Attached"]
[2183,"PHILIPPINE NORMAL UNIVERSITY","PNU","State Universities and Colleges","Proper"]
[105,"PHILIPPINE NUCLEAR RESEARCH INSTITUTE","PNRI","Executive Branch","Attached"]
[49,"PHILIPPINE ORTHOPEDIC CENTER","POC","Executive Branch","Attached"]
[133,"PHILIPPINE OVERSEAS CONSTRUCTION BOARD","POCB","Executive Branch","Attached"]
[89,"PHILIPPINE OVERSEAS EMPLOYMENT ADMINISTRATION","POEA","Executive Branch","Proper"]
[232,"PHILIPPINE PORTS AUTHORITY","PPA","Executive Branch","GFI/GOCC"]
[233,"PHILIPPINE POSTAL CORPORATION","PPC","Executive Branch","GFI/GOCC"]
[2774,"PHILIPPINE POSTAL SAVINGS BANK, INCORPORATED","POST BANK","Executive Branch","GFI/GOCC"]
[3131,"PHILIPPINE PUBLIC SAFETY COLLEGE","PPSC","Executive Branch","NGA"]
[163,"PHILIPPINE RACING COMMISSION","PRACOM","Executive Branch","Attached"]
[237,"PHILIPPINE RECLAMATION AUTHORITY","PEA","Executive Branch","GFI/GOCC"]
[234,"PHILIPPINE RETIREMENT AUTHORITY","PRA","Executive Branch","GFI/GOCC"]
[235,"PHILIPPINE RICE RESEARCH INSTITUTE","PHILRICE","Executive Branch","GFI/GOCC"]
[3130,"PHILIPPINE SCIENCE HIGH SCHOOL SYSTEM","PSHS","State Universities and Colleges","Proper"]
[268,"PHILIPPINE SCIENCE HIGH SCHOOL WESTERN VISAYAS","PSHWV","State Universities and Colleges","Branch"]
[162,"PHILIPPINE SPORTS COMMISSION","PSC","Executive Branch","Attached"]
[2184,"PHILIPPINE STATE COLLEGE OF AERONAUTICS","PHILSCA ","State Universities and Colleges","Proper"]
[151,"PHILIPPINE STATISTICAL RESEARCH AND TRAINING INSTITUTE","PSRTI","Executive Branch","Attached"]
[3132,"PHILIPPINE STATISTICS AUTHORITY","PSA","Executive Branch","NGA"]
[2810,"PHILIPPINE SUGAR CORPORATION","PHILSUCOR","Executive Branch","GFI/GOCC"]
[113,"PHILIPPINE TEXTILE RESEARCH INSTITUTE","PTRI","Executive Branch","Attached"]
[128,"PHILIPPINE TRADE TRAINING CENTER","PTTC","Executive Branch","Attached"]
[93,"PHILIPPINE VETERANS AFFAIRS OFFICE","PVAO","Executive Branch","Attached"]
[3263,"PHIVIDEC INDUSTRIAL AUTHORITY","PHIVIDEC","Executive Branch","GFI/GOCC"]
[2388,"PIGCAWAYAN WATER DISTRICT","PWD","Executive Branch","LWD"]
[2390,"PIKIT WATER DISTRICT","PWD","Executive Branch","LWD"]
[2360,"PILAR WATER DISTRICT","PWD","Executive Branch","LWD"]
[2908,"PILI WATER DISTRICT","PILI","Executive Branch","LWD"]
[2698,"PILILLA WATER DISTRICT","PWD","Executive Branch","LWD"]
[2811,"PINAGKAISA REALTY CORPORATION","PRC","Executive Branch","GFI/GOCC"]
[2874,"PINAMALAYAN WATER DISTRICT","PWD","Executive Branch","LWD"]
[3003,"PINAMUNGAHAN WATER DISTRICT","PWD","Executive Branch","LWD"]
[2649,"PLACER WATER DISTRICT","PWD","Executive Branch","LWD"]
[2716,"PLARIDEL WATER DISTRICT","PLARIDEL","Executive Branch","LWD"]
[2815,"PNOC ALTERNATIVE FUEL CORPORATION","PNOC-AFC","Executive Branch","GFI/GOCC"]
[2813,"PNOC DEVELOPMENT AND MANAGEMENT CORPORATION","PNOC-DMC","Executive Branch","GFI/GOCC"]
[2816,"PNOC EXPLORATION CORPORATION","PNOC-EC","Executive Branch","GFI/GOCC"]
[2817,"PNOC RENEWABLES CORPORATION","PNOC-RC","Executive Branch","GFI/GOCC"]
[2814,"PNOC SHIPPING AND TRANSPORT CORPORATION","PNOC-STC","Executive Branch","GFI/GOCC"]
[2875,"POLA WATER DISTRICT","POLA","Executive Branch","LWD"]
[2538,"POLANCO WATER DISTRICT","PWD","Executive Branch","LWD"]
[2891,"POLILLO WATER DISTRICT","POLILLO","Executive Branch","LWD"]
[2404,"POLOMOLOK WATER DISTRICT","PWD","Executive Branch","LWD"]
[2185,"POLYTECHNIC UNIVERSITY OF THE PHILIPPINES","PUP","State Universities and Colleges","Proper"]
[2985,"PONTEVEDRA WATER DISTRICT","PWD","Executive Branch","LWD"]
[2759,"PORAC WATER DISTRICT","PORAC","Executive Branch","LWD"]
[2471,"PORO POINT MANAGEMENT CORPORATION","PPMC","Executive Branch","GFI/GOCC"]
[365,"POWER SECTOR ASSETS AND LIABILITIES MANAGEMENT CORPORATION","PSALM","Executive Branch","GFI/GOCC"]
[2493,"POZORRUBIO WATER DISTRICT","PWD","Executive Branch","LWD"]
[2539,"PRES. M.A. ROXAS WATER DISTRICT","PMARWD","Executive Branch","LWD"]
[2937,"PRES. ROXAS WATER DISTRICT","PRWD","Executive Branch","LWD"]
[281,"PRESIDENTIAL ANTI-GRAFT COMMISSION","PAGC","Executive Branch","Attached"]
[182,"PRESIDENTIAL BROADCAST STAFF - RADIO TELEVISION MALACAÑANG","PBS-RTVM","Executive Branch","Attached"]
[2997,"PRESIDENTIAL COMMISSION FOR THE URBAN POOR","PCUP","Executive Branch","Attached"]
[3172,"PRESIDENTIAL COMMISSION ON GOOD GOVERNMENT","PCGG","Executive Branch","Attached"]
[3001,"PRESIDENTIAL COMMUNICATIONS DEVELOPMENT AND STRATEGIC PLANNING OFFICE","PCDSPO","Executive Branch","Attached"]
[2973,"PRESIDENTIAL COMMUNICATIONS OPERATIONS OFFICE","PCOO","Executive Branch","NGA"]
[170,"PRESIDENTIAL LEGISLATIVE LIAISON OFFICE","PLLO","Executive Branch","Attached"]
[171,"PRESIDENTIAL MANAGEMENT STAFF","PMS","Executive Branch","Attached"]
[3179,"PRESIDENTIAL SECURITY GROUP","PSG","Executive Branch","Attached"]
[2305,"PRIVATE SECTOR","PRIVATE","Private Sector","Proper"]
[3135,"PRIVATIZATION AND MANAGEMENT OFFICE","PMO","Executive Branch","Attached"]
[3159,"PROCUREMENT SERVICE","PS","Executive Branch","Attached"]
[166,"PROFESSIONAL REGULATIONS COMMISSION","PRC","Executive Branch","Attached"]
[3254,"PROSPERIDAD WATER DISTRICT","PWD","Executive Branch","LWD"]
[2383,"PROVINCIAL PROSECUTORS OFFICE","PPO","Judiciary","Attached"]
[74,"PUBLIC ATTORNEY S OFFICE","PAO","Executive Branch","Attached"]
[3181,"PUBLIC-PRIVATE PARTNERSHIP CENTER OF THE PHILIPPINES","PPPCP","Executive Branch","Attached"]
[2879,"PUERTO PRINSESA CITY WATER DISTRICT","PPCWD","Executive Branch","LWD"]
[238,"QUEDAN AND RURAL CREDIT GUARANTEE CORPORATION","QUEDANCOR","Executive Branch","GFI/GOCC"]
[2372,"QUEZON WATER DISTRICT","QWD","Executive Branch","LWD"]
[48,"QUIRINO MEMORIAL MEDICAL CENTER","QMMC","Executive Branch","Attached"]
[2214,"QUIRINO STATE COLLEGE","QSU","State Universities and Colleges","Proper"]
[2318,"RAGAY WATER DISTRICT","RAGAY","Executive Branch","LWD"]
[2223,"RAMON MAGSAYSAY TECHNOLOGICAL UNIVERSITY","RMTU","State Universities and Colleges","Proper"]
[2682,"RAMON WATER DISTRICT","RWD","Executive Branch","LWD"]
[2771,"RAMOS WATER DISTRICT","RAMOS","Executive Branch","LWD"]
[2473,"REGION 1 MEDICAL CENTER","RIMC","Executive Branch","Attached"]
[null,"REGIONAL BOARD OF INVESTMENTS","RBOI"]
[null,"REGIONAL BUDGET AND MANAGEMENT OFFICE","RBMO"]
[null,"REGIONAL COMMISSION ON BANGSAMORO WOMEN","RCBW"]
[null,"REGIONAL ECONOMIC ZONE AUTHORITY","REZA"]
[null,"REGIONAL HUMAN RIGHTS COMMISSION","RHRC"]
[3256,"REGIONAL LEGISLATIVE ASSEMBLY - ARMM","RLA","Judiciary","Proper"]
[null,"REGIONAL PLANNING AND DEVELOPMENT OFFICE","RPDA"]
[null,"REGIONAL PORTS AND MANAGEMENT AUTHORITY","RPMA"]
[2568,"REGIONAL PROSECUTORS OFFICE - REGION 12","RPO-RO12","Judiciary","RTC"]
[null,"REGIONAL RECONCILIATION UNIFICATION COMMISSION","RRUC"]
[null,"REGIONAL SPORTS COMMISSION OFFICE","RSCO"]
[3258,"REGIONAL TRIPARTITE WAGES AND PRODUCTIVITY BOARD - ARMM","RTWPB","Executive Branch","Attached"]
[2683,"REINA MERCEDES WATER DISTRICT","RMWD","Executive Branch","LWD"]
[42,"RESEARCH INSTITUTE FOR TROPICAL MEDICINE","RITM","Executive Branch","Attached"]
[45,"RIZAL MEDICAL CENTER","RMC","Executive Branch","Attached"]
[2186,"RIZAL TECHNOLOGICAL UNIVERSITY","RTU","State Universities and Colleges","Proper"]
[2540,"RIZAL WATER DISTRICT","RWD","Executive Branch","LWD"]
[3217,"ROAD BOARD","RB","Executive Branch","Attached"]
[2235,"ROMBLON STATE UNIVERSITY","RSU","State Universities and Colleges","Proper"]
[2900,"ROMBLON WATER DISTRICT","ROMBLON","Executive Branch","LWD"]
[2509,"ROSALES NATIONAL HIGH SCHOOL","RNHS","Executive Branch","NGA"]
[2494,"ROSALES WATER DISTRICT","RWD","Executive Branch","LWD"]
[2456,"ROSARIO DISTRICT HOSPITAL","RDH","Executive Branch","NGA"]
[2468,"ROSARIO WATER DISTRICT","RWD","Executive Branch","LWD"]
[2684,"ROXAS WATER DISTRICT","RWD","Executive Branch","LWD"]
[2876,"ROXAS WATER DISTRICT","RWD","Executive Branch","LWD"]
[2871,"SABLAYAN WATER DISTRICT","SABLAYAN","Executive Branch","LWD"]
[2936,"SAGAY WATER DISTRICT","SAGAY","Executive Branch","LWD"]
[2837,"SAMAR STATE COLLEGE OF AGRICULTURE AND FORESTRY","SSCAF","State Universities and Colleges","Proper"]
[400,"SAMAR STATE UNIVERSITY","SSU","State Universities and Colleges","Proper"]
[2348,"SAN ANDRES WATER DISTRICT","SAWD","Executive Branch","LWD"]
[2739,"SAN ANTHONIO WATER DISTRICT","SAWD","Executive Branch","LWD"]
[2607,"SAN ANTONIO DISTRICT HOSPITAL","SADH","Executive Branch","NGA"]
[2485,"SAN CARLOS WATER DISTRICT","SCCWD","Executive Branch","LWD"]
[2510,"SAN FABIAN NATIONAL HIGH SCHOOL","SFNHS","Executive Branch","NGA"]
[2785,"SAN FELIPE WATER DISTRICT","SFWD","Executive Branch","LWD"]
[2760,"SAN FERNANDO CITY WATER DISTRICT","SFCWD","Executive Branch","LWD"]
[2640,"SAN FRANCISCO WATER DISTRICT","SFWD","Executive Branch","LWD"]
[3265,"SAN FRANCISCO WATER DISTRICT","SFWD","Executive Branch","LWD"]
[2685,"SAN GUILLERMO WATER DISTRICT","SGWD","Executive Branch","LWD"]
[2717,"SAN ILDEFONSO WATER DISTRICT","SIWD","Executive Branch","LWD"]
[2621,"SAN ISIDRO AGRO-INDUSTRIAL SCHOOL","SIAIS","State Universities and Colleges","Proper"]
[2575,"SAN ISIDRO WATER DISTRICT","SIWD","Executive Branch","LWD"]
[3027,"SAN ISIDRO WATER DISTRICT","SIWD","Executive Branch","LWD"]
[3060,"SAN ISIDRO WATER DISTRICT","SIWD","Executive Branch","LWD"]
[2511,"SAN JACINTO NATIONAL HIGH SCHOOL","SJNHS","Executive Branch","NGA"]
[2958,"SAN JOAQUIN WATER DISTRICT","SJWD","Executive Branch","LWD"]
[2740,"SAN JOSE CITY WATER DISTRICT","SJCWD","Executive Branch","LWD"]
[2718,"SAN JOSE DEL MONTE CITY WATER DISTRICT","SJDMCWD","Executive Branch","LWD"]
[2622,"SAN JOSE TECHNICAL HIGH SCHOOL","SJTHS","Executive Branch","NGA"]
[2576,"SAN JOSE WATER DISTRICT","SJWD","Executive Branch","LWD"]
[2872,"SAN JOSE WATER DISTRICT","SJWD","Executive Branch","LWD"]
[2418,"SAN JUAN NATIONAL HIGH SCHOOL","SJNHS","Executive Branch","NGA"]
[2844,"SAN JUAN WATER DISTRICT","SJWD","Executive Branch","LWD"]
[3018,"SAN JULIAN WATER DISTRICT","SJWD","Executive Branch","LWD"]
[43,"SAN LAZARO HOSPITAL","SLH","Executive Branch","NGA"]
[2741,"SAN LEONARDO WATER DISTRICT","SLWD","Executive Branch","LWD"]
[395,"SAN LORENZO RUIZ WOMEN S HOSPITAL","SLRWH","Executive Branch","NGA"]
[2495,"SAN MANUEL WATER DISTRICT","SMWD","Executive Branch","LWD"]
[2786,"SAN MARCELINO WATER DISTRICT","SMWD","Executive Branch","LWD"]
[2719,"SAN MIGUEL WATER DISTRICT","SMWD","Executive Branch","LWD"]
[2787,"SAN NARCISO WATER DISTRICT","SNWD","Executive Branch","LWD"]
[2656,"SAN NICHOLAS WATER DISTRICT","SNWD","Executive Branch","LWD"]
[2448,"SAN NICOLAS NATIONAL HIGH SCHOOL","SNNHS","Executive Branch","NGA"]
[2454,"SAN NICOLAS WATER DISTRICT","SNWD","Executive Branch","LWD"]
[2867,"SAN PABLO CITY WATER DISTRICT","SPCWD","Executive Branch","LWD"]
[2868,"SAN PEDRO WATER DISTRICT","SPWD","Executive Branch","LWD"]
[2496,"SAN QUINTIN WATER DISTRICT","SQWD","Executive Branch","LWD"]
[2654,"SAN RAFAEL WATER DISTRICT","SFWD","Executive Branch","LWD"]
[2623,"SAN ROQUE PAMBUJAN VOCATIONAL HIGH SCHOOL","SRPVHS","Executive Branch","NGA"]
[2608,"SAN VICENTE DISTRICT HOSPITAL","SVDH","Executive Branch","NGA"]
[2624,"SAN VICENTE SCHOOL OF FISHERIES SUMUROY AGRO-IND. SCHOOL","SVSFSAIS","Executive Branch","NGA"]
[2668,"SANCHEZ-MIRA WATER DISTRICT","SMWD","Executive Branch","LWD"]
[3195,"SANDIGANBAYAN","SB","Judiciary","SC"]
[2497,"SANTA MARIA WATER DISTRICT","SMWD","Executive Branch","LWD"]
[2429,"SANTA WATER DISTRICT","SWD","Executive Branch","LWD"]
[2686,"SANTIAGO CITY WATER DISTRICT","SCWD","Executive Branch","LWD"]
[2449,"SARRAT NATIONAL HIGH SCHOOL","SNHS","Executive Branch","NGA"]
[2657,"SARRAT WATER DISTRICT","SWD","Executive Branch","LWD"]
[2761,"SASMUAN WATER DISTRICT","SASMUAN","Executive Branch","LWD"]
[109,"SCIENCE AND TECHNOLOGY INFORMATION INSTITUTE","STII","Executive Branch","Attached"]
[108,"SCIENCE EDUCATION INSTITUTE","SEI","Executive Branch","Attached"]
[37,"SECURITIES AND EXCHANGE COMMISSION","SEC","Executive Branch","Attached"]
[296,"SENATE ELECTORAL TRIBUNAL","SET","Legislative Branch","Proper"]
[265,"SENATE OF THE PHILIPPINES","Senate","Legislative Branch","Senate"]
[2165,"SIASI WATER DISTRICT","SIASI","Executive Branch","LWD"]
[2641,"SIBAGAT WATER DISTRICT","SWD","Executive Branch","LWD"]
[2930,"SIBALOM WATER DISTRICT","SIBALOM","Executive Branch","LWD"]
[3010,"SIBULAN WATER DISTRICT","SIBULAN","Executive Branch","LWD"]
[2857,"SILANG WATER DISTRICT","SILANG","Executive Branch","LWD"]
[2986,"SILAY CITY WATER DISTRICT","SCWD","Executive Branch","LWD"]
[2420,"SINAIT NATIONAL HIGH SCHOOL","SNHS","Executive Branch","NGA"]
[2431,"SINAIT WATER DISTRICT","SWD","Executive Branch","LWD"]
[2541,"SINDANGAN WATER DISTRICT","SWD","Executive Branch","LWD"]
[2869,"SINILOAN WATER DISTRICT","SWD","Executive Branch","LWD"]
[2530,"SIOCON WATER DISTRICT","SWD","Executive Branch","LWD"]
[2987,"SIPALAY CITY WATER DISTRICT","SCWD","Executive Branch","LWD"]
[2320,"SIPOCOT WATER DISTRICT","CAMARINES SUR","Executive Branch","LWD"]
[2260,"SIQUIJOR STATE COLLEGE","SSC","State Universities and Colleges","Proper"]
[135,"SMALL BUSINESS GUARANTEE AND FINANCE CORPORATION","SBGFC","Executive Branch","GFI/GOCC"]
[2775,"SOCIAL HOUSING FINANCE CORPORATION","SHFC","Executive Branch","GFI/GOCC"]
[239,"SOCIAL SECURITY SYSTEM","SSS","Executive Branch","GFI/GOCC"]
[2877,"SOCORRO WATER DISTRICT","SOCORRO","Executive Branch","LWD"]
[2577,"SOGOD WATER DISTRICT","SWD","Executive Branch","LWD"]
[419,"SORSOGON STATE COLLEGE","SSC","State Universities and Colleges","Proper"]
[2915,"SORSOGON WATER DISTRICT","SORSOGON","Executive Branch","LWD"]
[2270,"SOUTHERN LEYTE STATE UNIVERSITY","SLSU","State Universities and Colleges","Proper"]
[2229,"SOUTHERN LUZON STATE UNIVERSITY","SLSU","State Universities and Colleges","Proper"]
[2289,"SOUTHERN PHILIPPINES AGRI-BUSINESS AND MARINE AND AQUATIC SCHOOL OF TECHNOLOGY","SPAMAST","State Universities and Colleges","Proper"]
[240,"SOUTHERN PHILIPPINES DEVELOPMENT AUTHORITY","SPDA","Executive Branch","GFI/GOCC"]
[262,"SPECIAL ZONE OF PEACE AND DEVELOPMENT (SZOPAD) SOCIAL FUND","SZOPAD SF","Executive Branch","Attached"]
[2669,"STA. ANA WATER DISTRICT","SAWD","Executive Branch","LWD"]
[2790,"STA. CRUZ WATER DISTRICT","SCWD","Executive Branch","LWD"]
[2772,"STA. IGNACIA WATER DISTRICT","SIWD","Executive Branch","LWD"]
[2430,"STA. LUCIA WATER DISTRICT","SLWD","Executive Branch","LWD"]
[2419,"STA. MARIA NATIONAL HIGH SCHOOL","SMNHS","Executive Branch","NGA"]
[2658,"STA. MARIA WATER DISTRICT","SMWD","Executive Branch","LWD"]
[2687,"STA. MARIA WATER DISTRICT","SMWD","Executive Branch","LWD"]
[2743,"STA. ROSA WATER DISTRICT","SRWD","Executive Branch","LWD"]
[3230,"STA.IGNACIA WATER DISTRICT","SIWD","Executive Branch","LWD"]
[3228,"STA.RITA WATER DISTRICT","SRWD","Executive Branch","LWD"]
[3225,"STA.ROSA WATER DISTRICT","SRWD","Executive Branch","LWD"]
[3182,"STATISTICAL RESEARCH & TRAINING CENTER","SRTC","Executive Branch","Attached"]
[2407,"STO. NIÑO WATER DISTRICT","SNWD","Executive Branch","LWD"]
[2845,"STO. TOMAS WATER DISTRICT","STWD","Executive Branch","LWD"]
[364,"SUBIC BAY METROPOLITAN AUTHORITY","SBMA","Executive Branch","GFI/GOCC"]
[2791,"SUBIC WATER DISTRICT","SWD","Executive Branch","LWD"]
[241,"SUGAR REGULATORY ADMINISTRATION","SRA","Executive Branch","Attached"]
[2586,"SULAT WATER DISTRICT","SWD","Executive Branch","LWD"]
[2294,"SULTAN KUDARAT STATE UNIVERSITY","SKSU","State Universities and Colleges","Proper"]
[2399,"SULTAN KUDARAT WATER DISTRICT","SKWD","Executive Branch","LWD"]
[2276,"SULU STATE COLLEGE","SSC","State Universities and Colleges","Proper"]
[256,"SUPREME COURT OF THE PHILIPPINES","SC","Judiciary","SC"]
[3201,"SURALLAH NATIONAL AGRICULTURAL SCHOOL","SUNAS","State Universities and Colleges","Branch"]
[2405,"SURALLAH WATER DISTRICT","SWD","Executive Branch","LWD"]
[2298,"SURIGAO DEL SUR STATE UNIVERSITY","SDSSU","State Universities and Colleges","Proper"]
[2299,"SURIGAO STATE COLLEGE OF TECHNOLOGY","SSCT","State Universities and Colleges","Proper"]
[2846,"TAAL WATER DISTRICT","TWD","Executive Branch","LWD"]
[2524,"TABACO CITY WATER DISTRICT","TCWD","Executive Branch","LWD"]
[3005,"TABUELAN WATER DISTRICT","TWD","Executive Branch","LWD"]
[2587,"TAFT WATER DISTRICT","TWD","Executive Branch","LWD"]
[2858,"TAGAYTAY CITY WATER DISTRICT","TCWD","Executive Branch","LWD"]
[2600,"TAGBINA WATER DISTRICT","TWD","Executive Branch","LWD"]
[2893,"TAGKAWAYAN WATER DISTRICT","TWD","Executive Branch","LWD"]
[3041,"TAGOLOAN WATER DISTRICT","TAGOLOAN","Executive Branch","LWD"]
[2421,"TAGUDIN NATIONAL HIGH SCHOOL","TNHS","Executive Branch","NGA"]
[2432,"TAGUDIN WATER DISTRICT","TWD","Executive Branch","LWD"]
[3051,"TAGUM WATER DISTRICT","TAGUM","Executive Branch","LWD"]
[2744,"TALAVERA WATER DISTRICT","TWD","Executive Branch","LWD"]
[2598,"TALIBON WATER DISTRICT","TALIBON","Executive Branch","LWD"]
[2988,"TALISAY WATER DISTRICT","TWD","Executive Branch","LWD"]
[2746,"TALUGTUG WATER DISTRICT","TWD","Executive Branch","LWD"]
[2847,"TANAUAN WATER DISTRICT","TANAUAN","Executive Branch","LWD"]
[2897,"TANAY WATER DISTRICT","TWD","Executive Branch","LWD"]
[2593,"TANDAG WATER DISTRICT","TWD","Executive Branch","LWD"]
[2413,"TANGUB CITY WATER DISTRICT","TCWD","Executive Branch","LWD"]
[3011,"TANJAY WATER DISTRICT","TWD","Executive Branch","LWD"]
[2859,"TANZA WATER DISTRICT","TANZA","Executive Branch","LWD"]
[147,"TARIFF COMMISSION","TARIFF","Executive Branch","Attached"]
[3231,"TARLAC CITY WATER DISTRICT","TCWD","Executive Branch","LWD"]
[2224,"TARLAC COLLEGE OF AGRICULTURE","TCA","State Universities and Colleges","Proper"]
[2225,"TARLAC STATE UNIVERSITY","TSU","State Universities and Colleges","Proper"]
[2773,"TARLAC WATER DISTRICT","TARLAC","Executive Branch","LWD"]
[2277,"TAWI-TAWI REGIONAL AGRICULTURAL COLLEGE","TRAC","State Universities and Colleges","Proper"]
[2848,"TAYSAN WATER DISTRICT","TAYSAN","Executive Branch","LWD"]
[2881,"TAYTAY WATER DISTRICT","TWD","Executive Branch","LWD"]
[2512,"TAYUG NATIONAL HIGH SCHOOL","TNHS","Executive Branch","NGA"]
[3170,"TECHNICAL COOPERATION COUNCIL OF THE PHILIPPINES","TCCP","Executive Branch","Attached"]
[87,"TECHNICAL EDUCATION AND SKILLS DEVELOPMENT AUTHORITY","TESDA","Executive Branch","Attached"]
[2187,"TECHNOLOGICAL UNIVERSITY OF THE PHILIPPINES","TUP","State Universities and Colleges","Proper"]
[112,"TECHNOLOGY APPLICATION AND PROMOTION INSTITUTE","TAPI","Executive Branch","Attached"]
[242,"TECHNOLOGY RESOURCE CENTER","TRC","Executive Branch","Attached"]
[2788,"TECHNOLOGY RESOURCES CENTER","TRC","Executive Branch","Attached"]
[140,"TELECOMMUNICATIONS OFFICE","TELOF","Executive Branch","Attached"]
[2424,"TEODORO HERNAEZ NATIONAL HIGH SCHOOL","THNHS","Executive Branch","NGA"]
[2898,"TERESA WATER DISTRICT","TERESA","Executive Branch","LWD"]
[156,"THE NATIONAL LIBRARY OF THE PHILIPPINES","NLP","Executive Branch","Attached"]
[2894,"TIAONG WATER DISTRICT","TIAONG","Executive Branch","LWD"]
[2909,"TIGAON-SANGAY WATER DISTRICT","TSWD","Executive Branch","LWD"]
[2959,"TIGBAUAN WATER DISTRICT","TWD","Executive Branch","LWD"]
[2931,"TOBIAS WATER DISTRICT","TOBIAS","Executive Branch","LWD"]
[3209,"TOLEDO WATER DISTRICT","TWD","Executive Branch","LWD"]
[97,"TOLL REGULATORY BOARD","TRB","Executive Branch","Attached"]
[44,"TONDO MEDICAL CENTER","TMC","Executive Branch","Attached"]
[236,"TOURISM INFRASTRUCTURE AND ENTERPRISE ZONE AUTHORITY","TIEZA (PTA)","Executive Branch","GFI/GOCC"]
[221,"TOURISM PROMOTIONS BOARD","TPB","Executive Branch","GFI/GOCC"]
[2860,"TRECE MARTIREZ WATER DISTRICT","TANZA","Executive Branch","LWD"]
[2670,"TUAO WATER DISTRICT","TWD","Executive Branch","LWD"]
[2634,"TUBAY WATER DISTRICT","TWD","Executive Branch","LWD"]
[2379,"TUBOD-BAROY WATER DISTRICT","TBWD","Executive Branch","LWD"]
[2960,"TUBUNGAN WATER DISTRICT","TUBUNGAN","Executive Branch","LWD"]
[2671,"TUGUEGARAO WATER DISTRICT","TWD","Executive Branch","LWD"]
[2533,"TUKURAN WATER DISTRICT","TWD","Executive Branch","LWD"]
[2389,"TULUNAN WATER DISTRICT","TWD","Executive Branch","LWD"]
[761,"TUMAUINI WATER DISTRICT","TUMAUINI","Executive Branch","LWD"]
[2406,"TUPI WATER DISTRICT","TWD","Executive Branch","LWD"]
[3206,"TUY WATER DISTRICT","TWD","Executive Branch","LWD"]
[2498,"UMINGAN WATER DISTRICT","UWD","Executive Branch","LWD"]
[3168,"UNESCO NATIONAL COMMISSION OF THE PHILIPPINES SECRETARIAT","UNESCO-NCPS","Executive Branch","Attached"]
[2895,"UNISAN WATER DISTRICT","UNISAN","Executive Branch","LWD"]
[2253,"UNIVERSITY OF ANTIQUE","UA","State Universities and Colleges","Proper"]
[2272,"UNIVERSITY OF EASTERN PHILIPPINES","UEP","State Universities and Colleges","Proper"]
[2209,"UNIVERSITY OF NORTHERN PHILIPPINES","UNP","State Universities and Colleges","Proper"]
[2230,"UNIVERSITY OF RIZAL SYSTEM","URS","State Universities and Colleges","Proper"]
[2290,"UNIVERSITY OF SOUTHEASTERN PHILIPPINES","USEP","State Universities and Colleges","Proper"]
[2295,"UNIVERSITY OF SOUTHERN MINDANAO","USM","State Universities and Colleges","Proper"]
[247,"UNIVERSITY OF THE PHILIPPINES","UP","State Universities and Colleges","Proper"]
[2189,"UNIVERSITY OF THE PHILIPPINES PGH MANILA","UP-PGH","State Universities and Colleges","Branch"]
[null,"UPI AGRICULTURAL SCHOOL","UAS","State Universities and Colleges","Proper"]
[2486,"URBIZTONDO WATER DISTRICT","UWD","Executive Branch","LWD"]
[2513,"URDANETA CITY UNIVERSITY","UCU","State Universities and Colleges","Proper"]
[2514,"URDANETA NATIONAL HIGH SCHOOL","UNHS","Executive Branch","NGA"]
[2499,"URDANETA WATER DISTRICT","UWD","Executive Branch","LWD"]
[2373,"VALENCIA CITY WATER DISTRICT","VCWD","Executive Branch","LWD"]
[3198,"VALENZUELA CITY MEDICAL CENTER","VCGH","Executive Branch","NGA"]
[2789,"VETERANS FEDERATION OF THE PHILIPPINES","VFP","Executive Branch","GFI/GOCC"]
[94,"VETERANS MEMORIAL MEDICAL CENTER","VMMC","Executive Branch","Attached"]
[3203,"VETERANS REGIONAL HOSPITAL","VRH","Executive Branch","NGA"]
[3029,"VICTORIA WATER DISTRICT","VWD","Executive Branch","LWD"]
[2989,"VICTORIAS WATER DISTRICT","VWD","Executive Branch","LWD"]
[2349,"VIGA WATER DISTRICT","VWD","Executive Branch","LWD"]
[3032,"VILLAREAL WATER DISTRICT","VWD","Executive Branch","LWD"]
[2500,"VILLASIS WATER DISTRICT","VWD","Executive Branch","LWD"]
[2350,"VIRAC WATER DISTRICT","VWD","Executive Branch","LWD"]
[2271,"VISAYAS STATE UNIVERSITY","VSU","State Universities and Colleges","Proper"]
[2548,"WAO WATER DISTRICT","WWD","Executive Branch","LWD"]
[2255,"WEST VISAYAS STATE UNIVERSITY","WVSU","State Universities and Colleges","Proper"]
[408,"WESTERN MINDANAO STATE UNIVERSITY","WMSU","State Universities and Colleges","Proper"]
[2236,"WESTERN PHILIPPINES UNIVERSITY","WPU","State Universities and Colleges","Proper"]
[2254,"WESTERN VISAYAS COLLEGE OF SCIENCE AND TECHNOLOGY","WVCST","State Universities and Colleges","Proper"]
[245,"ZAMBOANGA CITY SPECIAL ECONOMIC ZONE AUTHORITY","ZCSEZA","Executive Branch","GFI/GOCC"]
[2279,"ZAMBOANGA CITY STATE POLYTECHNIC COLLEGE","ZCSPC","State Universities and Colleges","Proper"]
[2528,"ZAMBOANGA CITY WATER DISTRICT","ZCWD","Executive Branch","LWD"]
[2812,"ZAMBOANGA NATIONAL AGRICULTURAL COLLEGE- RUBBER ESTATE CORPORATION","ZREC","Executive Branch","GFI/GOCC"]
[2280,"ZAMBOANGA STATE COLLEGE OF MARINE SCIENCES AND TECHNOLOGY","ZSCMST","State Universities and Colleges","Proper"]
[2961,"ZARRAGA WATER DISTRICT","ZWD","Executive Branch","LWD"]
[null,"UNIVERSITY OF SCIENCE AND TECHNOLOGY OF SOUTHERN PHILIPPINES","USTSP","State Universities and Colleges","Proper"]
[null,"METRO OZAMIZ WATER DISTRICT","MOWD","Executive Branch","LWD"]
[null,"CATANDUANES STATE UNIVERSITY","CSU","State Universities and Colleges","Proper"]

{"sheet":"Sheet3","index":4,"n_rows":12,"n_cols":6,"rows_kept":12,"hidden":true}
[{"$f":"NOW()","v":"2023-06-20T15:23:22.730"},null,{"$f":"DAY(A1)","v":20},{"$f":"YEAR(A1)","v":2023},{"$f":"TEXT(A1,\"mmm\")","v":"Jun"},{"$f":"CONCATENATE(C1,\"-\",E1,\"-\",RIGHT(D1,2))","v":"20-Jun-23"}]
[{"$f":"MID(Sheet1!$A28,181,LEN(Sheet1!$A28)-181)","v":"JULY 5, 2023"},null,{"$f":"DAY(A2)","v":5},{"$f":"YEAR(A2)","v":2023},{"$f":"LEFT(TRIM(A2),3)","v":"JUL"},{"$f":"CONCATENATE(C2,\"-\",E2,\"-\",RIGHT(D2,2))","v":"5-JUL-23"}]
["<p>Interested and qualified applicants should signify their interest in writing. Attach the following documents to the application letter and send to the address below not later than "]
[".</p><p><strong>Documents:</strong></p><p>1. Fully accomplished Personal Data Sheet (PDS) with recent passport-sized picture (CS Form No. 212, Revised 2017) which can be downloaded at www.csc.gov.ph;<br/>2. Performance rating  in the present position for one (1) year (if applicable);<br/>3. Photocopy of certificate of eligibility/rating/license; and<br/>4. Photocopy of Transcript of Records.</p><p><strong>QUALIFIED APPLICANTS</strong> are advised to hand in or send through courier/email their application to:</p><p><strong>"]
["</strong><br/>","<br/>","<br/>","<br/>"]
["</p><p><strong>APPLICATIONS WITH INCOMPLETE DOCUMENTS SHALL NOT BE ENTERTAINED.</strong></p>"]
[{"$f":"CONCATENATE(A3,A2,A4,A8,A5,A9,B5,A12,C5,A10,D5,A11,A6)","v":"<p>Interested and qualified applicants should signify their interest in writing. Attach the following documents to the application letter and send to the address below not later than JULY 5, 2023.</p><p><strong>Documents:</strong></p><p>1. Fully accomplished Personal Data Sheet (PDS) with recent passport-sized picture (CS Form No. 212, Revised 2017) which can be downloaded at www.csc.gov.ph;<br/>2. Performance rating  in the present position for one (1) year (if applicable);<br/>3. Photocopy of certificate of eligibility/rating/license; and<br/>4. Photocopy of Transcript of Records.</p><p><strong>QUALIFIED APPLICANTS</strong> are advised to hand in or send through courier/email their application to:</p><p><strong>FATIMA A. GARON</strong><br/>Administrative Officer V - HRMO III<br/>NATIONAL COUNCIL ON DISABILITY AFFAIRS<br/>Isidora St. Barangay Holy Spirit, Quezon City<br/>ncda.hrmo.hiring@gmail.com</p><p><strong>APPLICATIONS WITH INCOMPLETE DOCUMENTS SHALL NOT BE ENTERTAINED.</strong></p>"}]
[{"$f":"TRIM(Sheet1!B39)","v":"FATIMA A. GARON"}]
[{"$f":"TRIM(Sheet1!B40)","v":"Administrative Officer V - HRMO III"}]
[{"$f":"TRIM(Sheet1!B41)","v":"Isidora St. Barangay Holy Spirit, Quezon City"}]
[{"$f":"TRIM(Sheet1!B42)","v":"ncda.hrmo.hiring@gmail.com"}]
[{"$f":"TRIM(Sheet1!A4)","v":"NATIONAL COUNCIL ON DISABILITY AFFAIRS"}]